{"text_format":"1","workbook":"xlsx","n_sheets":16,"sheets":["Datos de identificación 2024","Instrucciones para el llenado","Priorización 2024","Estrategia 2024","Servicios EE 2024","Población total en la entidad","Población beneficiaria DIS","Población beneficiaria AS","1. Acciones académicas (DIS)","1. Acciones académicas (AS)","2. Atención complementaria(DIS)","2. Atención complementaria(AS)","3. Equipamiento espec. (DIS)","3. Equipamiento espec. (AS)","Gastos de Operación Local","Autorización"],"not_rendered":{"charts":0,"images":1,"macros":1,"external_links":0,"defined_names":24,"comments":0,"pivot_tables":0},"unopened":[],"bounds":{"document_bytes":16777216,"sheet_cells":100000,"rows_first":2000,"rows_last":500,"rows_between":2000,"halvings":0,"cell_chars":16384,"cell_head_chars":4096},"cells_cut":0,"cells_raw":0,"read":"whole","date_system":"1900"}

{"sheet":"Datos de identificación 2024","index":0,"n_rows":19,"n_cols":5,"rows_kept":19,"cut":false,"hidden":false,"merged":[[17,3,17,8],[18,3,18,8],[10,0,10,2],[11,0,11,2],[12,0,15,2],[16,0,16,2],[17,0,17,2],[18,0,18,2],[10,3,10,8],[11,3,11,8],[12,3,15,8],[5,0,5,8],[0,4,4,8],[6,3,6,8],[0,0,4,2],[16,3,16,8],[6,0,6,2],[8,0,8,8]]}
[null,null,null,null,"Subsecretaría de Educación Básica\nDirección General de Desarrollo Curricular\nDirección de Fortalecimiento Curricular para la \nFormación Personal y Social en la Educación Básica\nEducación Especial"]
[]
[]
[]
[]
["\nANEXO 3\nPLAN ANUAL DE TRABAJO (PAT) 2024\nPrograma Fortalecimiento de los Servicios de Educación Especial (PFSEE)"]
["Entidad:",null,null,"DURANGO"]
[]
["1. Datos de la Persona Coodinadora Local del PFSEE"]
[]
["Nombre:",null,null,"M.P.O.E.   J. CRUZ CONTRERAS MORENO"]
["Cargo:",null,null,"COORDINADOR DEL PROGRAMA FORTALECIMIENTO DE LOS SERVICIOS DE EDUCACIÓN ESPECIAL DURANGO"]
["Domicilio de la oficina:",null,null,"Blvd. Domingo Arrieta 1700, Fracc. Domingo Arrieta CP. 34180 Durango Dgo."]
[]
[]
[]
["Correo electrónico:",null,null,"jcruz.contreras@durango.gob.mx"]
["Teléfono y extensión:",null,null,"6181376259     CISCO 76259"]
["Celular:",null,null,6182970022]

{"sheet":"Instrucciones para el llenado","index":1,"n_rows":114,"n_cols":19,"rows_kept":114,"cut":false,"hidden":false,"merged":[[95,0,96,24],[0,0,4,4],[0,18,4,24],[5,0,5,24],[9,0,10,24],[16,0,17,24],[19,0,20,24],[22,0,23,24],[36,0,37,24],[55,0,56,24],[76,0,77,24],[92,0,93,24],[113,0,114,24],[98,0,99,24],[101,0,102,24],[104,0,105,24],[106,0,106,24],[107,0,108,24],[110,0,111,24]]}
[null,null,null,null,null,null,null,null,null,null,null,null,null,null,null,null,null,null,"Subsecretaría de Educación Básica\nDirección General de Desarrollo Curricular\nDirección de Fortalecimiento Curricular para la \nFormación Personal y Social en la Educación Básica\nEducación Especial"]
[]
[]
[]
[]
["Sírvase de las siguientes recomendaciones para el llenado de su formato PAT"]
[]
["Este archivo requiere guardarse como \"Libro de Excel habilitado para macros\"."]
[]
["1. Previamente, el formato está diseñado para imprimirse bajo los siguientes criterios, sin embargo, puede hacer las adecuaciones que considere para que las tablas se impriman completas hoja por hoja:"]
[]
[null,"o Formato horizontal"]
[null,"o Tamaño Carta"]
[null,"o Márgenes estrechos"]
[null,"o Escalado 40%"]
[]
["2. Una vez llenadas las pestañas \"Estrategia 2024\" y \"Servicios EE\", se pasan en automático los servicios que fueron focalizados en cada tabla, así como el recurso proyectado para cada criterio. Lo anterior, para facilitar el llenado a partir de estos datos."]
[]
[]
["3. La celda \"Remanente\" es un apoyo para el llenado del documento, ahí se va actualizando el recurso que no se está planeando con las acciones propuestas. Para la entrega final, el remanente deberá quedar en ceros."]
[]
[]
["4. En las pestañas correspondientes a \"Acciones académicas\", se despliegan las siguientes opciones. Favor de no escribir, únicamente seleccionar del desplegable:"]
[]
[null,"Diplomado",null,"2do",null,"Encuentro",null,"Arrendamiento de salas / salones "]
[null,"Curso",null,"3ro",null,"Curso",null,"Compra de recursos didácticos"]
[null,"Taller",null,"4to",null,"Taller",null,"Reproducción de materiales"]
[null,"Conferencia",null,null,null,"Reunión",null,"Pago a conferencistas o talleristas "]
[null,"Asesoría",null,null,null,null,null,"Contratación de plataforma digital"]
[null,null,null,null,null,null,null,"Pago de viáticos para asistentes"]
[null,null,null,null,null,null,null,"Pago de traslados para asistentes"]
[null,null,null,null,null,null,null,"Coffee break"]
[null,null,null,null,null,null,null,"Compra de papelería"]
[null,null,null,null,null,null,null,"Renta de equipo de audio y/o video"]
[null,null,null,null,null,null,null,"Renta de mobiliario"]
[null,null,null,null,null,null,null,"N/A"]
["4. En las pestañas correspondientes a \"Atención complementaria\", se despliegan las siguientes opciones. Favor de no escribir, únicamente seleccionar del desplegable:"]
[]
[null,"Académica",null,"2do",null,"Campaña",null,"Arrendamiento de salas / salones "]
[null,"Artística",null,"3ro",null,"Feria",null,"Compra de recursos didácticos"]
[null,"Deportiva",null,"4to",null,"Evento",null,"Compra de material deportivo y/o artístico"]
[null,"Rehabilitadora",null,null,null,null,null,"Reproducción de materiales"]
[null,"Desarrollo de habilidades socioafectivas",null,null,null,null,null,"Pago a especialistas"]
[null,"Para contribuir al diagnóstico",null,null,null,null,null,"Contratación de plataforma digital"]
[null,null,null,null,null,null,null,"Pago de viáticos para asistentes"]
[null,null,null,null,null,null,null,"Pago de traslados para asistentes"]
[null,null,null,null,null,null,null,"Compra de Box lunch"]
[null,null,null,null,null,null,null,"Compra de papelería"]
[null,null,null,null,null,null,null,"Adquisición de uniformes"]
[null,null,null,null,null,null,null,"Renta de vestuario"]
[null,null,null,null,null,null,null,"Renta de material didáctico y/o deportivo"]
[null,null,null,null,null,null,null,"Diseño y producción de lonas"]
[null,null,null,null,null,null,null,"Renta de equipo de audio y/o video"]
[null,null,null,null,null,null,null,"Renta de mobiliario"]
[null,null,null,null,null,null,null,"N/A"]
["5. En la pestaña correspondiente a \"Equipamiento específico (DIS)\", se despliegan las siguientes opciones. Favor de no escribir, únicamente seleccionar del desplegable:"]
[]
[null,"Material didáctico concreto",null,null,null,"Especializados en atención educativa",null,"Para la identificación de BAP",null,null,null,"Braille",null,null,null,null,null,null,"Software"]
[null,"Esquemas o mapas en relieve",null,"2do",null,"Especializados en discapacidad",null,"Para la determinación de apoyos específicos ",null,null,null,"Lectura fácil",null,null,null,null,null,null,"Hardware"]
[null,"Regletas y punzón",null,"3ro",null,"Especializados en ciencia",null,"Instrumentos de evaluación en línea",null,null,null,"Audiolibro",null,null,null,null,null,null,"Equipo de cómputo"]
[null,"Caja aritmética",null,"4to",null,"Especializados en artes",null,null,null,null,null,"Videos con animaciones",null,null,null,null,null,null,"Cañón"]
[null," Ábaco Cramer",null,null,null,"En formatos accesibles",null,null,null,null,null,"Videos con interpretación en LSM",null,null,null,null,null,null,"Impresora"]
[null,"Tableros de comunicación",null,null,null,"De literatura infantil",null,null,null,null,null,"Videos con closed caption",null,null,null,null,null,null,"Enmicadora"]
[null,"Regletas cuisenaire",null,null,null,"De literatura juvenil",null,null,null,null,null,"Tecnología de bajo costo",null,null,null,null,null,null,"Tableta electrónica"]
[null,"Juegos de estrategia adaptados",null,null,null,"Otro (especifique)",null,null,null,null,null,"Otro (especifique)",null,null,null,null,null,null,"Equipo para producciones audiovisuales de NNAJ"]
[null,"Material para ciencia",null,null,null,null,null,null,null,null,null,null,null,null,null,null,null,null,"Reproductor de audio"]
[null,"Equipo deportivo",null,null,null,null,null,null,null,null,null,null,null,null,null,null,null,null,"Reproductor de video"]
[null,"Instrumentos musicales",null,null,null,null,null,null,null,null,null,null,null,null,null,null,null,null,"Equipo de asistencia tecnológica"]
[null,"Paquetes con diversos materiales",null,null,null,null,null,"Para el desplazamiento",null,null,null,null,null,null,null,null,null,null,"Tecnología adaptada"]
[null,"Otro (especifique)",null,null,null,null,null,"Para la orientación",null,null,null,null,null,null,null,null,null,null,"Impresora en Braille"]
[null,null,null,null,null,null,null,"Para la comunicación",null,null,null,null,null,null,null,null,null,null,"Máquina Perkins"]
[null,null,null,null,null,null,null,null,null,null,null,null,null,null,null,null,null,null,"Calculadora parlante"]
[null,null,null,null,null,null,null,null,null,null,null,null,null,null,null,null,null,null,"Magnificador de pantalla"]
[null,null,null,null,null,null,null,null,null,null,null,null,null,null,null,null,null,null,"Contratación de plataforma digital"]
[null,null,null,null,null,null,null,null,null,null,null,null,null,null,null,null,null,null,"Material para robótica"]
[null,null,null,null,null,null,null,null,null,null,null,null,null,null,null,null,null,null,"Otro (especifique)"]
["6. En la pestaña correspondiente a \"Equipamiento específico (AS)\", se despliegan las siguientes opciones. Favor de no escribir, únicamente seleccionar del desplegable:"]
[]
[null,"Juegos de estrategia",null,null,null,"Especializados en atención educativa",null,"Inteligencia",null,"Software"]
[null,"Material para ciencia",null,"2do",null,"Especializados en aptitudes sobresalientes",null,"Creatividad",null,"Hardware"]
[null,"Material para artes",null,"3ro",null,"Especializados en ciencia",null,"Habilidades sociales",null,"Equipo de cómputo"]
[null,"Equipo deportivo",null,"4to",null,"Especializados en artes",null,"Habilidades emocionales",null,"Cañón"]
[null,"Instrumentos musicales",null,null,null,"De literatura infantil",null,"Insumos de papelería para reproducción",null,"Impresora"]
[null,"Paquetes con diversos materiales",null,null,null,"De literatura juvenil",null,"Instrumentos de evaluación en línea",null,"Tableta electrónica"]
[null,"Otro (especifique)",null,null,null,"Otro (especifique)",null,null,null,"Equipo para producciones audiovisuales realizado por NNAJ"]
[null,null,null,null,null,null,null,null,null,"Reproductor de audio"]
[null,null,null,null,null,null,null,null,null,"Reproductor de video"]
[null,null,null,null,null,null,null,null,null,"Material para robótica"]
[null,null,null,null,null,null,null,null,null,"Enmicadora"]
[null,null,null,null,null,null,null,null,null,"Contratación de plataforma digital"]
[null,null,null,null,null,null,null,null,null,"Otro (especifique)"]
[]
["7. La cantidad a distribuir se refiere al total de material que se va a adquirir y distribuir, es decir 15 regletas, 10 equipos deportivos, etc."]
[]
[]
["8. El trimestre se refiere a cuándo se empezará la actividad y cuándo se concluye. Favor de seleccionarlo del desplegable y, si la actividad se realizará en un solo trimestre, se escribe lo mismo en las dos celdas."]
[]
[]
["9. Se solicita que, en la medida de lo posible, se diversifique el propósito educativo reportado para cada actividad/adquisición."]
[]
[]
["10. Para recabar las firmas de \"Autorización\", si en su entidad no hay subsistemas, podrá eliminar una de las tablas correspondientes a las firmas de los Responsables de Educación Especial."]
[]
[]
["11. Se recomienda que, en caso de no requerir todas las tablas que aparecen a continuación, sea porque no va a realizar acciones en ese criterio de gasto, o no se va a beneficiar a todos los tipos de servicios que se presentan, imprima únicamente lo necesario (es decir, las tablas que contengan algún tipo de información)."]
[]
[]
["12. En caso de requerir mayor número de filas para reportar más actividades, podrá hacerlo siguiendo la ruta: Inicio / Celdas / Insertar filas. O bien, haciendo click derecho en el encabezado de la fila."]
[]
[]
["13. Solicitamos su apoyo para que este formato no sea desbloqueado, agregado o eliminado columnas, ni fórmulas; de lo contrario, se le solicitará que se vuelva a recabar la información en un formato en limpio."]
[]
[]
["14. Favor de no eliminar esta pestaña."]

{"sheet":"Priorización 2024","index":2,"n_rows":43,"n_cols":5,"rows_kept":43,"cut":false,"hidden":false,"merged":[[0,0,4,2],[0,4,4,8],[9,0,9,8],[12,0,12,8],[13,0,13,8],[8,0,8,8],[11,0,11,8],[27,0,30,1],[27,3,39,8],[42,0,45,1],[42,3,54,8],[6,0,6,8],[14,0,14,8],[15,0,15,8],[16,0,16,8],[18,0,18,8],[19,0,25,8]]}
[null,null,null,null,"Subsecretaría de Educación Básica\nDirección General de Desarrollo Curricular\nDirección de Fortalecimiento Curricular para la \nFormación Personal y Social en la Educación Básica\nEducación Especial"]
[]
[]
[]
[]
[]
["Situación de lo programado en 2023 para los logros del diagnóstico de servicios de educación especial en la entidad"]
[]
["Fortalecimiento 2024"]
["Criterios de selección y priorización de los servicios de educación especial.\n(Puede seleccionar más de una opción)"]
[]
["Seleccione los criterios de priorización"]
["Servicios de nueva creación"]
["Servicios con mayores necesidades de acuerdo con los criterios establecidos en el diagnóstico.\n"]
["Servicios que atienden a población con discapacidad y/o con aptitudes sobresalientes que se encuentren en doble situación de vulnerabilidad, como indígena, afrodescendiente y migrante."]
["Servicios que brinden actualización a docentes de escuelas de Educación Básica (Componente 1).\n"]
["[Seleccione]"]
[]
["Describa los criterios de dicha priorización"]
["1. Servicios de nueva creación: contamos con dos servicios de USAER de nueva creación, los cuales requieren equipamiento y fortalecimiento académico.                                                                                                   2. Servicios con mayores necesidades de acuerdo con los criterios establecidos en el diagnóstico: en coordinación con los supervisores de las zonas escolares se realiza un análisis de los centros que han sido menos beneficiados por el programa, priorizándolos en el presente ejercicio.                                                                                                                                                                                                                                    3. Servicios que brinden actualización a docentes de escuelas de Educación Básica: Los servicios de Educación Especial en el estado se encuentran muy dispersos geográficamente y debido a los frecuentes cambios de adscripción, los agentes educativos requieren de actualización constante y pertienente a las necesidades de la población atendida."]
[]
[]
[]
[]
[]
[]
[]
["Describa de qué manera se satisfacen las necesidades identificadas en su diagnóstico con las acciones programadas para beneficiar a población con discapacidad",null,null,"Con la distribución de acciones diseñada para este ejercicio, se busca que todos los agentes que participan en el proceso de enseñanza aprendizaje se fortalezcan, de tal manera que el primer frente es conformado con acciones que fortalecen la función de los agentes educativos, con diplomados, cursos/talleres y conferencias acerca de temáticas que se detectaron como áreas de mejora en el diagnóstico del presente año. Entre ellas, las temática de autismo, la neuroeducación, así como las metodologías específicas pertinentes para la atención de cada uno de ellos; otro aspecto que se torna importante es el abordaje del plan y programas de estudio vigentes, ello se ha convertido en un reto importante para los docentes en general, así mismo, para los docentes de educación especial quienes tienen como reto el realizar una metodología diversificada y pertinente a las características y necesidades educativas específicas de los alumnos en el entorno en donde se desenvuelven. El tema de la enseñanza y aprendizaje en el aspecto lógico matemático ha sido un área que denota oportunidad de mejora en nuestros agentes educativos, por ello también se propone una temática que aborde y favorezca a los docentes. Por último, la parte de los trastornos psicosociales se ha mostrado presente en los entornos de la entidad y las comunidades atendidas y el abordaje pertinente, resulta básico dado que son manifestaciones que requieren técnicas precisas que sólo a través de una capacitación pertinente se logra atender de una manera adecuada. \nPor otra parte, la atención directa a los alumnos es importante, en este sentido, la atención complementaria colabora en la minimización y/o derribo de las BAP que enfrentan los alumnos atendidos; por ello se programaron acciones que beneficien a los alumnos directamente, en el ámbito físico, cultural y social como el encuentro deportivo y la feria inclusiva, los cuales buscan la convivencia entre pares de los alumnos, el desarrollo de sus capacidades y por supuesto la convivencia entre la comunidad escolar.\nEn cuanto a la atención pertinente se refiere, no se pueden dejar de lado los medios para llevarlo a cabo, y los centros educativos presentan año con año necesidades de equipamiento que coadyuven en proceso de adaptación y aprendizaje de los alumnos, equipando los talleres de formación laboral, las aulas y los materiales necesarios para una atención óptima de los alumnos."]
[]
[]
[]
[]
[]
[]
[]
[]
[]
[]
[]
[]
[]
[]
["Describa de qué manera se satisfacen las necesidades identificadas en su diagnóstico con las acciones programadas para beneficiar a población con aptitudes sobresalientes",null,null,"Los alumnos con Aptitudes sobresalientes AS representan un gran reto a todas las figuras que se encargan de la detección, diagnóstico, atención y enriquecimiento, por ello, se proponen actividades para fortalecer a los agentes educativos como un diplomado para la detección y atención de alumnos AS, un intercambio de experiencias exitosas en el proceso de detección y atención de dichos alumnos, un curso de enriquecimiento escolar, un taller de enriquecimiento a través del arte, la ciencia y el manejo de las emociones, tratando de abordar desde diferentes dimensiones el desarrollo y atención adecuada de estos alumnos.\nEn las actividades complementarias se proponen dos actividades que creemos enriquecerán a los alumnos y el desarrollo de sus capacidades con una feria de enriquecimiento y unas caravanas de la ciencia, buscando impactar en la práctica dentro de la escuela y de igual manera en la comunidad en donde se desenvuelven. \nPor último y abonando también la parte del equipamiento, se busca dotar de instrumentos para la detección y atención a los alumnos."]

{"sheet":"Estrategia 2024","index":3,"n_rows":77,"n_cols":29,"rows_kept":77,"cut":false,"hidden":false,"merged":[[76,0,76,5],[76,7,76,9],[76,11,76,12],[74,0,74,5],[75,0,75,5],[61,11,61,12],[62,0,62,5],[32,25,32,26],[38,10,38,17],[38,19,38,26],[40,19,40,20],[40,21,40,23],[42,19,42,20],[42,21,42,23],[42,25,42,26],[33,3,33,8],[33,19,33,26],[71,13,72,13],[66,11,66,12],[67,11,67,12],[64,0,64,13],[66,0,66,5],[67,0,67,5],[65,0,65,5],[75,11,75,12],[68,7,68,9],[75,7,75,9],[69,0,69,5],[70,0,70,5],[74,7,74,9],[74,11,74,12],[73,7,73,9],[73,0,73,5],[69,11,69,12],[70,11,70,12],[73,11,73,12],[71,0,72,5],[71,6,72,6],[71,7,72,9],[71,11,72,12],[69,7,69,9],[70,7,70,9],[7,15,9,20],[68,26,68,27],[69,26,69,27],[70,26,70,27],[67,26,67,27],[66,17,66,20],[57,22,57,24],[64,17,64,28],[55,21,55,24],[55,26,55,27],[66,22,66,24],[67,17,67,20],[67,22,67,24],[66,26,66,27],[69,17,69,20],[70,17,70,20],[21,15,21,16],[32,15,32,16],[30,19,30,20],[32,19,32,20],[70,22,70,24],[68,17,68,20],[68,22,68,24],[69,22,69,24],[61,0,61,5],[61,7,61,9],[19,3,19,5],[40,10,40,11],[42,10,42,11],[42,12,42,13],[57,11,57,12],[68,0,68,5],[66,7,66,9],[67,7,67,9],[68,11,68,12],[52,0,52,12],[40,4,40,5],[40,12,40,13],[19,10,19,14],[32,12,32,13],[42,4,42,5],[42,7,42,8],[28,10,28,17],[56,17,56,20],[57,17,57,20],[59,0,59,12],[48,10,48,17],[47,14,47,17],[55,0,55,5],[55,17,55,20],[56,0,56,5],[57,0,57,5],[60,6,60,9],[60,11,60,12],[60,17,60,20],[47,10,47,13],[47,6,47,8],[47,3,47,5],[48,20,48,26],[47,20,47,26],[48,3,48,8],[60,21,60,24],[60,26,60,27],[59,17,59,27],[60,0,60,5],[57,7,57,9],[55,6,55,9],[55,11,55,12],[47,1,48,1],[65,17,65,20],[65,26,65,27],[56,26,56,27],[57,26,57,27],[61,17,61,20],[61,22,61,24],[61,26,61,27],[62,7,62,9],[62,11,62,12],[62,17,62,20],[62,22,62,24],[62,26,62,27],[65,21,65,24],[65,6,65,9],[65,11,65,12],[0,3,4,5],[0,18,4,28],[13,4,13,8],[13,18,13,20],[56,22,56,24],[21,7,21,8],[32,7,32,8],[21,4,21,5],[5,0,5,28],[56,11,56,12],[7,7,9,13],[11,4,11,12],[32,4,32,5],[30,4,30,5],[56,7,56,9],[52,17,52,27],[13,23,13,24],[21,12,21,13],[28,19,28,26],[30,21,30,23],[32,21,32,23],[13,11,13,12],[54,0,54,12],[54,17,54,27],[11,1,15,1],[35,1,44,1],[26,1,33,1],[33,10,33,17],[43,10,43,17],[38,3,38,8],[28,3,28,8],[26,19,26,26],[36,19,36,26],[43,3,43,8],[43,19,43,26],[15,18,15,26],[11,18,11,26],[22,19,22,26],[19,19,21,26],[30,10,30,11],[18,1,23,1],[32,10,32,11],[30,12,30,13],[42,15,42,16]]}
[null,null,null,null,null,null,null,null,null,null,null,null,null,null,null,null,null,null,"Subsecretaría de Educación Básica\nDirección General de Desarrollo Curricular\nDirección de Fortalecimiento Curricular para la \nFormación Personal y Social en la Educación Básica\nEducación Especial"]
[]
[]
[]
[]
["Esquema de la distribución presupuestal que se planea ejercer en cada uno de los criterios de los 3 componentes. Favor de llenar sólo la información del monto asignado por Convenio, los GOL, la distribución por tipo de población y la planeación por tipo de población (fondo de celda color lavanda), el resto se calcula solo."]
[]
[null,null,null,null,null,null,null,"Monto asignado por Convenio Marco",null,null,null,null,null,null,null,11765685]
[]
[]
[]
[null,"POR TIPO DE GASTO",null,null,"Monto para acciones sustantivas:",null,null,null,null,null,null,null,null,null,null,null,null,null,"Monto para Gastos de Operación Local:"]
[]
[null,null,null,null,{"$f":"P8-S14","v":11412714.449999999},null,null,null,null,null,null,{"$f":"IFERROR((E14/P8),0)","v":0.97},null,null,null,null,null,null,352970.55,null,null,null,null,{"$f":"IFERROR((S14/P8),0)","v":0.03}]
[]
[null,null,null,null,null,null,null,null,null,null,null,null,null,null,null,null,null,null,{"$f":"IF(X14>3%,\"El porcentaje es mayor que el permitido en RO\",\"El porcentaje esta dentro de lo permitido en RO\")","v":"El porcentaje esta dentro de lo permitido en RO"}]
[]
[]
[null,"POR POBLACIÓN"]
[null,null,null,"Para discapacidad:",null,null,null,null,null,null,"Para aptitudes sobresalientes:",null,null,null,null,null,null,null,null,{"$f":"+P22+H22","v":1}]
[]
[null,null,null,null,6847628.6699999999,null,null,{"$f":"IFERROR((E22/E14),0)","v":0.6},"%",null,null,null,4565085.78,null,null,{"$f":"IFERROR((M22/E14),0)","v":0.4}]
[null,null,null,null,null,null,null,null,null,null,null,null,null,null,null,null,null,null,null,{"$f":" IF((H22+P22)=100%,\"La distribución es correcta\",\"verificar porcentajes para que sume a 100%\")","v":"La distribución es correcta"}]
[]
[]
[]
[null,"POR COMPONENTE EN DIS",null,"Acciones planeadas para beneficiar a población con discapacidad",null,null,null,null,null,null,null,null,null,null,null,null,null,null,{"$f":"+H33+P33+Z33","v":1},{"$f":"IF((H33+P33+Z33)>100%,\"El porcentaje excede el 100%\",\"verificar porcentajes para que sume a 100%\")","v":"verificar porcentajes para que sume a 100%"}]
[]
[null,null,null,"Acciones académicas para agentes educativos en temas de discapacidad (hasta 50%)",null,null,null,null,null,null,"Acciones de atención complementaria para estudiantes con discapacidad (hasta 50%)",null,null,null,null,null,null,null,null,"Equipamiento específico en beneficio de estudiantes con discapacidad (hasta 80%)"]
[]
[null,null,null,"Monto disponible ",{"$f":"E22*0.5","v":3423814.335},null,null,"hasta 50%",null,null,"Monto disponible ",null,{"$f":"E22*0.5","v":3423814.335},null,null,"hasta 50%",null,null,null,"Monto disponible ",null,{"$f":"E22*0.8","v":5478102.9360000007},null,null,null,"hasta 80%"]
[]
[null,null,null,"Monto comprometido",{"$f":"SUM(H57:J58)","v":1022950},null,null,{"$f":"IFERROR((E33/E22),0)","v":0.14938748131621454},"%",null,"Monto comprometido",null,{"$f":"SUM(H62:J63)","v":1161443.54},null,null,{"$f":"IFERROR((M33/E22),0)","v":0.16961251784699943},null,null,null,"Monto comprometido",null,{"$f":"SUM(H67:J77)","v":4663235.13},null,null,null,{"$f":"IFERROR((V33/E22),0)","v":0.68100000083678602}]
[null,null,null,{"$f":"IF(H33>50%,\"El porcentaje es mayor que el permitido en RO\",\"El porcentaje esta dentro de lo permitido en RO\")","v":"El porcentaje esta dentro de lo permitido en RO"},null,null,null,null,null,null,{"$f":"IF(P33>50%,\"El porcentaje es mayor que el permitido en RO\",\"El porcentaje esta dentro de lo permitido en RO\")","v":"El porcentaje esta dentro de lo permitido en RO"},null,null,null,null,null,null,null,null,{"$f":"IF(Z33>80%,\"El porcentaje es mayor que el permitido en RO\",\"El porcentaje esta dentro de lo permitido en RO\")","v":"El porcentaje esta dentro de lo permitido en RO"}]
[]
[null,"POR COMPONENTE EN AS"]
[null,null,null,"Acciones planeadas para beneficiar a población con aptitudes sobresalientes",null,null,null,null,null,null,null,null,null,null,null,null,null,null,{"$f":"+H43+P43+Z43","v":1},{"$f":"IF((H43+P43+Z43)>100%,\"El porcentaje excede el 100%\",\"verificar porcentajes para que sume a 100%\")","v":"verificar porcentajes para que sume a 100%"}]
[]
[null,null,null,"Acciones académicas para agentes educativos en temas de aptitudes sobresalientes (hasta 50%)",null,null,null,null,null,null,"Acciones de atención complementaria para estudiantes con aptitudes sobresalientes (hasta 50%)",null,null,null,null,null,null,null,null,"Equipamiento específico en beneficio de estudiantes con aptitudes sobresalientes (hasta 80%)"]
[]
[null,null,null,"Monto disponible ",{"$f":"M22*0.5","v":2282542.89},null,null,"hasta 50%",null,null,"Monto disponible ",null,{"$f":"M22*0.5","v":2282542.89},null,null,"hasta 50%",null,null,null,"Monto disponible ",null,{"$f":"M22*0.8","v":3652068.6240000003},null,null,null,"hasta 80%"]
[]
[null,null,null,"Monto comprometido",{"$f":"SUM(W57:Y58)","v":1002770},null,null,{"$f":"IFERROR((E43/M22),0)","v":0.21966071358247291},"%",null,"Monto comprometido",null,{"$f":"SUM(W62:Y63)","v":1069697.26},null,null,{"$f":"IFERROR((M43/M22),0)","v":0.23432139318968065},null,null,null,"Monto comprometido",null,{"$f":"SUM(W67:Y71)","v":2492618.52},null,null,null,{"$f":"IFERROR((V43/M22),0)","v":0.54601789322784644}]
[null,null,null,{"$f":"IF(H43>50%,\"El porcentaje es mayor que el permitido en RO\",\"El porcentaje esta dentro de lo permitido en RO\")","v":"El porcentaje esta dentro de lo permitido en RO"},null,null,null,null,null,null,{"$f":"IF(P43>50%,\"El porcentaje es mayor que el permitido en RO\",\"El porcentaje esta dentro de lo permitido en RO\")","v":"El porcentaje esta dentro de lo permitido en RO"},null,null,null,null,null,null,null,null,{"$f":"IF(Z43>80%,\"El porcentaje es mayor que el permitido en RO\",\"El porcentaje esta dentro de lo permitido en RO\")","v":"El porcentaje esta dentro de lo permitido en RO"}]
[]
[]
[]
[null,"BALANCE FINAL ",null,"Remanente de DIS",null,null,{"$f":"+E22-E33-M33-V33","v":0},null,null,null,"Remanente de AS",null,null,null,{"$f":"+M22-E43-M43-V43","v":0},null,null,null,null,null,{"$f":"+E14-O48-G48","v":11412714.449999999}]
[null,null,null,{"$f":"IF(G48=0,\"Su distribución coincide con el subsidio para DIS\",\"revise su planeación\")","v":"Su distribución coincide con el subsidio para DIS"},null,null,null,null,null,null,{"$f":"IF(O48=0,\"Su distribución coincide con el subsidio para AS\",\"revise su planeación\")","v":"Su distribución coincide con el subsidio para AS"},null,null,null,null,null,null,null,null,null,{"$f":"IF((U48-E14)=0,\"Su distribución coincide con el subsidio total\",\"revise su planeación\")","v":"Su distribución coincide con el subsidio total"}]
[]
[]
[]
["Planeación de acciones para beneficio de estudiantes con discapacidad",null,null,null,null,null,null,null,null,null,null,null,null,null,null,null,null,"Planeación de acciones académicas en temas de aptitudes sobresalientes"]
[]
["Componente 1. Acciones académicas para agentes educativos en temas de discapacidad",null,null,null,null,null,null,null,null,null,null,null,null,null,null,null,null,"Componente 1. Acciones académicas para agentes educativos en temas de aptitudes sobresalientes"]
["Criterio",null,null,null,null,null,"Monto comprometido",null,null,null,null,"% respecto al monto autorizado",null,null,null,null,null,"Criterio",null,null,null,"Monto comprometido",null,null,null,null,"% respecto al monto autorizado"]
["1.1 Acciones de actualización y fortalecimiento académico de agentes educativos en temas de discapacidad.",null,null,null,null,null,"$",1022950,null,null,null,{"$f":"IFERROR((H57/$E$31),0)","v":0.29877496263242909},null,null,null,null,null,"1.1 Acciones de actualización y fortalecimiento académico de agentes educativos en temas de aptitudes sobresalientes.",null,null,null,"$",880670,null,null,null,{"$f":"IFERROR((W57/$E$41),0)","v":0.38582845643702229}]
["1.2 Encuentros, cursos, talleres y/o reuniones entre madres y padres de familia o tutores de estudiantes con discapacidad para la conformación y operación de sus redes de apoyo.",null,null,"1.2 Acciones orientadas a sensibilizar, promover, difundir y, desarrollar en la comunidad escolar una cultura inclusiva",null,null,"$",0,null,null,null,{"$f":"IFERROR((H58/$E$31),0)","v":0},null,null,null,null,null,"1.2 Encuentros, cursos, talleres y/o reuniones entre madres y padres de familia o tutores de estudiantes con aptitudes sobresalientes para la conformación y operación de sus redes de apoyo.","1.2 Acciones orientadas a sensibilizar, promover, difundir y, desarrollar en la comunidad escolar una cultura inclusiva",null,null,"$",122100,null,null,null,{"$f":"IFERROR((W58/$E$41),0)","v":5.3492970727923535E-2}]
[]
["Componente 2. Acciones de atención complementaria para estudiantes con discapacidad",null,null,null,null,null,null,null,null,null,null,null,null,null,null,null,null,"Componente 2. Acciones de atención complementaria para estudiantes con aptitudes sobresalientes"]
["Criterio",null,null,null,null,null,"Monto comprometido",null,null,null,null,"% respecto al monto autorizado",null,null,null,null,null,"Criterio",null,null,null,"Monto comprometido",null,null,null,null,"% respecto al monto autorizado"]
["2.1 Acciones orientadas a la intervención directa y la atención complementaria: académica, artística, deportiva, rehabilitadora, desarrollo de habilidades socioafectivas y/o que contribuyan en el diagnóstico de las y los estudiantes con discapacidad.",null,null,null,null,null,"$",0,null,null,null,{"$f":"IFERROR((H62/$M$31),0)","v":0},null,null,null,null,null,"2.1 Acciones orientadas a la intervención directa y la atención complementaria: académica, artística, deportiva, rehabilitadora, desarrollo de habilidades socioafectivas y/o que contribuyan en el diagnóstico de las y los estudiantes con aptitudes sobresalientes. ",null,null,null,"$",1069697.26,null,null,null,{"$f":"IFERROR((W62/$M$41),0)","v":0.4686427863793613}]
["2.2 Acciones orientadas a que las y los estudiantes con discapacidad pongan en práctica las habilidades académicas, artísticas, deportivas, para la vida y/o laborales y que promuevan la sensibilización, promoción, difusión y desarrollo en la comunidad escolar una cultura inclusiva, a través de campañas, ferias y eventos.",null,null,"1.2 Acciones orientadas a sensibilizar, promover, difundir y, desarrollar en la comunidad escolar una cultura inclusiva",null,null,"$",1161443.54,null,null,null,{"$f":"IFERROR((H63/$M$31),0)","v":0.33922503569399887},null,null,null,null,null,"2.2 Acciones orientadas a que las y los estudiantes con aptitudes sobresalientes, pongan en práctica las habilidades académicas, artísticas, deportivas, para la vida y/o laborales y que promuevan la sensibilización, promoción, difusión y desarrollo en la comunidad escolar una cultura inclusiva, a través de campañas, ferias y eventos.","1.2 Acciones orientadas a sensibilizar, promover, difundir y, desarrollar en la comunidad escolar una cultura inclusiva",null,null,"$"," ",null,null,null,{"$f":"IFERROR((W63/$M$41),0)","v":0}]
[]
["Componente 3. Equipamiento específico en beneficio de estudiantes con discapacidad",null,null,null,null,null,null,null,null,null,null,null,null,null,null,null,null,"Componente 3. Equipamiento específico en beneficio de estudiantes con aptitudes sobresalientes"]
["Criterio",null,null,null,null,null,"Monto comprometido",null,null,null,null,"% respecto al monto autorizado",null,"Límite permitido por RO",null,null,null,"Criterio",null,null,null,"Monto comprometido",null,null,null,null,"% respecto al monto autorizado",null,"Límite permitido por RO"]
["3.1 Dotar de material didáctico especializado para estudiantes con discapacidad.",null,null,null,null,null,"$",686043.12,null,null,null,{"$f":"IFERROR((H67/$V$31),0)","v":0.12523370371366821},null,{"$f":"+$V$31*0.4","v":2191241.1744000004},null,null,null,"3.11 Dotar de material didáctico especializado para estudiantes con aptitudes sobresalientes.",null,null,null,"$",677638.02,null,null,null,{"$f":"IFERROR((W67/$V$41),0)","v":0.18554909279273168},null,{"$f":"+$V$41*0.4","v":1460827.4496000002}]
["3.2 Dotar de material bibliográfico para estudiantes con discapacidad.",null,null,null,null,null,"$",34200,null,null,null,6.2430371242662604E-3,null,{"$f":"+$V$31*0.3","v":1643430.8808000002},null,null,null,"3.12 Dotar de material bibliográfico para estudiantes con aptitudes sobresalientes.",null,null,null,"$",719360,null,null,null,{"$f":"IFERROR((W68/$V$41),0)","v":0.19697329761895513},null,{"$f":"+$V$41*0.3","v":1095620.5872}]
["3.3 Dotar de pruebas estandarizadas para estudiantes con discapacidad.",null,null,null,null,null,"$",0,null,null,null,0,null,{"$f":"+$V$31*0.05","v":273905.14680000005},null,null,null,"3.13 Dotar de pruebas estandarizadas para la identificación de las y los estudiantes con aptitudes sobresalientes.",null,null,null,"$",0,null,null,null,{"$f":"IFERROR((W69/$V$41),0)","v":0},null,{"$f":"+$V$41*0.05","v":182603.43120000002}]
["3.4 Diseño, producción e impresión de material en formatos adaptados para favorecer la accesibilidad de estudiantes con discapacidad.",null,null,null,null,null,"$",0,null,null,null,0,null,{"$f":"+$V$31*0.1","v":547810.29360000009},null,null,null,"3.14 Dotar de equipo tecnológico y/o multimedia para estudiantes con aptitudes sobresalientes.",null,null,null,"$",1095620.5,null,null,null,{"$f":"IFERROR((W70/$V$41),0)","v":0.29999997612312113},null,{"$f":"+$V$41*0.3","v":1095620.5872}]
["3.5 Dotar de equipo adaptado, tecnológico y/o multimedia para estudiantes con discapacidad.",null,null,null,null,null,"$",1643430,null,null,null,0.29999983921441226,null,{"$f":"+$V$31*0.3","v":1643430.8808000002},null,null,null,"3.15 Dotar de insumos y materiales consumibles no perecederos que se requieren para apoyar las actividades curriculares y extracurriculares de las y los estudiantes con aptitudes sobresalientes.",null,null,null,"$",0,null,null,null,{"$f":"IFERROR((W71/$V$41),0)","v":0},null,{"$f":"+$V$41*0.05","v":182603.43120000002}]
["3.6 Adquirir equipamiento, herramientas, utensilios, enseres domésticos y aparatos electrónicos que se requieren para impartir talleres laborales que se ofertan en los CAM laboral y con Formación para el Trabajo.",null,null,null,null,null,"$",1308924.8,null,null,null,0.23893760582668977,null,{"$f":"+$V$31*0.4","v":2191241.1744000004},null,null,null,null,null," "]
[]
["3.7 Dotar de insumos y materiales consumibles no perecederos que se requieren en los talleres laborales que se ofertan en los CAM laboral y con Formación para el Trabajo para apoyar las actividades de las y los estudiantes con discapacidad.",null,null,null,null,null,"$",0,null,null,null,{"$f":"IFERROR((H74/$V$31),0)","v":0},null,{"$f":"+$V$31*0.05","v":273905.14680000005}]
["3.8 Adquirir ayudas técnicas para la accesibilidad y movilidad que mejoren las condiciones para el desplazamiento, orientación y comunicación de la o el estudiante con discapacidad.",null,null,null,null,null,"$",0,null,null,null,{"$f":"IFERROR((H75/$V$31),0)","v":0},null,{"$f":"+$V$31*0.3","v":1643430.8808000002}]
["3.9 Dotar de mobiliario ordinario y/o adaptado para las y los estudiantes con discapacidad.",null,null,null,null,null,"$",550637.21,null,null,null,{"$f":"IFERROR((H76/$V$31),0)","v":0.10051603929919288},null,{"$f":"+$V$31*0.3","v":1643430.8808000002}]
["3.10 Adquirir equipamiento y materiales para aulas multisensoriales.",null,null,null,null,null,"$",440000,null,null,null,{"$f":"IFERROR((H77/$V$31),0)","v":8.0319775867753046E-2},null,{"$f":"+$V$31*0.3","v":1643430.8808000002}]

{"sheet":"Servicios EE 2024","index":4,"n_rows":38,"n_cols":21,"rows_kept":38,"cut":false,"hidden":false,"merged":[[20,16,22,16],[20,17,22,17],[20,19,22,19],[20,20,22,20],[20,9,22,9],[20,10,22,10],[20,13,22,13],[20,14,22,14],[20,15,22,15],[20,3,22,3],[20,4,22,4],[20,5,22,5],[20,6,22,6],[20,7,22,7],[38,0,38,19],[14,12,17,12],[15,13,17,13],[15,14,17,14],[15,15,17,15],[15,16,17,16],[15,17,17,17],[15,19,17,19],[24,12,27,12],[25,13,27,13],[25,14,27,14],[15,4,17,4],[15,5,17,5],[25,16,27,16],[14,0,17,0],[15,1,17,1],[12,12,12,20],[32,0,32,19],[33,0,33,19],[25,17,27,17],[25,19,27,19],[25,15,27,15],[13,12,13,20],[15,20,17,20],[25,20,27,20],[13,0,13,10],[23,12,23,20],[18,0,18,10],[18,12,18,20],[19,0,22,0],[19,12,22,12],[20,1,22,1],[7,0,7,9],[9,1,11,1],[9,3,11,3],[9,4,11,4],[9,5,11,5],[9,6,11,6],[9,7,11,7],[9,9,11,9],[34,0,34,19],[35,0,35,19],[36,0,36,19],[37,0,37,19],[25,6,27,6],[25,7,27,7],[25,9,27,9],[24,0,27,0],[0,14,4,20],[5,0,5,20],[15,10,17,10],[25,10,27,10],[23,0,23,10],[25,1,27,1],[25,3,27,3],[25,4,27,4],[25,5,27,5],[15,6,17,6],[15,7,17,7],[15,9,17,9],[15,3,17,3],[8,0,11,0],[12,0,12,10],[0,0,4,2]]}
[null,null,null,null,null,null,null,null,null,null,null,null,null,null,"Subsecretaría de Educación Básica\nDirección General de Desarrollo Curricular\nDirección de Fortalecimiento Curricular para la \nFormación Personal y Social en la Educación Básica\nEducación Especial"]
[]
[]
[]
[]
["Información cuantitativa respecto al número de servicios de educación especial que existen en su entidad y los que serán beneficiados en este año fiscal. En caso de no contar con algún tipo de servicio poner \"0\"."]
[]
["Total de servicios de educación especial en la entidad"]
["Servicios de educación especial públicos que existen en la entidad","USAER","CAM Básico","CAM Laboral","CAPEP","CRIE","UOP","UAEBH","Otro","Total"]
[null,81,0,2,0,0,0,0,1,{"$f":"SUM(B10,C10,C12,D10,E10,F10,G10,H10,I10)","v":112}]
[null,null,"Con FpT",null,null,null,null,null,"(especifique)"]
[null,null,28,null,null,null,null,null,"Centro de Iniciación a la Ciencia y Tecnología"]
["Focalización para población con discapacidad ",null,null,null,null,null,null,null,null,null,null,null,"Focalización para población con aptitudes sobresalientes "]
["Servicios de educación especial focalizados en el componente 1. Acciones académicas para agentes educativos en temas de discapacidad",null,null,null,null,null,null,null,null,null,null,null,"Servicios de educación especial focalizados en el componente 1. Acciones académicas para agentes educativos en temas de aptitudes sobresalientes"]
["Servicios focalizados para beneficiar a través del PFSEE en el año 2024 en el componente 1","USAER","CAM Básico","CAM Laboral","CAPEP","CRIE","UOP","UAEBH","Otro","Total","%",null,"Servicios focalizados para beneficiar a través del PFSEE en el año 2024 en el componente 1","USAER","CAPEP","CRIE","UOP","UAEBH","Otro","Total","%"]
[null,81,0,2,0,0,0,0,0,{"$f":"SUM(B16,C16,C18,D16,E16,F16,G16,H16,I16)","v":111},{"$f":"IFERROR((J16/J10),0)","v":0.9910714285714286},null,null,81,0,0,0,0,1,{"$f":"SUM(N16,O16,P16,Q16,R16,S16)","v":82},{"$f":"IFERROR(T16/((B10+E10+F10+G10+H10+I10)),0)","v":1}]
[null,null,"Con FpT",null,null,null,null,null,"(especifique)",null,null,null,null,null,null,null,null,null,"(especifique)"]
[null,null,28,null,null,null,null,null,"N/A",null,null,null,null,null,null,null,null,null,"Centro de Iniciación a la Ciencia y Tecnología"]
["Servicios de educación especial focalizados en el componente 2. Acciones de atención complementaria para estudiantes con discapacidad",null,null,null,null,null,null,null,null,null,null,null,"Servicios de educación especial focalizados en el componente 2. Acciones de atención complementaria para estudiantes con aptitudes sobresalientes"]
["Servicios focalizados para beneficiar a través del PFSEE en el año 2024 en el componente 2","USAER","CAM Básico","CAM Laboral","CAPEP","CRIE","UOP","UAEBH","Otro","Total","%",null,"Servicios focalizados para beneficiar a través del PFSEE en el año 2024 en el componente 2","USAER","CAPEP","CRIE","UOP","UAEBH","Otro","Total","%"]
[null,0,0,2,0,0,0,0,0,{"$f":"SUM(B21,C21,C23,D21,E21,F21,G21,H21,I21)","v":30},{"$f":"IFERROR((J21/J10),0)","v":0.26785714285714285},null,null,81,0,0,0,0,0,{"$f":"SUM(N21,O21,P21,Q21,R21,S21)","v":81},{"$f":"IFERROR(T21/((B10+E10+F10+G10+H10+I10)),0)","v":0.98780487804878048}]
[null,null,"Con FpT",null,null,null,null,null,"(especifique)",null,null,null,null,null,null,null,null,null,"(especifique)"]
[null,null,28,null,null,null,null,null,"N/A",null,null,null,null,null,null,null,null,null,"N/A"]
["Servicios de educación especial focalizados en el componente 3. Equipamiento específico en beneficio de estudiantes con discapacidad",null,null,null,null,null,null,null,null,null,null,null,"Servicios de educación especial focalizados en el componente 3. Equipamiento específico en beneficio de estudiantes con aptitudes sobresalientes"]
["Servicios focalizados para beneficiar a través del PFSEE en el año 2024 en el componente 3","USAER","CAM Básico","CAM Laboral","CAPEP","CRIE","UOP","UAEBH","Otro","Total","%",null,"Servicios focalizados para beneficiar a través del PFSEE en el año 2024 en el componente 3","USAER","CAPEP","CRIE","UOP","UAEBH","Otro","Total","%"]
[null,81,0,2,0,0,0,0,0,{"$f":"SUM(B26,C26,C28,D26,E26,F26,G26,H26,I26)","v":111},{"$f":"IFERROR((J26/J10),0)","v":0.9910714285714286},null,null,81,0,0,0,0,0,{"$f":"SUM(N26,O26,P26,Q26,R26,S26)","v":81},{"$f":"IFERROR(T26/(B10+E10+F10+G10+H10+I10),0)","v":0.98780487804878048}]
[null,null,"Con FpT",null,null,null,null,null,"(especifique)",null,null,null,null,null,null,null,null,null,"(especifique)"]
[null,null,28,null,null,null,null,null,"N/A",null,null,null,null,null,null,null,null,null,"N/A"]
[]
["*Con FpT: Con Formación para el Trabajo"]
[]
["Para el llenado de esta hoja de Excel considerar los siguientes puntos:"]
["a) En la tabla superior se reporta la totalidad de servicios y en las siguientes tres, únicamente los que serán beneficiados por el PFSEE en este 2024, por criterio general de gasto."]
["b) En \"CAM Básico\" se reportan los centros que ofrecen educación básica, que no cuentan con formación para el trabajo."]
["c) En \"Con FpT\" se reportan los CAM Básicos que además de la educación básica, cuentan con talleres de formación para el trabajo."]
["d) En \"CAM Laboral\" se reportan únicamente los centros dedicados a la formación laboral o para el trabajo."]
["e) Cuidar de no repetir los datos, pues entre lo reportado en CAM Básico, Con FpT y CAM Laboral, debe sumar la totalidad de los CAM en su entidad."]
["f) Si en su entidad cuenta con otro tipo de servicio no considerado en la tabla, reportar la cantidad en \"Otro\" y anotar su nombre en el apartado \"(especifique)\"."]

{"sheet":"Población total en la entidad","index":5,"n_rows":45,"n_cols":36,"rows_kept":45,"cut":false,"hidden":false,"merged":[[8,25,8,27],[33,0,33,21],[7,0,9,0],[7,1,7,15],[7,16,7,18],[7,19,7,27],[8,19,8,21],[12,29,12,31],[12,33,12,35],[24,31,25,33],[15,29,15,35],[16,29,16,31],[16,33,16,35],[19,29,19,35],[20,29,20,31],[20,33,20,35],[0,0,4,4],[0,30,4,36],[5,0,5,36],[6,0,6,35],[8,4,8,6],[8,1,8,3],[8,16,9,16],[8,17,9,17],[8,13,8,15],[8,10,8,12],[8,18,9,18],[8,29,8,35],[9,29,9,31],[9,33,9,35],[8,7,8,9],[8,22,8,24],[44,10,44,12],[43,10,43,12],[34,13,34,15],[34,16,34,18],[34,19,34,21],[38,10,38,12],[39,10,39,12],[40,10,40,12],[41,10,41,12],[42,10,42,12],[37,10,37,12],[36,10,36,12]]}
[null,null,null,null,null,null,null,null,null,null,null,null,null,null,null,null,null,null,null,null,null,null,null,null,null,null,null,null,null,null,"Subsecretaría de Educación Básica\nDirección General de Desarrollo Curricular\nDirección de Fortalecimiento Curricular para la \nFormación Personal y Social en la Educación Básica\nEducación Especial"]
[]
[]
[]
[]
["Información cuantitativa respecto a la población que atienden los servicios de educación especial, en su entidad, por sexo y tipo de condición:"]
["Población total atendida por los servicios de educación especial"]
["Condición","Población atendida por condición y por SEE",null,null,null,null,null,null,null,null,null,null,null,null,null,null,"Población total atendida",null,null,"De la población total reportada por condición, especifique si se trata de alguna de las siguientes poblaciones."]
[null,"USAER",null,null,"CAM básico",null,null,"CAM básico con FpT",null,null,"CAM laboral",null,null,"Otro",null,null,"M","H","TOTAL","Población indígena",null,null,"Población afrodescendiente",null,null,"Población migrante",null,null,null,"Estudiantes atendidos"]
[null,"M","H","TOTAL","M","H","TOTAL","M","H","TOTAL","M","H","TOTAL","M","H","TOTAL",null,null,null,"M","H","TOTAL","M","H","TOTAL","M","H","TOTAL",null,"CAPEP",null,null,null,"UAEBH"]
["Ceguera",7,13,{"$f":"SUM(B11:C11)","v":20},0,0,{"$f":"SUM(E11:F11)","v":0},5,5,{"$f":"SUM(H11:I11)","v":10},0,1,{"$f":"SUM(K11:L11)","v":1},0,0,{"$f":"SUM(N11:O11)","v":0},{"$f":"SUM(B11,E11,H11,K11,N11)","v":12},{"$f":"SUM(C11,F11,I11,L11,O11)","v":19},{"$f":"SUM(Q11,R11)","v":31},0,0,{"$f":"SUM(T11,U11)","v":0},0,0,{"$f":"SUM(W11,X11)","v":0},0,0,{"$f":"SUM(Z11,AA11)","v":0},null,"M","H","TOTAL",null,"M","H","TOTAL"]
["Baja Visión",33,60,{"$f":"SUM(B12:C12)","v":93},0,0,{"$f":"SUM(E12:F12)","v":0},3,2,{"$f":"SUM(H12:I12)","v":5},0,0,{"$f":"SUM(K12:L12)","v":0},0,0,{"$f":"SUM(N12:O12)","v":0},{"$f":"SUM(B12,E12,H12,K12,N12)","v":36},{"$f":"SUM(C12,F12,I12,L12,O12)","v":62},{"$f":"SUM(Q12,R12)","v":98},0,0,{"$f":"SUM(T12,U12)","v":0},0,0,{"$f":"SUM(W12,X12)","v":0},0,0,{"$f":"SUM(Z12,AA12)","v":0},null,0,0,{"$f":"SUM(AD12,AE12)","v":0},null,0,0,{"$f":"SUM(AH12,AI12)","v":0}]
["Sordera",8,13,21,0,0,0,5,7,12,1,1,2,0,0,0,14,21,35,0,0,0,0,0,0,0,0,0,null,"CRIE",null,null,null,"UOP"]
["Hipoacusia",51,59,110,0,0,0,11,7,18,0,0,0,0,0,0,62,66,128,0,0,0,0,0,0,0,0,0,null,"M","H","TOTAL",null,"M","H","TOTAL"]
["Sordoceguera",0,0,0,0,0,0,0,0,0,0,0,0,0,0,0,0,0,0,0,0,0,0,0,0,0,0,0,null,0,0,{"$f":"SUM(AD15,AE15)","v":0},null,0,0,{"$f":"SUM(AH15,AI15)","v":0}]
["Motriz",63,93,156,0,0,0,44,63,107,1,2,3,0,0,0,108,158,266,0,0,0,0,0,0,0,0,0,null,"Personal docente y/o directivos atendidos"]
["Intelectual",265,363,628,0,0,0,355,481,836,47,48,95,0,0,0,667,892,1559,0,0,0,0,0,0,0,0,0,null,"CRIE",null,null,null,"UOP"]
["Psicosocial",3,4,7,0,0,0,6,5,11,0,2,2,0,0,0,9,11,20,0,0,0,0,0,0,0,0,0,null,"M","H","TOTAL",null,"M","H","TOTAL"]
["Espectro autista",62,390,452,0,0,0,50,161,211,1,5,6,0,0,0,113,556,669,0,0,0,0,0,0,0,0,0,null,0,0,{"$f":"SUM(AD19,AE19)","v":0},null,0,0,{"$f":"SUM(AH19,AI19)","v":0}]
["Múltiple",32,21,53,0,0,0,80,109,189,4,4,8,0,0,0,116,134,250,0,0,0,0,0,0,0,0,0,null,"Familias y/o público en general atendidos"]
["TDA TDA-H",133,715,848,0,0,0,7,29,36,0,4,4,0,0,0,140,748,888,0,0,0,0,0,0,0,0,0,null,"CRIE",null,null,null,"UOP"]
["AS Intelectual",179,220,399,{"$f":"SUM(E11:E21)","v":0},{"$f":"SUM(F11:F21)","v":0},{"$f":"SUM(G11:G21)","v":0},566,869,1435,54,67,{"$f":"SUM(K22,L22)","v":121},58,109,167,{"$f":"SUM(B22,N22)","v":237},329,566,0,0,0,0,0,0,0,0,0,null,"M","H","TOTAL",null,"M","H","TOTAL"]
["AS Creativa",208,224,432,null,null,null,null,null,null,null,null,null,0,0,0,208,224,432,0,0,0,0,0,0,0,0,0,null,0,0,{"$f":"SUM(AD23,AE23)","v":0},null,0,0,{"$f":"SUM(AH23,AI23)","v":0}]
["AS Artística",86,56,142,null,null,null,null,null,null,null,null,null,0,0,0,86,56,142,0,0,0,0,0,0,0,0,0]
["AS Psicomotriz",15,37,52,null,null,null,null,null,null,null,null,null,0,0,0,15,37,52,0,0,0,0,0,0,0,0,0,null,null,null,"Total de estudiantes atendidos"]
["AS Socioafectiva",34,24,58,null,null,null,null,null,null,null,null,null,0,0,0,34,24,58,0,0,0,0,0,0,0,0,0]
["Totales",{"$f":"SUM(B11:B26)","v":1179},{"$f":"SUM(C11:C26)","v":2292},{"$f":"SUM(B27,C27)","v":3471},null,null,null,null,null,null,null,null,null,{"$f":"SUM(N11:N26)","v":58},{"$f":"SUM(O11:O26)","v":109},167,{"$f":"SUM(B27,K22,H22,E22,N27)","v":1857},{"$f":"SUM(C27,F22,I22,L22,O27)","v":3337},{"$f":"SUM(Q27,R27)","v":5194},{"$f":"SUM(T11:T26)","v":0},{"$f":"SUM(U11:U26)","v":0},{"$f":"SUM(T27,U27)","v":0},{"$f":"SUM(W11:W26)","v":0},{"$f":"SUM(X11:X26)","v":0},{"$f":"SUM(W27,X27)","v":0},{"$f":"SUM(Z11:Z26)","v":0},{"$f":"SUM(AA11:AA26)","v":0},{"$f":"SUM(Z27,AA27)","v":0},null,null,null,"M","H","Total"]
[null,null,null,null,null,null,null,null,null,null,null,null,null,null,null,null,null,null,null,null,null,null,null,null,null,null,null,null,null,null,null,{"$f":"SUM(Q27,AD12,AH12,AD15,AH15)","v":1857},{"$f":"SUM(R27,AE12,AI12,AE15,AI15)","v":3337},{"$f":"SUM(AF28,AG28)","v":5194}]
[]
["AS: Aptitudes sobresalientes",null,null,null,null,null,"TDA: Trastorno por Déficit de Atención",null,null,"TDA: Trastorno por Déficit de Atención"]
[null,null,null,null,null,null,"TDA-H: Trastorno por Déficit de Atención e Hiperactividad",null,null,"TDA-H: Trastorno por Déficit de Atención e Hiperactividad"]
[]
[]
["Personal total en los servicios de educación especial",null,null,null,null,null,null,null,null,null,null,null,null,null,null,null,null,null,null,null,null,null,null,"Personal docente: maestra(o) de grupo, docente de taller."]
[null,null,null,null,null,null,null,null,null,null,null,null,null,"Personal docente",null,null,"Personal paradocente",null,null,"Personal administrativo",null,null,null,"Personal paradocente: equipo de apoyo, niñera, médica (o), enfermera (o)."]
[null,null,null,null,null,null,null,null,null,null,null,null,null,"M","H","TOTAL","M","H","TOTAL","M","H","TOTAL",null,"Personal administrativo: secretaria (o), asistente, chofer, limpieza."]
[null,"M","H","TOTAL",null,null,null,null,null,null,"USAER",null,null,485,96,{"$f":"SUM(N37:O37)","v":581},114,13,{"$f":"SUM(Q37:R37)","v":127},69,20,{"$f":"SUM(T37:U37)","v":89}]
["Supervisores",9,5,{"$f":"SUM(B38:C38)","v":14},null,null,null,null,null,null,"CAM básico",null,null,0,0,{"$f":"SUM(N38:O38)","v":0},0,0,{"$f":"SUM(Q38:R38)","v":0},0,0,{"$f":"SUM(T38:U38)","v":0}]
["ATP",14,5,{"$f":"SUM(B39:C39)","v":19},null,null,null,null,null,null,"CAM básico con FpT",null,null,262,75,337,143,18,161,100,50,150]
["Directivas (os)",81,31,{"$f":"SUM(B40:C40)","v":112},null,null,null,null,null,null,"CAM laboral",null,null,23,20,43,6,3,9,8,18,26]
[null,null,null,null,null,null,null,null,null,null,"CAPEP",null,null,0,0,0,0,0,0,0,0,0]
[null,null,null,null,null,null,null,null,null,null,"CRIE",null,null,0,0,0,0,0,0,0,0,0]
[null,null,null,null,null,null,null,null,null,null,"UOP",null,null,0,0,0,0,0,0,0,0,0]
[null,null,null,null,null,null,null,null,null,null,"UAEBH",null,null,0,0,0,0,0,0,0,0,0]
[null,null,null,null,null,null,null,null,null,"Otro","Centro de Iniciación a la Ciencia y la Tecnología",null,null,4,4,8,0,0,0,0,2,2]

{"sheet":"Población beneficiaria DIS","index":6,"n_rows":76,"n_cols":36,"rows_kept":76,"cut":false,"hidden":false,"merged":[[47,0,48,27],[70,0,71,27],[8,16,8,18],[30,16,30,18],[30,19,30,27],[9,19,9,21],[30,0,32,0],[30,1,30,15],[8,1,8,15],[8,0,10,0],[8,19,8,27],[31,1,31,3],[31,4,31,6],[31,10,31,12],[31,16,32,16],[31,7,31,9],[31,13,31,15],[31,17,32,17],[54,19,54,21],[54,22,54,24],[54,25,54,27],[31,18,32,18],[52,0,52,35],[54,1,54,3],[54,4,54,6],[54,7,54,9],[54,10,54,12],[54,13,54,15],[54,16,55,16],[54,17,55,17],[54,18,55,18],[54,29,54,35],[0,30,4,36],[5,0,5,36],[0,0,4,4],[9,1,9,3],[9,4,9,6],[9,10,9,12],[9,16,10,16],[7,0,7,35],[9,29,9,35],[10,29,10,31],[10,33,10,35],[9,22,9,24],[9,25,9,27],[13,29,13,31],[13,33,13,35],[9,17,10,17],[9,18,10,18],[29,0,29,35],[9,7,9,9],[25,31,26,33],[16,29,16,35],[17,29,17,31],[17,33,17,35],[20,29,20,35],[21,29,21,31],[21,33,21,35],[9,13,9,15],[25,0,26,27],[43,29,43,31],[43,33,43,35],[47,31,48,33],[35,29,35,31],[35,33,35,35],[38,29,38,35],[39,29,39,31],[39,33,39,35],[42,29,42,35],[31,29,31,35],[32,29,32,31],[32,33,32,35],[31,19,31,21],[31,22,31,24],[31,25,31,27],[55,29,55,31],[55,33,55,35],[53,0,55,0],[53,1,53,15],[53,16,53,18],[53,19,53,27],[65,29,65,35],[66,29,66,31],[66,33,66,35],[70,31,71,33],[58,29,58,31],[58,33,58,35],[61,29,61,35],[62,29,62,31],[62,33,62,35]]}
[null,null,null,null,null,null,null,null,null,null,null,null,null,null,null,null,null,null,null,null,null,null,null,null,null,null,null,null,null,null,"Subsecretaría de Educación Básica\nDirección General de Desarrollo Curricular\nDirección de Fortalecimiento Curricular para la \nFormación Personal y Social en la Educación Básica\nEducación Especial"]
[]
[]
[]
[]
["Información cuantitativa respecto a la población con discapacidad que atienden los servicios de educación especial focalizados, en su entidad, por sexo y tipo de condición:"]
[]
["Población con discapacidad atendida por los servicios de educación especial focalizados en el componente 1 para beneficiar en 2024"]
["Condición","Beneficiarias/os por condición y por SEE",null,null,null,null,null,null,null,null,null,null,null,null,null,null,"Población total beneficiaria",null,null,"De la población total reportada por condición, especifique si se trata de alguna de las siguientes poblaciones."]
[null,"USAER",null,null,"CAM básico",null,null,"CAM básico con FpT",null,null,"CAM laboral",null,null,"Otro",null,null,"M","H","TOTAL","Población indígena",null,null,"Población afrodescendiente",null,null,"Población migrante",null,null,null,"Estudiantes focalizados discapacidad"]
[null,"M","H","TOTAL","M","H","TOTAL","M","H","TOTAL","M","H","TOTAL","M","H","TOTAL",null,null,null,"M","H","TOTAL","M","H","TOTAL","M","H","TOTAL",null,"CAPEP",null,null,null,"UAEBH"]
["Ceguera",7,13,{"$f":"SUM(B12:C12)","v":20},0,0,{"$f":"SUM(E12:F12)","v":0},5,5,{"$f":"SUM(H12:I12)","v":10},0,1,{"$f":"SUM(K12:L12)","v":1},0,0,{"$f":"SUM(N12:O12)","v":0},{"$f":"SUM(B12,E12,H12,K12,N12)","v":12},{"$f":"SUM(C12,F12,I12,L12,O12)","v":19},{"$f":"SUM(Q12,R12)","v":31},0,0,{"$f":"SUM(T12,U12)","v":0},0,0,{"$f":"SUM(W12,X12)","v":0},0,0,{"$f":"SUM(Z12,AA12)","v":0},null,"M","H","TOTAL",null,"M","H","TOTAL"]
["Baja Visión",33,60,{"$f":"SUM(B13:C13)","v":93},0,0,{"$f":"SUM(E13:F13)","v":0},3,2,{"$f":"SUM(H13:I13)","v":5},0,0,{"$f":"SUM(K13:L13)","v":0},0,0,{"$f":"SUM(N13:O13)","v":0},{"$f":"SUM(B13,E13,H13,K13,N13)","v":36},{"$f":"SUM(C13,F13,I13,L13,O13)","v":62},{"$f":"SUM(Q13,R13)","v":98},0,0,{"$f":"SUM(T13,U13)","v":0},0,0,{"$f":"SUM(W13,X13)","v":0},0,0,{"$f":"SUM(Z13,AA13)","v":0},null,0,0,{"$f":"SUM(AD13,AE13)","v":0},null,0,0,{"$f":"SUM(AH13,AI13)","v":0}]
["Sordera",8,13,21,0,0,0,5,7,12,1,1,2,0,0,0,14,21,35,0,0,0,0,0,0,0,0,0,null,"CRIE",null,null,null,"UOP"]
["Hipoacusia",51,59,110,0,0,0,11,7,18,0,0,0,0,0,0,62,66,128,0,0,0,0,0,0,0,0,0,null,"M","H","TOTAL",null,"M","H","TOTAL"]
["Sordoceguera",0,0,0,0,0,0,0,0,0,0,0,0,0,0,0,0,0,0,0,0,0,0,0,0,0,0,0,null,0,0,{"$f":"SUM(AD16,AE16)","v":0},null,0,0,{"$f":"SUM(AH16,AI16)","v":0}]
["Motriz",63,93,156,0,0,0,44,63,107,1,2,3,0,0,0,108,158,266,0,0,0,0,0,0,0,0,0,null,"Personal docente y/o directivos focalizados"]
["Intelectual",265,363,628,0,0,0,355,481,836,47,48,95,0,0,0,667,892,1559,0,0,0,0,0,0,0,0,0,null,"CRIE",null,null,null,"UOP"]
["Psicosocial",3,4,7,0,0,0,6,5,11,0,2,2,0,0,0,9,11,20,0,0,0,0,0,0,0,0,0,null,"M","H","TOTAL",null,"M","H","TOTAL"]
["Espectro autista",62,390,452,0,0,0,50,161,211,1,5,6,0,0,0,113,556,669,0,0,0,0,0,0,0,0,0,null,0,0,{"$f":"SUM(AD20,AE20)","v":0},null,0,0,{"$f":"SUM(AH20,AI20)","v":0}]
["Múltiple",32,21,53,0,0,0,80,109,189,4,4,8,0,0,0,116,134,250,0,0,0,0,0,0,0,0,0,null,"Familias y/o público en general focalizados"]
["TDA TDA-H",133,715,848,0,0,0,7,29,36,0,4,4,0,0,0,140,748,888,0,0,0,0,0,0,0,0,0,null,"CRIE",null,null,null,"UOP"]
["Totales",{"$f":"SUM(B12:B22)","v":657},{"$f":"SUM(C12:C22)","v":1731},{"$f":"SUM(B23:C23)","v":2388},{"$f":"SUM(E12:E22)","v":0},{"$f":"SUM(F12:F22)","v":0},{"$f":"SUM(E23,F23)","v":0},{"$f":"SUM(H12:H22)","v":566},{"$f":"SUM(I12:I22)","v":869},{"$f":"SUM(H23,I23)","v":1435},{"$f":"SUM(K12:K22)","v":54},{"$f":"SUM(L12:L22)","v":67},{"$f":"SUM(K23:L23)","v":121},{"$f":"SUM(N12:N22)","v":0},{"$f":"SUM(O12:O22)","v":0},{"$f":"SUM(N23:O23)","v":0},{"$f":"SUM(B23,E23,H23,K23,N23)","v":1277},{"$f":"SUM(C23,F23,I23,L23,O23)","v":2667},{"$f":"SUM(Q23,R23)","v":3944},{"$f":"SUM(T12:T22)","v":0},{"$f":"SUM(U12:U22)","v":0},{"$f":"SUM(T23,U23)","v":0},{"$f":"SUM(W12:W22)","v":0},{"$f":"SUM(X12:X22)","v":0},{"$f":"SUM(W23,X23)","v":0},{"$f":"SUM(Z12:Z22)","v":0},{"$f":"SUM(AA12:AA22)","v":0},{"$f":"SUM(Z23,AA23)","v":0},null,"M","H","TOTAL",null,"M","H","TOTAL"]
[null,null,null,null,null,null,null,null,null,null,null,null,null,null,null,null,null,null,null,null,null,null,null,null,null,null,null,null,null,0,0,{"$f":"SUM(AD24,AE24)","v":0},null,0,0,{"$f":"SUM(AH24,AI24)","v":0}]
[]
["Verificar que la población reportada en CAPEP, CRIE, UOP y UAEBH con discapacidad, al sumarla con la reportada en AS sea correspondiente con lo registrado en la pestaña de Población total.",null,null,null,null,null,null,null,null,null,null,null,null,null,null,null,null,null,null,null,null,null,null,null,null,null,null,null,null,null,null,"Total de estudiantes con discapacidad focalizados"]
[]
[null,null,null,null,null,null,null,null,null,null,null,null,null,null,null,null,null,null,null,null,null,null,null,null,null,null,null,null,null,null,null,"M","H","Total"]
[null,null,null,null,null,null,null,null,null,null,null,null,null,null,null,null,null,null,null,null,null,null,null,null,null,null,null,null,null,null,null,{"$f":"SUM(Q23,AD13,AH13,AD16,AH16)","v":1277},{"$f":"SUM(R23,AE13,AI13,AE16,AI16)","v":2667},{"$f":"SUM(AF29,AG29)","v":3944}]
["Población con discapacidad atendida por los servicios de educación especial focalizados en el componente 2 para beneficiar en 2024"]
["Condición","Beneficiarias/os por condición y por SEE",null,null,null,null,null,null,null,null,null,null,null,null,null,null,"Población total beneficiaria",null,null,"De la población total reportada por condición, especifique si se trata de alguna de las siguientes poblaciones."]
[null,"USAER",null,null,"CAM básico",null,null,"CAM básico con FpT",null,null,"CAM laboral",null,null,"Otro",null,null,"M","H","TOTAL","Población indígena",null,null,"Población afrodescendiente",null,null,"Población migrante",null,null,null,"Estudiantes focalizados discapacidad"]
[null,"M","H","TOTAL","M","H","TOTAL","M","H","TOTAL","M","H","TOTAL","M","H","TOTAL",null,null,null,"M","H","TOTAL","M","H","TOTAL","M","H","TOTAL",null,"CAPEP",null,null,null,"UAEBH"]
["Ceguera",0,0,{"$f":"SUM(B34:C34)","v":0},0,0,{"$f":"SUM(E34:F34)","v":0},5,3,{"$f":"SUM(H34:I34)","v":8},0,1,{"$f":"SUM(K34:L34)","v":1},0,0,{"$f":"SUM(N34:O34)","v":0},{"$f":"SUM(B34,E34,H34,K34,N34)","v":5},{"$f":"SUM(C34,F34,I34,L34,O34)","v":4},{"$f":"SUM(Q34,R34)","v":9},0,0,{"$f":"SUM(T34,U34)","v":0},0,0,{"$f":"SUM(W34,X34)","v":0},0,0,{"$f":"SUM(Z34,AA34)","v":0},null,"M","H","TOTAL",null,"M","H","TOTAL"]
["Baja Visión",0,0,{"$f":"SUM(B35:C35)","v":0},0,0,{"$f":"SUM(E35:F35)","v":0},3,1,{"$f":"SUM(H35:I35)","v":4},0,0,{"$f":"SUM(K35:L35)","v":0},0,0,{"$f":"SUM(N35:O35)","v":0},{"$f":"SUM(B35,E35,H35,K35,N35)","v":3},{"$f":"SUM(C35,F35,I35,L35,O35)","v":1},{"$f":"SUM(Q35,R35)","v":4},0,0,{"$f":"SUM(T35,U35)","v":0},0,0,{"$f":"SUM(W35,X35)","v":0},0,0,{"$f":"SUM(Z35,AA35)","v":0},null,0,0,{"$f":"SUM(AD35,AE35)","v":0},null,0,0,{"$f":"SUM(AH35,AI35)","v":0}]
["Sordera",0,0,0,0,0,0,5,4,9,1,1,2,0,0,0,6,5,11,0,0,0,0,0,0,0,0,0,null,"CRIE",null,null,null,"UOP"]
["Hipoacusia",0,0,0,0,0,0,11,4,15,0,0,0,0,0,0,11,4,15,0,0,0,0,0,0,0,0,0,null,"M","H","TOTAL",null,"M","H","TOTAL"]
["Sordoceguera",0,0,0,0,0,0,0,0,0,0,0,0,0,0,0,0,0,0,0,0,0,0,0,0,0,0,0,null,0,0,{"$f":"SUM(AD38,AE38)","v":0},null,0,0,{"$f":"SUM(AH38,AI38)","v":0}]
["Motriz",0,0,0,0,0,0,40,63,103,1,2,3,0,0,0,41,65,106,0,0,0,0,0,0,0,0,0,null,"Personal docente y/o directivos focalizados"]
["Intelectual",0,0,0,0,0,0,223,359,582,20,21,41,0,0,0,243,380,623,0,0,0,0,0,0,0,0,0,null,"CRIE",null,null,null,"UOP"]
["Psicosocial",0,0,0,0,0,0,6,5,11,0,2,2,0,0,0,6,7,13,0,0,0,0,0,0,0,0,0,null,"M","H","TOTAL",null,"M","H","TOTAL"]
["Espectro autista",0,0,0,0,0,0,40,100,140,1,5,6,0,0,0,41,105,146,0,0,0,0,0,0,0,0,0,null,0,0,{"$f":"SUM(AD42,AE42)","v":0},null,0,0,{"$f":"SUM(AH42,AI42)","v":0}]
["Múltiple",0,0,0,0,0,0,50,30,80,4,4,8,0,0,0,54,34,88,0,0,0,0,0,0,0,0,0,null,"Familias y/o público en general focalizados"]
["TDA TDA-H",0,0,0,0,0,0,7,20,27,0,4,4,0,0,0,7,24,31,0,0,0,0,0,0,0,0,0,null,"CRIE",null,null,null,"UOP"]
["Totales",{"$f":"SUM(B34:B44)","v":0},{"$f":"SUM(C34:C44)","v":0},{"$f":"SUM(B45:C45)","v":0},{"$f":"SUM(E34:E44)","v":0},{"$f":"SUM(F34:F44)","v":0},{"$f":"SUM(E45,F45)","v":0},{"$f":"SUM(H34:H44)","v":390},{"$f":"SUM(I34:I44)","v":589},{"$f":"SUM(H45,I45)","v":979},{"$f":"SUM(K34:K44)","v":27},{"$f":"SUM(L34:L44)","v":40},{"$f":"SUM(K45:L45)","v":67},{"$f":"SUM(N34:N44)","v":0},{"$f":"SUM(O34:O44)","v":0},{"$f":"SUM(N45:O45)","v":0},{"$f":"SUM(B45,E45,H45,K45,N45)","v":417},{"$f":"SUM(C45,F45,I45,L45,O45)","v":629},1046,{"$f":"SUM(T34:T44)","v":0},{"$f":"SUM(U34:U44)","v":0},0,{"$f":"SUM(W34:W44)","v":0},{"$f":"SUM(X34:X44)","v":0},0,{"$f":"SUM(Z34:Z44)","v":0},{"$f":"SUM(AA34:AA44)","v":0},0,null,"M","H","TOTAL",null,"M","H","TOTAL"]
[null,null,null,null,null,null,null,null,null,null,null,null,null,null,null,null,null,null,null,null,null,null,null,null,null,null,null,null,null,0,0,{"$f":"SUM(AD46,AE46)","v":0},null,0,0,{"$f":"SUM(AH46,AI46)","v":0}]
[]
["Verificar que la población reportada en CAPEP, CRIE, UOP y UAEBH con discapacidad, al sumarla con la reportada en AS sea correspondiente con lo registrado en la pestaña de Población total.",null,null,null,null,null,null,null,null,null,null,null,null,null,null,null,null,null,null,null,null,null,null,null,null,null,null,null,null,null,null,"Total de estudiantes con discapacidad focalizados"]
[]
[null,null,null,null,null,null,null,null,null,null,null,null,null,null,null,null,null,null,null,null,null,null,null,null,null,null,null,null,null,null,null,"M","H","Total"]
[null,null,null,null,null,null,null,null,null,null,null,null,null,null,null,null,null,null,null,null,null,null,null,null,null,null,null,null,null,null,null,{"$f":"SUM(Q45,AD35,AH35,AD38,AH38)","v":417},{"$f":"SUM(R45,AE35,AI35,AE38,AI38)","v":629},{"$f":"SUM(AF51,AG51)","v":1046}]
[]
["Población con discapacidad atendida por los servicios de educación especial focalizados en el componente 3 para beneficiar en 2024"]
["Condición","Beneficiarias/os por condición y por SEE",null,null,null,null,null,null,null,null,null,null,null,null,null,null,"Población total beneficiaria",null,null,"De la población total reportada por condición, especifique si se trata de alguna de las siguientes poblaciones."]
[null,"USAER",null,null,"CAM básico",null,null,"CAM básico con FpT",null,null,"CAM laboral",null,null,"Otro",null,null,"M","H","TOTAL","Población indígena",null,null,"Población afrodescendiente",null,null,"Población migrante",null,null,null,"Estudiantes focalizados discapacidad"]
[null,"M","H","TOTAL","M","H","TOTAL","M","H","TOTAL","M","H","TOTAL","M","H","TOTAL",null,null,null,"M","H","TOTAL","M","H","TOTAL","M","H","TOTAL",null,"CAPEP",null,null,null,"UAEBH"]
["Ceguera",7,13,{"$f":"SUM(B57:C57)","v":20},0,0,{"$f":"SUM(E57:F57)","v":0},5,5,{"$f":"SUM(H57:I57)","v":10},0,1,{"$f":"SUM(K57:L57)","v":1},0,0,{"$f":"SUM(N57:O57)","v":0},{"$f":"SUM(B57,E57,H57,K57,N57)","v":12},{"$f":"SUM(C57,F57,I57,L57,O57)","v":19},{"$f":"SUM(Q57,R57)","v":31},0,0,{"$f":"SUM(T57,U57)","v":0},0,0,{"$f":"SUM(W57,X57)","v":0},0,0,{"$f":"SUM(Z57,AA57)","v":0},null,"M","H","TOTAL",null,"M","H","TOTAL"]
["Baja Visión",33,60,{"$f":"SUM(B58:C58)","v":93},0,0,{"$f":"SUM(E58:F58)","v":0},3,2,{"$f":"SUM(H58:I58)","v":5},0,0,{"$f":"SUM(K58:L58)","v":0},0,0,{"$f":"SUM(N58:O58)","v":0},{"$f":"SUM(B58,E58,H58,K58,N58)","v":36},{"$f":"SUM(C58,F58,I58,L58,O58)","v":62},{"$f":"SUM(Q58,R58)","v":98},0,0,{"$f":"SUM(T58,U58)","v":0},0,0,{"$f":"SUM(W58,X58)","v":0},0,0,{"$f":"SUM(Z58,AA58)","v":0},null,0,0,{"$f":"SUM(AD58,AE58)","v":0},null,0,0,{"$f":"SUM(AH58,AI58)","v":0}]
["Sordera",8,13,21,0,0,0,5,7,12,1,1,2,0,0,0,14,21,35,0,0,0,0,0,0,0,0,0,null,"CRIE",null,null,null,"UOP"]
["Hipoacusia",51,59,110,0,0,0,11,7,18,0,0,0,0,0,0,62,66,128,0,0,0,0,0,0,0,0,0,null,"M","H","TOTAL",null,"M","H","TOTAL"]
["Sordoceguera",0,0,0,0,0,0,0,0,0,0,0,0,0,0,0,0,0,0,0,0,0,0,0,0,0,0,0,null,0,0,{"$f":"SUM(AD61,AE61)","v":0},null,0,0,{"$f":"SUM(AH61,AI61)","v":0}]
["Motriz",63,93,156,0,0,0,44,63,107,1,2,3,0,0,0,108,158,266,0,0,0,0,0,0,0,0,0,null,"Personal docente y/o directivos focalizados"]
["Intelectual",265,363,628,0,0,0,355,481,836,47,48,95,0,0,0,667,892,1559,0,0,0,0,0,0,0,0,0,null,"CRIE",null,null,null,"UOP"]
["Psicosocial",3,4,7,0,0,0,6,5,11,0,2,2,0,0,0,9,11,20,0,0,0,0,0,0,0,0,0,null,"M","H","TOTAL",null,"M","H","TOTAL"]
["Espectro autista",62,390,452,0,0,0,50,161,211,1,5,6,0,0,0,113,556,669,0,0,0,0,0,0,0,0,0,null,0,0,{"$f":"SUM(AD65,AE65)","v":0},null,0,0,{"$f":"SUM(AH65,AI65)","v":0}]
["Múltiple",32,21,53,0,0,0,80,109,189,4,4,8,0,0,0,116,134,250,0,0,0,0,0,0,0,0,0,null,"Familias y/o público en general focalizados"]
["TDA TDA-H",133,715,848,0,0,0,7,29,36,0,4,4,0,0,0,140,748,888,0,0,0,0,0,0,0,0,0,null,"CRIE",null,null,null,"UOP"]
["Totales",{"$f":"SUM(B57:B67)","v":657},{"$f":"SUM(C57:C67)","v":1731},{"$f":"SUM(B68:C68)","v":2388},{"$f":"SUM(E57:E67)","v":0},{"$f":"SUM(F57:F67)","v":0},{"$f":"SUM(E68,F68)","v":0},{"$f":"SUM(H57:H67)","v":566},{"$f":"SUM(I57:I67)","v":869},{"$f":"SUM(H68,I68)","v":1435},{"$f":"SUM(K57:K67)","v":54},{"$f":"SUM(L57:L67)","v":67},{"$f":"SUM(K68:L68)","v":121},{"$f":"SUM(N57:N67)","v":0},{"$f":"SUM(O57:O67)","v":0},{"$f":"SUM(N68:O68)","v":0},{"$f":"SUM(B68,E68,H68,K68,N68)","v":1277},{"$f":"SUM(C68,F68,I68,L68,O68)","v":2667},3944,{"$f":"SUM(T57:T67)","v":0},{"$f":"SUM(U57:U67)","v":0},0,{"$f":"SUM(W57:W67)","v":0},{"$f":"SUM(X57:X67)","v":0},0,{"$f":"SUM(Z57:Z67)","v":0},{"$f":"SUM(AA57:AA67)","v":0},0,null,"M","H","TOTAL",null,"M","H","TOTAL"]
[null,null,null,null,null,null,null,null,null,null,null,null,null,null,null,null,null,null,null,null,null,null,null,null,null,null,null,null,null,0,0,{"$f":"SUM(AD69,AE69)","v":0},null,0,0,{"$f":"SUM(AH69,AI69)","v":0}]
[]
["Verificar que la población reportada en CAPEP, CRIE, UOP y UAEBH con discapacidad, al sumarla con la reportada en AS sea correspondiente con lo registrado en la pestaña de Población total.",null,null,null,null,null,null,null,null,null,null,null,null,null,null,null,null,null,null,null,null,null,null,null,null,null,null,null,null,null,null,"Total de estudiantes con discapacidad focalizados"]
[]
[null,null,null,null,null,null,null,null,null,null,null,null,null,null,null,null,null,null,null,null,null,null,null,null,null,null,null,null,null,null,null,"M","H","Total"]
[null,null,null,null,null,null,null,null,null,null,null,null,null,null,null,null,null,null,null,null,null,null,null,null,null,null,null,null,null,null,null,{"$f":"SUM(Q68,AD58,AH58,AD61,AH61)","v":1277},{"$f":"SUM(R68,AE58,AI58,AE61,AI61)","v":2667},{"$f":"SUM(AF74,AG74)","v":3944}]
["TDA: Trastorno por Déficit de Atención"]
["TDA-H: Trastorno por Déficit de Atención e Hiperactividad"]

{"sheet":"Población beneficiaria AS","index":7,"n_rows":68,"n_cols":27,"rows_kept":68,"cut":false,"hidden":false,"merged":[[9,10,9,12],[29,10,29,12],[49,10,49,12],[22,15,23,17],[28,10,28,18],[29,13,29,15],[19,0,20,18],[39,0,40,18],[48,7,48,9],[49,7,50,7],[49,8,50,8],[49,9,50,9],[47,0,47,26],[49,1,49,3],[49,4,49,6],[49,20,49,26],[48,0,50,0],[48,1,48,6],[49,13,49,15],[49,16,49,18],[48,10,48,18],[0,0,4,0],[0,21,4,27],[5,0,5,27],[7,0,7,26],[9,4,9,6],[9,20,9,26],[8,0,10,0],[9,7,10,7],[9,8,10,8],[9,9,10,9],[9,16,9,18],[9,1,9,3],[9,13,9,15],[8,7,8,9],[8,1,8,6],[8,10,8,18],[10,20,10,22],[10,24,10,26],[20,20,20,26],[21,20,21,22],[21,24,21,26],[17,24,17,26],[29,7,30,7],[29,8,30,8],[29,9,30,9],[29,1,29,3],[13,20,13,22],[30,20,30,22],[27,0,27,26],[29,4,29,6],[29,20,29,26],[29,16,29,18],[28,0,30,0],[28,1,28,6],[28,7,28,9],[13,24,13,26],[16,20,16,26],[17,20,17,22],[36,20,36,26],[30,24,30,26],[33,20,33,22],[33,24,33,26],[37,20,37,22],[37,24,37,26],[40,20,40,26],[41,20,41,22],[41,24,41,26],[62,15,63,17],[60,20,60,26],[61,20,61,22],[61,24,61,26],[53,20,53,22],[53,24,53,26],[56,20,56,26],[57,20,57,22],[57,24,57,26],[42,15,43,17],[59,0,60,18],[50,20,50,22],[50,24,50,26]]}
[null,null,null,null,null,null,null,null,null,null,null,null,null,null,null,null,null,null,null,null,null,"Subsecretaría de Educación Básica\nDirección General de Desarrollo Curricular\nDirección de Fortalecimiento Curricular para la \nFormación Personal y Social en la Educación Básica\nEducación Especial"]
[]
[]
[]
[]
["Información cuantitativa respecto a la población con aptitudes sobresalientes que atienden los servicios de educación especial focalizados, en su entidad, por sexo y tipo de condición:"]
[]
["Población con aptitudes sobresalientes atendida por los servicios de educación especial focalizados en el componente 1 para beneficiar en 2024"]
["Condición","Beneficiarias/os por condición y por SEE",null,null,null,null,null,"Población total beneficiaria",null,null,"De la población total reportada por condición, especifique si se trata de alguna de las siguientes poblaciones."]
[null,"USAER",null,null,"Otro",null,null,"M","H","TOTAL","Población indígena",null,null,"Población afrodescendiente",null,null,"Población migrante",null,null,null,"Estudiantes focalizados aptitudes sobresalientes"]
[null,"M","H","TOTAL","M","H","TOTAL",null,null,null,"M","H","TOTAL","M","H","TOTAL","M","H","TOTAL",null,"CAPEP",null,null,null,"UAEBH"]
["AS Intelectual",179,220,{"$f":"SUM(B12:C12)","v":399},58,109,{"$f":"SUM(E12:F12)","v":167},{"$f":"SUM(B12,E12)","v":237},329,{"$f":"SUM(H12:I12)","v":566},0,0,{"$f":"SUM(K12:L12)","v":0},0,0,{"$f":"SUM(N12:O12)","v":0},0,0,{"$f":"SUM(Q12:R12)","v":0},null,"M","H","TOTAL",null,"M","H","TOTAL"]
["AS Creativa",208,224,432,0,0,0,208,224,432,0,0,0,0,0,0,0,0,0,null,0,0,{"$f":"SUM(U13,V13)","v":0},null,0,0,{"$f":"SUM(Y13,Z13)","v":0}]
["AS Artística",86,56,142,0,0,0,86,56,142,0,0,0,0,0,0,0,0,0,null,"CRIE",null,null,null,"UOP"]
["AS Psicomotriz",15,37,52,0,0,0,15,37,52,0,0,0,0,0,0,0,0,0,null,"M","H","TOTAL",null,"M","H","TOTAL"]
["AS Socioafectiva",34,24,58,0,0,0,34,24,58,0,0,0,0,0,0,0,0,0,null,0,0,{"$f":"SUM(U16,V16)","v":0},null,0,0,{"$f":"SUM(Y16,Z16)","v":0}]
["Totales",{"$f":"SUM(B12:B16)","v":522},{"$f":"SUM(C12:C16)","v":561},1083,{"$f":"SUM(E12:E16)","v":58},{"$f":"SUM(F12:F16)","v":109},167,{"$f":"SUM(H12:H16)","v":580},{"$f":"SUM(I12:I16)","v":670},1250,{"$f":"SUM(K12:K16)","v":0},{"$f":"SUM(L12:L16)","v":0},0,{"$f":"SUM(N12:N16)","v":0},{"$f":"SUM(O12:O16)","v":0},0,{"$f":"SUM(Q12:Q16)","v":0},{"$f":"SUM(R12:R16)","v":0},0,null,"Personal docente y/o directivos focalizados"]
[null,null,null,null,null,null,null,null,null,null,null,null,null,null,null,null,null,null,null,null,"CRIE",null,null,null,"UOP"]
[null,null,null,null,null,null,null,null,null,null,null,null,null,null,null,null,null,null,null,null,"M","H","TOTAL",null,"M","H","TOTAL"]
["Verificar que la población reportada en CAPEP, CRIE, UOP y UAEBH con discapacidad, al sumarla con la reportada en AS sea correspondiente con lo registrado en la pestaña de Población total.",null,null,null,null,null,null,null,null,null,null,null,null,null,null,null,null,null,null,null,0,0,{"$f":"SUM(U20,V20)","v":0},null,0,0,{"$f":"SUM(Y20,Z20)","v":0}]
[null,null,null,null,null,null,null,null,null,null,null,null,null,null,null,null,null,null,null,null,"Familias y/o público en general focalizados"]
[null,null,null,null,null,null,null,null,null,null,null,null,null,null,null,null,null,null,null,null,"CRIE",null,null,null,"UOP"]
[null,null,null,null,null,null,null,null,null,null,null,null,null,null,null,"Total de estudiantes con aptitudes sobresalientes focalizados",null,null,null,null,"M","H","TOTAL",null,"M","H","TOTAL"]
[null,null,null,null,null,null,null,null,null,null,null,null,null,null,null,null,null,null,null,null,0,0,{"$f":"SUM(U24,V24)","v":0},null,0,0,{"$f":"SUM(Y24,Z24)","v":0}]
[null,null,null,null,null,null,null,null,null,null,null,null,null,null,null,"M","H","Total"]
[null,null,null,null,null,null,null,null,null,null,null,null,null,null,null,{"$f":"SUM(B17,E17,U13,U16,Y13,Y16)","v":580},{"$f":"SUM(C17,F17,V13,V16,Z13,Z16)","v":670},{"$f":"SUM(D17,G17,W13,W16,AA13,AA16)","v":1250}]
[]
["Población con aptitudes sobresalientes atendida por los servicios de educación especial focalizados en el componente 2 para beneficiar en 2024"]
["Condición","Beneficiarias/os por condición y por SEE",null,null,null,null,null,"Población total beneficiaria",null,null,"De la población total reportada por condición, especifique si se trata de alguna de las siguientes poblaciones."]
[null,"USAER",null,null,"Otro",null,null,"M","H","TOTAL","Población indígena",null,null,"Población afrodescendiente",null,null,"Población migrante",null,null,null,"Estudiantes focalizados aptitudes sobresalientes"]
[null,"M","H","TOTAL","M","H","TOTAL",null,null,null,"M","H","TOTAL","M","H","TOTAL","M","H","TOTAL",null,"CAPEP",null,null,null,"UAEBH"]
["AS Intelectual",179,220,{"$f":"SUM(B32:C32)","v":399},0,0,{"$f":"SUM(E32:F32)","v":0},{"$f":"SUM(B32,E32)","v":179},220,{"$f":"SUM(H32:I32)","v":399},0,0,{"$f":"SUM(K32:L32)","v":0},0,0,{"$f":"SUM(N32:O32)","v":0},0,0,{"$f":"SUM(Q32:R32)","v":0},null,"M","H","TOTAL",null,"M","H","TOTAL"]
["AS Creativa",208,224,432,0,0,0,208,224,432,0,0,0,0,0,0,0,0,0,null,0,0,{"$f":"SUM(U33,V33)","v":0},null,0,0,{"$f":"SUM(Y33,Z33)","v":0}]
["AS Artística",86,56,142,0,0,0,86,56,142,0,0,0,0,0,0,0,0,0,null,"CRIE",null,null,null,"UOP"]
["AS Psicomotriz",15,37,52,0,0,0,15,37,52,0,0,0,0,0,0,0,0,0,null,"M","H","TOTAL",null,"M","H","TOTAL"]
["AS Socioafectiva",34,24,58,0,0,0,34,24,58,0,0,0,0,0,0,0,0,0,null,0,0,{"$f":"SUM(U36,V36)","v":0},null,0,0,{"$f":"SUM(Y36,Z36)","v":0}]
["Totales",{"$f":"SUM(B32:B36)","v":522},{"$f":"SUM(C32:C36)","v":561},1083,{"$f":"SUM(E32:E36)","v":0},{"$f":"SUM(F32:F36)","v":0},0,{"$f":"SUM(H32:H36)","v":522},{"$f":"SUM(I32:I36)","v":561},1083,{"$f":"SUM(K32:K36)","v":0},{"$f":"SUM(L32:L36)","v":0},0,{"$f":"SUM(N32:N36)","v":0},{"$f":"SUM(O32:O36)","v":0},0,{"$f":"SUM(Q32:Q36)","v":0},{"$f":"SUM(R32:R36)","v":0},0,null,"Personal docente y/o directivos focalizados"]
[null,null,null,null,null,null,null,null,null,null,null,null,null,null,null,null,null,null,null,null,"CRIE",null,null,null,"UOP"]
[null,null,null,null,null,null,null,null,null,null,null,null,null,null,null,null,null,null,null,null,"M","H","TOTAL",null,"M","H","TOTAL"]
["Verificar que la población reportada en CAPEP, CRIE, UOP y UAEBH con discapacidad, al sumarla con la reportada en AS sea correspondiente con lo registrado en la pestaña de Población total.",null,null,null,null,null,null,null,null,null,null,null,null,null,null,null,null,null,null,null,0,0,{"$f":"SUM(U40,V40)","v":0},null,0,0,{"$f":"SUM(Y40,Z40)","v":0}]
[null,null,null,null,null,null,null,null,null,null,null,null,null,null,null,null,null,null,null,null,"Familias y/o público en general focalizados"]
[null,null,null,null,null,null,null,null,null,null,null,null,null,null,null,null,null,null,null,null,"CRIE",null,null,null,"UOP"]
[null,null,null,null,null,null,null,null,null,null,null,null,null,null,null,"Total de estudiantes con aptitudes sobresalientes focalizados",null,null,null,null,"M","H","TOTAL",null,"M","H","TOTAL"]
[null,null,null,null,null,null,null,null,null,null,null,null,null,null,null,null,null,null,null,null,0,0,{"$f":"SUM(U44,V44)","v":0},null,0,0,{"$f":"SUM(Y44,Z44)","v":0}]
[null,null,null,null,null,null,null,null,null,null,null,null,null,null,null,"M","H","Total"]
[null,null,null,null,null,null,null,null,null,null,null,null,null,null,null,{"$f":"SUM(B37,E37,U33,U36,Y33,Y36)","v":522},{"$f":"SUM(C37,F37,V33,V36,Z33,Z36)","v":561},{"$f":"SUM(D37,G37,W33,W36,AA33,AA36)","v":1083}]
[]
["Población con aptitudes sobresalientes atendida por los servicios de educación especial focalizados en el componente 3 para beneficiar en 2024"]
["Condición","Beneficiarias/os por condición y por SEE",null,null,null,null,null,"Población total beneficiaria",null,null,"De la población total reportada por condición, especifique si se trata de alguna de las siguientes poblaciones."]
[null,"USAER",null,null,"Otro",null,null,"M","H","TOTAL","Población indígena",null,null,"Población afrodescendiente",null,null,"Población migrante",null,null,null,"Estudiantes focalizados aptitudes sobresalientes"]
[null,"M","H","TOTAL","M","H","TOTAL",null,null,null,"M","H","TOTAL","M","H","TOTAL","M","H","TOTAL",null,"CAPEP",null,null,null,"UAEBH"]
["AS Intelectual",179,220,{"$f":"SUM(B52:C52)","v":399},0,0,{"$f":"SUM(E52:F52)","v":0},{"$f":"SUM(B52,E52)","v":179},220,{"$f":"SUM(H52:I52)","v":399},0,0,{"$f":"SUM(K52:L52)","v":0},0,0,{"$f":"SUM(N52:O52)","v":0},0,0,{"$f":"SUM(Q52:R52)","v":0},null,"M","H","TOTAL",null,"M","H","TOTAL"]
["AS Creativa",208,224,432,0,0,0,208,224,432,0,0,0,0,0,0,0,0,0,null,0,0,{"$f":"SUM(U53,V53)","v":0},null,0,0,{"$f":"SUM(Y53,Z53)","v":0}]
["AS Artística",86,56,142,0,0,0,86,56,142,0,0,0,0,0,0,0,0,0,null,"CRIE",null,null,null,"UOP"]
["AS Psicomotriz",15,37,52,0,0,0,15,37,52,0,0,0,0,0,0,0,0,0,null,"M","H","TOTAL",null,"M","H","TOTAL"]
["AS Socioafectiva",34,24,58,0,0,0,34,24,58,0,0,0,0,0,0,0,0,0,null,0,0,{"$f":"SUM(U56,V56)","v":0},null,0,0,{"$f":"SUM(Y56,Z56)","v":0}]
["Totales",{"$f":"SUM(B52:B56)","v":522},{"$f":"SUM(C52:C56)","v":561},1083,{"$f":"SUM(E52:E56)","v":0},{"$f":"SUM(F52:F56)","v":0},0,{"$f":"SUM(H52:H56)","v":522},{"$f":"SUM(I52:I56)","v":561},1083,{"$f":"SUM(K52:K56)","v":0},{"$f":"SUM(L52:L56)","v":0},0,{"$f":"SUM(N52:N56)","v":0},{"$f":"SUM(O52:O56)","v":0},0,{"$f":"SUM(Q52:Q56)","v":0},{"$f":"SUM(R52:R56)","v":0},0,null,"Personal docente y/o directivos focalizados"]
[null,null,null,null,null,null,null,null,null,null,null,null,null,null,null,null,null,null,null,null,"CRIE",null,null,null,"UOP"]
[null,null,null,null,null,null,null,null,null,null,null,null,null,null,null,null,null,null,null,null,"M","H","TOTAL",null,"M","H","TOTAL"]
["Verificar que la población reportada en CAPEP, CRIE, UOP y UAEBH con discapacidad, al sumarla con la reportada en AS sea correspondiente con lo registrado en la pestaña de Población total.",null,null,null,null,null,null,null,null,null,null,null,null,null,null,null,null,null,null,null,0,0,{"$f":"SUM(U60,V60)","v":0},null,0,0,{"$f":"SUM(Y60,Z60)","v":0}]
[null,null,null,null,null,null,null,null,null,null,null,null,null,null,null,null,null,null,null,null,"Familias y/o público en general focalizados"]
[null,null,null,null,null,null,null,null,null,null,null,null,null,null,null,null,null,null,null,null,"CRIE",null,null,null,"UOP"]
[null,null,null,null,null,null,null,null,null,null,null,null,null,null,null,"Total de estudiantes con aptitudes sobresalientes focalizados",null,null,null,null,"M","H","TOTAL",null,"M","H","TOTAL"]
[null,null,null,null,null,null,null,null,null,null,null,null,null,null,null,null,null,null,null,null,0,0,{"$f":"SUM(U64,V64)","v":0},null,0,0,{"$f":"SUM(Y64,Z64)","v":0}]
[null,null,null,null,null,null,null,null,null,null,null,null,null,null,null,"M","H","Total"]
[null,null,null,null,null,null,null,null,null,null,null,null,null,null,null,{"$f":"SUM(B57,E57,U53,U56,Y53,Y56)","v":522},{"$f":"SUM(C57,F57,V53,V56,Z53,Z56)","v":561},{"$f":"SUM(D57,G57,W53,W56,AA53,AA56)","v":1083}]
[]
["AS: Aptitudes sobresalientes"]

{"sheet":"1. Acciones académicas (DIS)","index":8,"n_rows":62,"n_cols":32,"rows_kept":62,"cut":false,"hidden":false,"merged":[[46,1,46,2],[46,3,46,5],[47,1,47,2],[47,3,47,5],[47,6,47,7],[47,8,47,11],[47,12,47,13],[47,14,47,18],[47,19,47,21],[49,25,49,26],[49,28,49,29],[47,22,47,27],[47,28,47,33],[32,10,32,11],[32,13,32,14],[32,16,32,17],[32,19,32,20],[32,22,32,23],[32,25,32,26],[32,28,32,29],[34,31,40,33],[31,31,33,33],[12,1,12,2],[12,3,12,5],[13,1,13,2],[13,3,13,5],[13,6,13,7],[0,1,4,33],[5,1,5,33],[6,1,6,33],[7,1,7,30],[8,1,8,4],[8,5,8,7],[8,9,8,11],[9,1,9,4],[9,5,9,7],[13,14,13,18],[13,19,13,21],[13,22,13,27],[13,28,13,33],[13,8,13,11],[13,12,13,13],[51,31,57,33],[52,1,52,2],[53,1,53,2],[54,1,54,2],[55,1,55,2],[56,1,56,2],[57,1,57,2],[31,30,33,30],[48,6,48,8],[48,9,48,11],[48,12,48,14],[48,15,48,17],[48,18,48,20],[48,21,48,23],[48,24,48,26],[48,27,48,29],[48,30,50,30],[48,1,50,2],[48,3,48,5],[34,1,34,2],[35,1,35,2],[36,1,36,2],[37,1,37,2],[38,1,38,2],[60,1,60,33],[61,1,61,33],[29,1,29,2],[29,3,29,5],[30,1,30,2],[30,3,30,5],[30,6,30,7],[30,8,30,11],[30,12,30,13],[30,14,30,18],[30,19,30,21],[30,22,30,27],[30,28,30,33],[31,1,33,2],[31,3,31,5],[31,6,31,8],[31,9,31,11],[31,12,31,14],[31,15,31,17],[31,18,31,20],[31,21,31,23],[31,24,31,26],[31,27,31,29],[32,4,32,5],[15,7,15,8],[15,10,15,11],[15,13,15,14],[15,16,15,17],[15,19,15,20],[15,22,15,23],[15,25,15,26],[15,28,15,29],[58,1,58,2],[32,7,32,8],[51,1,51,2],[39,1,39,2],[40,1,40,2],[41,1,41,2],[43,1,43,33],[44,1,44,33],[48,31,50,33],[49,4,49,5],[49,7,49,8],[49,10,49,11],[49,13,49,14],[49,16,49,17],[49,19,49,20],[49,22,49,23],[14,1,16,2],[14,3,14,5],[14,6,14,8],[14,9,14,11],[14,12,14,14],[14,15,14,17],[26,1,26,33],[27,1,27,33],[17,1,17,2],[17,31,23,33],[18,1,18,2],[19,1,19,2],[20,1,20,2],[21,1,21,2],[22,1,22,2],[23,1,23,2],[24,1,24,2],[14,18,14,20],[14,21,14,23],[14,24,14,26],[14,27,14,29],[14,30,16,30],[14,31,16,33],[15,4,15,5]]}
[null,"Subsecretaría de Educación Básica\nDirección General de Desarrollo Curricular\nDirección de Fortalecimiento Curricular para la \nFormación Personal y Social en la Educación Básica\nEducación Especial"]
[]
[]
[]
[]
[null,"Componente: 1. Acciones académicas para Agentes educativos en temas de discapacidad"]
[null,"Para garantizar el cumplimiento de los objetivos del PFSEE las AEL podrán  destinar hasta  un 50% del recurso, de acuerdo con lo estipulado en las reglas de operación 2024."]
[null,"1.1 Desarrollo de acciones de actualización y fortalecimiento académico de Agentes educativos en temas de discapacidad"]
[null,"Recurso programado:",null,null,null,{"$f":"'Estrategia 2024'!H57","v":1022950},null,null,null,"SEE focalizados:",null,null,"USAER",{"$f":"'Servicios EE 2024'!B16","v":81},"CAM básico",{"$f":"'Servicios EE 2024'!C16","v":0},"Básico FpT",{"$f":"'Servicios EE 2024'!C18","v":28},"CAM laboral",{"$f":"'Servicios EE 2024'!D16","v":2},"CAPEP",{"$f":"'Servicios EE 2024'!E16","v":0},"CRIE",{"$f":"'Servicios EE 2024'!F16","v":0},"UOP",{"$f":"'Servicios EE 2024'!G16","v":0},"UAEBH",{"$f":"'Servicios EE 2024'!H16","v":0},"Otro",{"$f":"'Servicios EE 2024'!I16","v":0}]
[null,"Remanente:",null,null,null,{"$f":"F9-SUM(A12:A63)","v":0}]
[]
[]
[null,"Numero de actividad",null,"1.1.1"]
[{"$f":"T14","v":522950},"Tipo de actividad",null,"Trimestre de inicio",null,null,"3ro",null,"Trimestre de término",null,null,null,"3ro",null,"Presupuesto de la actividad",null,null,null,null,522950,null,null,"Título de la actividad",null,null,null,null,null,"Diplomado en Neuroeducación"]
[null,"Diplomado",null,"USAER",null,null,"CAM básico",null,null,"CAM básico con FpT",null,null,"CAM laboral",null,null,"CAPEP",null,null,"CRIE",null,null,"UOP",null,null,"UAEBH",null,null,"Otro",null,null,"Especifique producto o servicio en lo que se planea ejercer","Propósito de la actividad"]
[null,null,null,"SEE:",81,null,"SEE:",0,null,"SEE:",0,null,"SEE:",0,null,"SEE:",0,null,"SEE:",0,null,"SEE:",0,null,"SEE:",0,null,"SEE:",0]
[null,null,null,"M","H","T","M","H","T","M","H","T","M","H","T","M","H","T","M","H","T","M","H","T","M","H","T","M","H","T"]
[null,"Supervisores",null,2,1,{"$f":"SUM(D18,E18)","v":3},0,0,{"$f":"SUM(G18,H18)","v":0},0,0,{"$f":"SUM(J18,K18)","v":0},0,0,{"$f":"SUM(M18,N18)","v":0},0,0,{"$f":"SUM(P18,Q18)","v":0},0,0,{"$f":"SUM(S18,T18)","v":0},0,0,{"$f":"SUM(V18,W18)","v":0},0,0,{"$f":"SUM(Y18,Z18)","v":0},0,0,{"$f":"SUM(AB18,AC18)","v":0},"Pago a conferencistas o talleristas ","Contribuir a la profesionalización docente y a la mejora continua a través de la formación en neuroeducación de los docentes de educación especial."]
[null,"Directivas/os",null,30,12,42,0,0,0,0,0,0,0,0,0,0,0,0,0,0,0,0,0,0,0,0,0,0,0,0,"Coffee break"]
[null,"Docentes",null,46,23,69,0,0,0,0,0,0,0,0,0,0,0,0,0,0,0,0,0,0,0,0,0,0,0,0," "]
[null,"Equipo de apoyo",null,16,7,23,0,0,0,0,0,0,0,0,0,0,0,0,0,0,0,0,0,0,0,0,0,0,0,0]
[null,"Familias",null,0,0,0,0,0,0,0,0,0,0,0,0,0,0,0,0,0,0,0,0,0,0,0,0,0,0,0]
[null,"Docentes de EB",null,0,0,0,0,0,0,0,0,0,0,0,0,0,0,0,0,0,0,0,0,0,0,0,0,0,0,0]
[null,"Otros",null,11,2,13,0,0,0,0,0,0,0,0,0,0,0,0,0,0,0,0,0,0,0,0,0,0,0,0]
[null,"TOTAL",null,{"$f":"SUM(D17:D24)","v":105},45,150,0,0,0,0,0,0,0,0,0,0,0,0,0,0,0,0,0,0,0,0,0,0,0,0]
[]
[null,"En caso de requerir alguna precisión o aclaración, describa brevemente: "]
[null,"En equipo de apoyo estan considerados psicólogos, en otros: Asesores Técnicos Pedagógicos. Duración 120 horas: 40 hrs presencial (8 sesiones) y 80 hrs (60 días) de trabajo en plataforma interactiva autogestiva. Modalidad mixta."]
[]
[null,"Numero de actividad",null,"1.1.2"]
[{"$f":"T31","v":250000},"Tipo de actividad",null,"Trimestre de inicio",null,null,"4to",null,"Trimestre de término",null,null,null,"4to",null,"Presupuesto de la actividad",null,null,null,null,250000,null,null,"Título de la actividad",null,null,null,null,null,"Conferencias en Educación Inclusiva"]
[null,"Conferencia",null,"USAER",null,null,"CAM básico",null,null,"CAM básico con FpT",null,null,"CAM laboral",null,null,"CAPEP",null,null,"CRIE",null,null,"UOP",null,null,"UAEBH",null,null,"Otro",null,null,"Especifique producto o servicio en lo que se planea ejercer","Propósito de la actividad"]
[null,null,null,"SEE:",81,null,"SEE:",0,null,"SEE:",28,null,"SEE:",2,null,"SEE:",0,null,"SEE:",0,null,"SEE:",0,null,"SEE:",0,null,"SEE:",0]
[null,null,null,"M","H","T","M","H","T","M","H","T","M","H","T","M","H","T","M","H","T","M","H","T","M","H","T","M","H","T"]
[null,"Supervisores",null,0,0,0,0,0,{"$f":"SUM(G35,H35)","v":0},0,0,{"$f":"SUM(J35,K35)","v":0},0,0,{"$f":"SUM(M35,N35)","v":0},0,0,{"$f":"SUM(P35,Q35)","v":0},0,0,{"$f":"SUM(S35,T35)","v":0},0,0,{"$f":"SUM(V35,W35)","v":0},0,0,{"$f":"SUM(Y35,Z35)","v":0},0,0,{"$f":"SUM(AB35,AC35)","v":0},"Arrendamiento de salas / salones ","Propiciar espacios de reflexión docente que impacten en la atención a la diversidad del alumnado que se atiende en educación especial y básica."]
[null,"Directivas/os",null,57,24,{"$f":"SUM(D36,E36)","v":81},0,0,0,22,6,28,2,0,2,0,0,0,0,0,0,0,0,0,0,0,0,0,0,0,"Pago a conferencistas o talleristas "]
[null,"Docentes",null,150,50,200,0,0,0,100,44,144,0,0,0,0,0,0,0,0,0,0,0,0,0,0,0,0,0,0,"Renta de mobiliario"]
[null,"Equipo de apoyo",null,50,20,70,0,0,0,20,10,30,0,0,0,0,0,0,0,0,0,0,0,0,0,0,0,0,0,0,"Renta de equipo de audio y/o video"]
[null,"Familias",null,0,0,0,0,0,0,0,0,0,0,0,0,0,0,0,0,0,0,0,0,0,0,0,0,0,0,0,"Coffee break"]
[null,"Docentes de EB",null,50,50,100,0,0,0,0,0,0,0,0,0,0,0,0,0,0,0,0,0,0,0,0,0,0,0,0,"Reproducción de materiales"]
[null,"Otros",null,14,5,19,0,0,0,0,0,0,0,0,0,0,0,0,0,0,0,0,0,0,0,0,0,0,0,0]
[null,"TOTAL",null,{"$f":"SUM(D34:D41)","v":321},149,470,0,0,0,142,60,202,2,0,2,0,0,0,0,0,0,0,0,0,0,0,0,0,0,0]
[]
[null,"En caso de requerir alguna precisión o aclaración, describa brevemente: "]
[null,"Se realizará una jornada académica con duración de 2 días, 10 horas en total,  durante los cuales se llevarán a cabo las siguientes conferencias: \"La didáctica de las matemáticas en personas con discapacidad intelectual\", \"La evaluación y atención de los alumnos con trastorno del espectro autista\" y \"Trastornos psicosociales y discapacidad\"."]
[]
[null,"Numero de actividad",null,"1.1.3"]
[{"$f":"T48","v":250000},"Tipo de actividad",null,"Trimestre de inicio",null,null,"4to",null,"Trimestre de término",null,null,null,"4to",null,"Presupuesto de la actividad",null,null,null,null,250000,null,null,"Título de la actividad",null,null,null,null,null,"Talleres: Educación Inclusiva"]
[null,"Taller",null,"USAER",null,null,"CAM básico",null,null,"CAM básico con FpT",null,null,"CAM laboral",null,null,"CAPEP",null,null,"CRIE",null,null,"UOP",null,null,"UAEBH",null,null,"Otro",null,null,"Especifique producto o servicio en lo que se planea ejercer","Propósito de la actividad"]
[null,null,null,"SEE:",81,null,"SEE:",0,null,"SEE:",28,null,"SEE:",2,null,"SEE:",0,null,"SEE:",0,null,"SEE:",0,null,"SEE:",0,null,"SEE:",0]
[null,null,null,"M","H","T","M","H","T","M","H","T","M","H","T","M","H","T","M","H","T","M","H","T","M","H","T","M","H","T"]
[null,"Supervisores",null,0,0,0,0,0,0,0,0,{"$f":"SUM(J52,K52)","v":0},0,0,{"$f":"SUM(M52,N52)","v":0},0,0,{"$f":"SUM(P52,Q52)","v":0},0,0,{"$f":"SUM(S52,T52)","v":0},0,0,{"$f":"SUM(V52,W52)","v":0},0,0,{"$f":"SUM(Y52,Z52)","v":0},0,0,{"$f":"SUM(AB52,AC52)","v":0},"Arrendamiento de salas / salones ","Capacitar a los maestros para diseñar e implementar estrategias didácticas acordes a la población que se atienden."]
[null,"Directivas/os",null,57,24,{"$f":"SUM(D53,E53)","v":81},0,0,{"$f":"SUM(G53,H53)","v":0},22,6,28,2,0,2,0,0,0,0,0,0,0,0,0,0,0,0,0,0,0,"Reproducción de materiales"]
[null,"Docentes",null,150,50,200,0,0,0,100,44,144,0,0,0,0,0,0,0,0,0,0,0,0,0,0,0,0,0,0,"Pago a conferencistas o talleristas "]
[null,"Equipo de apoyo",null,50,20,{"$f":"SUM(D55,E55)","v":70},0,0,0,20,10,30,0,0,0,0,0,0,0,0,0,0,0,0,0,0,0,0,0,0,"Coffee break"]
[null,"Familias",null,0,0,{"$f":"SUM(D56,E56)","v":0},0,0,0,0,0,0,0,0,0,0,0,0,0,0,0,0,0,0,0,0,0,0,0,0,"Renta de equipo de audio y/o video"]
[null,"Docentes de EB",null,50,50,{"$f":"SUM(D57,E57)","v":100},0,0,0,0,0,0,0,0,0,0,0,0,0,0,0,0,0,0,0,0,0,0,0,0,"Renta de mobiliario"]
[null,"Otros",null,14,5,{"$f":"SUM(D58,E58)","v":19},0,0,0,0,0,0,0,0,0,0,0,0,0,0,0,0,0,0,0,0,0,0,0,0]
[null,"TOTAL",null,{"$f":"SUM(D51:D58)","v":321},149,470,0,0,0,142,60,202,2,0,2,0,0,0,0,0,0,0,0,0,0,0,0,0,0,0]
[]
[null,"En caso de requerir alguna precisión o aclaración, describa brevemente: "]
[null,"Se realizará una jornada académica de 2 días, 6 horas en total, durante los cuales se llevarán a cabo los siguientes talleres: \"Manejo de las matemáticas en personas con discapacidad intelectual\", \" Estrategias de intervención en alumnos con trastornos del espectro autista\" y \"La Intervención pedagógica en alumnos con trastornos psicosociales y discapacidad\"."]

{"sheet":"1. Acciones académicas (AS)","index":9,"n_rows":75,"n_cols":29,"rows_kept":75,"cut":false,"hidden":false,"merged":[[69,28,77,31],[73,1,73,20],[74,1,78,20],[16,21,16,24],[17,21,17,24],[18,21,18,24],[19,21,19,24],[20,21,20,24],[21,21,21,24],[22,21,22,24],[23,21,23,24],[69,21,69,27],[70,21,70,27],[71,21,71,27],[72,21,72,27],[73,21,73,27],[74,21,74,27],[75,21,75,27],[76,21,76,27],[77,21,77,27],[47,21,49,24],[47,25,49,31],[21,1,21,2],[16,1,16,2],[67,22,67,25],[67,26,67,31],[68,21,68,27],[68,28,68,31],[67,19,67,21],[13,25,15,31],[16,25,22,31],[46,22,46,25],[46,26,46,31],[62,1,62,33],[63,1,63,4],[63,5,63,7],[63,9,63,11],[57,1,57,2],[59,1,59,33],[60,1,60,33],[50,25,56,31],[50,21,50,24],[51,21,51,24],[52,21,52,24],[53,21,53,24],[54,21,54,24],[55,21,55,24],[22,1,22,2],[0,1,4,33],[5,1,5,33],[6,1,6,33],[7,1,7,30],[8,1,8,4],[8,5,8,7],[8,9,8,11],[12,8,12,11],[12,12,12,13],[12,14,12,18],[12,19,12,21],[9,1,9,4],[9,5,9,7],[11,1,11,2],[11,3,11,5],[12,1,12,2],[12,3,12,5],[12,6,12,7],[12,22,12,25],[12,26,12,31],[23,1,23,2],[25,1,25,33],[26,1,26,33],[13,9,13,11],[13,12,13,14],[13,15,13,17],[13,18,13,20],[17,1,17,2],[18,1,18,2],[19,1,19,2],[20,1,20,2],[13,1,15,2],[13,3,13,5],[13,6,13,8],[14,4,14,5],[14,7,14,8],[14,10,14,11],[14,13,14,14],[14,16,14,17],[14,19,14,20],[13,21,15,24],[48,7,48,8],[48,10,48,11],[55,1,55,2],[48,13,48,14],[48,16,48,17],[48,19,48,20],[47,1,49,2],[47,3,47,5],[47,6,47,8],[47,9,47,11],[47,12,47,14],[47,15,47,17],[47,18,47,20],[48,4,48,5],[50,1,50,2],[51,1,51,2],[52,1,52,2],[53,1,53,2],[54,1,54,2],[68,12,68,14],[68,15,68,17],[68,18,68,20],[67,8,67,11],[67,12,67,13],[67,14,67,18],[64,1,64,4],[64,5,64,7],[66,1,66,2],[66,3,66,5],[67,1,67,2],[67,3,67,5],[67,6,67,7],[71,1,71,2],[78,21,78,27],[45,1,45,2],[45,3,45,5],[46,1,46,2],[46,3,46,5],[46,6,46,7],[46,8,46,11],[46,12,46,13],[46,14,46,18],[46,19,46,21],[56,1,56,2],[56,21,56,24],[57,21,57,24],[69,4,69,5],[69,7,69,8],[68,1,70,2],[68,3,68,5],[68,6,68,8],[69,10,69,11],[69,13,69,14],[69,16,69,17],[69,19,69,20],[68,9,68,11],[28,1,28,2],[28,3,28,5],[29,1,29,2],[29,3,29,5],[29,6,29,7],[29,8,29,11],[29,12,29,13],[29,14,29,18],[29,19,29,21],[29,22,29,25],[33,1,33,2],[33,21,33,24],[33,25,39,31],[34,1,34,2],[34,21,34,24],[35,1,35,2],[35,21,35,24],[36,1,36,2],[36,21,36,24],[37,1,37,2],[37,21,37,24],[29,26,29,31],[30,1,32,2],[30,3,30,5],[30,6,30,8],[30,9,30,11],[30,12,30,14],[30,15,30,17],[30,18,30,20],[30,21,32,24],[30,25,32,31],[31,4,31,5],[31,7,31,8],[42,1,42,33],[43,1,43,33],[31,10,31,11],[31,13,31,14],[31,16,31,17],[31,19,31,20],[38,1,38,2],[38,21,38,24],[39,1,39,2],[39,21,39,24],[40,1,40,2],[40,21,40,24]]}
[null,"Subsecretaría de Educación Básica\nDirección General de Desarrollo Curricular\nDirección de Fortalecimiento Curricular para la \nFormación Personal y Social en la Educación Básica\nEducación Especial"]
[]
[]
[]
[]
[null,"Componente: 1. Acciones académicas para Agentes educativos en temas de aptitudes sobresalientes"]
[null,"Para garantizar el cumplimiento de los objetivos del PFSEE las AEL podrán  destinar hasta  un 50% del recurso, de acuerdo con lo estipulado en las reglas de operación 2024."]
[null,"1.1 Desarrollo de acciones de actualización y fortalecimiento académico de Agentes educativos en temas de aptitudes sobresalientes"]
[null,"Recurso programado:",null,null,null,{"$f":"'Estrategia 2024'!W57","v":880670},null,null,null,"SEE focalizados:",null,null,"USAER",{"$f":"'Servicios EE 2024'!N16","v":81},"CAPEP",{"$f":"'Servicios EE 2024'!O16","v":0},"CRIE",{"$f":"'Servicios EE 2024'!P16","v":0},"UOP",{"$f":"'Servicios EE 2024'!Q16","v":0},"UAEBH",{"$f":"'Servicios EE 2024'!R16","v":0},"Otro",{"$f":"'Servicios EE 2024'!S16","v":1}]
[null,"Remanente:",null,null,null,{"$f":"F9-SUM(A13:A62)","v":0}]
[]
[null,"Numero de actividad",null,"1.1.1"]
[{"$f":"T13","v":240000},"Tipo de actividad",null,"Trimestre de inicio",null,null,"3ro",null,"Trimestre de término",null,null,null,"4to",null,"Presupuesto de la actividad",null,null,null,null,240000,null,null,"Título de la actividad",null,null,null,"Diplomado en atención a niños con aptitudes sobresalientes"]
[null,"Diplomado",null,"USAER",null,null,"CAPEP",null,null,"CRIE",null,null,"UOP",null,null,"UAEBH",null,null,"Otro",null,null,"Especifique producto o servicio en lo que se planea ejercer",null,null,null,"Propósito de la actividad"]
[null,null,null,"SEE:",81,null,"SEE:",0,null,"SEE:",0,null,"SEE:",0,null,"SEE:",0,null,"SEE:",0]
[null,null,null,"M","H","T","M","H","T","M","H","T","M","H","T","M","H","T","M","H","T"]
[null,"Supervisores",null,0,0,{"$f":"SUM(D17,E17)","v":0},0,0,{"$f":"SUM(G17,H17)","v":0},0,0,{"$f":"SUM(J17,K17)","v":0},0,0,{"$f":"SUM(M17,N17)","v":0},0,0,{"$f":"SUM(P17,Q17)","v":0},0,0,{"$f":"SUM(S17,T17)","v":0},"Reproducción de materiales",null,null,null,"Que los participantes desarrollen las competencias para la identificación, atención y evaluación de los alumnos con aptitudes sobresalientes, mediante la diversificación de su práctica docente y directiva."]
[null,"Directivas/os",null,7,7,{"$f":"SUM(D18,E18)","v":14},0,0,0,0,0,0,0,0,0,0,0,0,0,0,0,"Coffee break"]
[null,"Docentes",null,64,63,{"$f":"SUM(D19,E19)","v":127},0,0,0,0,0,0,0,0,0,0,0,0,0,0,0,"Compra de papelería"]
[null,"Equipo de apoyo",null,7,7,14,0,0,0,0,0,0,0,0,0,0,0,0,0,0,0,"Compra de recusos didácticos"]
[null,"Familias",null,0,0,0,0,0,0,0,0,0,0,0,0,0,0,0,0,0,0]
[null,"Docentes de EB",null,25,25,50,0,0,0,0,0,0,0,0,0,0,0,0,0,0,0]
[null,"Otros",null,3,2,5,0,0,0,0,0,0,0,0,0,0,0,0,0,0,0]
[null,"TOTAL",null,{"$f":"SUM(D16:D23)","v":106},104,210,0,0,0,0,0,0,0,0,0,0,0,0,0,0,0]
[]
[null,"En caso de requerir alguna precisión o aclaración, describa brevemente: "]
[null,"Equipo de apoyo se contemplan psicólogos o maestros de comunicación. Otros se refiere a Asesores Técnico Pedagógico . Duración 120 horas (17 sesiones presenciales 5 h, 7 sesiones de aplicación práctica). Se replica la acción debido a la necesidad de capacitar a docentes que quedaron fuera durante el ejercicio 2023, es decir que son docentes que no se han beneficiado con este diplomado. "]
[]
[null,"Numero de actividad",null,"1.1.2"]
[{"$f":"T30","v":92850},"Tipo de actividad",null,"Trimestre de inicio",null,null,"3ro",null,"Trimestre de término",null,null,null,"4to",null,"Presupuesto de la actividad",null,null,null,null,92850,null,null,"Título de la actividad",null,null,null,"Taller Enriquecimiento a través del Arte"]
[null,"Taller",null,"USAER",null,null,"CAPEP",null,null,"CRIE",null,null,"UOP",null,null,"UAEBH",null,null,"Otro",null,null,"Especifique producto o servicio en lo que se planea ejercer",null,null,null,"Propósito de la actividad"]
[null,null,null,"SEE:",81,null,"SEE:",0,null,"SEE:",0,null,"SEE:",0,null,"SEE:",0,null,"SEE:",0]
[null,null,null,"M","H","T","M","H","T","M","H","T","M","H","T","M","H","T","M","H","T"]
[null,"Supervisores",null,0,0,{"$f":"SUM(D34,E34)","v":0},0,0,{"$f":"SUM(G34,H34)","v":0},0,0,{"$f":"SUM(J34,K34)","v":0},0,0,{"$f":"SUM(M34,N34)","v":0},0,0,{"$f":"SUM(P34,Q34)","v":0},0,0,{"$f":"SUM(S34,T34)","v":0},"Compra de recursos didácticos",null,null,null,"Que los maestros cuenten con los elementos teóricos y metodológicos en la implementación de actividades de enriquecimiento a través de las artes plásticas en la escuela, para dar respuesta a las potencialidades y necesidades de los alumnos con aptitudes sobresalientes."]
[null,"Directivas/os",null,0,0,0,0,0,0,0,0,0,0,0,0,0,0,0,0,0,0,"Pago a conferencistas o talleristas "]
[null,"Docentes",null,150,30,180,0,0,0,0,0,0,0,0,0,0,0,0,0,0,0]
[null,"Equipo de apoyo",null,0,0,0,0,0,0,0,0,0,0,0,0,0,0,0,0,0,0]
[null,"Familias",null,0,0,0,0,0,0,0,0,0,0,0,0,0,0,0,0,0,0]
[null,"Docentes de EB",null,0,0,0,0,0,0,0,0,0,0,0,0,0,0,0,0,0,0]
[null,"Otros",null,0,0,0,0,0,0,0,0,0,0,0,0,0,0,0,0,0,0]
[null,"TOTAL",null,{"$f":"SUM(D33:D40)","v":150},30,180,0,0,0,0,0,0,0,0,0,0,0,0,0,0,0]
[]
[null,"En caso de requerir alguna precisión o aclaración, describa brevemente: "]
[null,"Asistirán agentes educativos distintos al taller enriquecimiento a través de la ciencia. Duración 10 horas (Dos jornadas de trabajo)."]
[]
[null,"Numero de actividad",null,"1.1.3"]
[{"$f":"T47","v":547820},"Tipo de actividad",null,"Trimestre de inicio",null,null,"2do",null,"Trimestre de término",null,null,null,"3ro",null,"Presupuesto de la actividad",null,null,null,null,547820,null,null,"Título de la actividad",null,null,null,"Taller Enriquecimiento através de la ciencia"]
[null,"Taller",null,"USAER",null,null,"CAPEP",null,null,"CRIE",null,null,"UOP",null,null,"UAEBH",null,null,"Otro",null,null,"Especifique producto o servicio en lo que se planea ejercer",null,null,null,"Propósito de la actividad"]
[null,null,null,"SEE:",81,null,"SEE:",0,null,"SEE:",0,null,"SEE:",0,null,"SEE:",0,null,"SEE:",0]
[null,null,null,"M","H","T","M","H","T","M","H","T","M","H","T","M","H","T","M","H","T"]
[null,"Supervisores",null,0,0,{"$f":"SUM(D51,E51)","v":0},0,0,{"$f":"SUM(G51,H51)","v":0},0,0,{"$f":"SUM(J51,K51)","v":0},0,0,{"$f":"SUM(M51,N51)","v":0},0,0,{"$f":"SUM(P51,Q51)","v":0},0,0,{"$f":"SUM(S51,T51)","v":0},"Pago a conferencistas o talleristas ",null,null,null,"Que los maestros cuenten con los elementos teóricos y metodológicos en la implementación de actividades de enriquecimiento a través de la ciencia en la escuela, para dar respuesta a las potencialidades y necesidades de los alumnos con aptitudes sobresalientes."]
[null,"Directivas/os",null,0,0,0,0,0,0,0,0,0,0,0,0,0,0,0,0,0,0,"Compra de recursos didácticos"]
[null,"Docentes",null,150,30,180,0,0,0,0,0,0,0,0,0,0,0,0,0,0,0]
[null,"Equipo de apoyo",null,0,0,0,0,0,0,0,0,0,0,0,0,0,0,0,0,0,0]
[null,"Familias",null,0,0,0,0,0,0,0,0,0,0,0,0,0,0,0,0,0,0]
[null,"Docentes de EB",null,0,0,0,0,0,0,0,0,0,0,0,0,0,0,0,0,0,0]
[null,"Otros",null,0,0,0,0,0,0,0,0,0,0,0,0,0,0,0,0,0,0]
[null,"TOTAL",null,{"$f":"SUM(D50:D57)","v":150},30,180,0,0,0,0,0,0,0,0,0,0,0,0,0,0,0]
[]
[null,"En caso de requerir alguna precisión o aclaración, describa brevemente: "]
[null,"Asistirán agentes educativos distintos al taller enriquecimiento a través del arte. Duración 10 horas (dos jornadas)."]
[]
[null,"1.2 Encuentros, cursos, talleres y/o reuniones entre madres y padres de familia o tutores de estudiantes con aptitudes sobresalientes para la conformación y la operación de sus redes de apoyo"]
[null,"Recurso programado:",null,null,null,{"$f":"'Estrategia 2024'!W58","v":122100},null,null,null,"SEE focalizados:",null,null,"USAER",{"$f":"'Servicios EE 2024'!N$16","v":81},"CAPEP",{"$f":"'Servicios EE 2024'!O$16","v":0},"CRIE",{"$f":"'Servicios EE 2024'!P$16","v":0},"UOP",{"$f":"'Servicios EE 2024'!Q$16","v":0},"UAEBH",{"$f":"'Servicios EE 2024'!R$16","v":0},"Otro",{"$f":"'Servicios EE 2024'!S$16","v":1}]
[null,"Remanente:",null,null,null,{"$f":"F64-SUM(A66:A80)","v":0}]
[]
[{"$f":"T68","v":122100},"Numero de actividad",null,"1.2.1"]
[null,"Tipo de actividad",null,"Trimestre de inicio",null,null,"3ro",null,"Trimestre de término",null,null,null,"3ro",null,"Presupuesto de la actividad",null,null,null,null,122100,null,null,"Título de la actividad",null,null,null,"Manejo de las emociones en mi hijo con aptitudes sobresalientes"]
[null,"Taller",null,"USAER",null,null,"CAPEP",null,null,"CRIE",null,null,"UOP",null,null,"UAEBH",null,null,"Otro",null,null,"Producto o servicio en lo que se planea ejercer",null,null,null,null,null,null,"Propósito de la actividad"]
[null,null,null,"SEE:",81,null,"SEE:",0,null,"SEE:",0,null,"SEE:",0,null,"SEE:",0,null,"SEE:",1,null,"Arrendamiento de salas / salones ",null,null,null,null,null,null,"Que los padres de alumnos con aptitudes sobresalientes conozcan estrategias para el manejo de las emociones en sus hijos."]
[null,null,null,"M","H","T","M","H","T","M","H","T","M","H","T","M","H","T","M","H","T","Reproducción de materiales"]
[null,"Familias",null,120,60,{"$f":"SUM(D72,E72)","v":180},0,0,{"$f":"SUM(G72,H72)","v":0},0,0,{"$f":"SUM(J72,K72)","v":0},0,0,0,0,0,{"$f":"SUM(P72,Q72)","v":0},10,10,{"$f":"SUM(S72,T72)","v":20},"Compra de papelería"]
[]
[null,"En caso de requerir alguna precisión o aclaración, describa brevemente: "]
[null,"Desarrollo de conferencia con especialista y posteriormente panel con alumnos con aptitudes sobresalientes egresados de los SEE beneficiados con el programa, duración 5 horas."]

{"sheet":"2. Atención complementaria(DIS)","index":10,"n_rows":34,"n_cols":39,"rows_kept":34,"cut":false,"hidden":false,"merged":[[30,1,30,2],[30,30,30,33],[30,34,30,37],[30,38,36,39],[31,30,31,33],[31,34,31,37],[32,1,32,29],[32,30,32,33],[32,34,32,37],[33,1,37,29],[33,30,33,33],[33,34,33,37],[34,30,34,33],[34,34,34,37],[35,30,35,33],[35,34,35,37],[36,30,36,33],[36,34,36,37],[37,30,37,33],[37,34,37,37],[27,27,27,29],[27,30,29,37],[27,38,29,39],[28,4,28,5],[28,7,28,8],[28,10,28,11],[28,13,28,14],[28,16,28,17],[28,19,28,20],[28,22,28,23],[28,25,28,26],[28,28,28,29],[27,1,29,2],[27,3,27,5],[27,6,27,8],[27,9,27,11],[27,12,27,14],[27,15,27,17],[27,18,27,20],[27,21,27,23],[27,24,27,26],[13,38,15,39],[25,1,25,2],[25,3,25,5],[26,1,26,2],[26,3,26,5],[26,6,26,7],[26,8,26,10],[26,11,26,12],[26,13,26,16],[26,17,26,20],[26,21,26,27],[26,28,26,39],[16,38,22,39],[18,1,18,29],[19,1,23,29],[13,1,15,2],[13,3,13,5],[13,15,13,17],[13,30,15,37],[16,30,16,33],[17,30,17,33],[18,30,18,33],[19,30,19,33],[20,30,20,33],[0,1,4,39],[5,1,5,39],[6,1,6,39],[11,1,11,2],[11,3,11,5],[12,1,12,2],[12,3,12,5],[7,1,7,39],[8,1,8,2],[12,6,12,7],[12,8,12,10],[12,11,12,12],[12,13,12,16],[12,17,12,20],[12,21,12,27],[9,3,9,5],[9,1,9,2],[12,28,12,39],[8,3,8,5],[8,7,8,9],[16,1,16,2],[13,24,13,26],[13,27,13,29],[14,4,14,5],[14,16,14,17],[14,19,14,20],[14,22,14,23],[14,25,14,26],[14,28,14,29],[13,6,13,8],[13,9,13,11],[13,12,13,14],[14,7,14,8],[14,10,14,11],[14,13,14,14],[17,34,17,37],[18,34,18,37],[21,30,21,33],[19,34,19,37],[20,34,20,37],[21,34,21,37],[22,34,22,37],[23,34,23,37],[13,18,13,20],[13,21,13,23],[16,34,16,37],[22,30,22,33],[23,30,23,33]]}
[null,"Subsecretaría de Educación Básica\nDirección General de Desarrollo Curricular\nDirección de Fortalecimiento Curricular para la \nFormación Personal y Social en la Educación Básica\nEducación Especial"]
[]
[]
[]
[]
[null,"Componente: 2. Acciones de atención complementaria para estudiantes con discapacidad"]
[null,"Para garantizar el cumplimiento de los objetivos del PFSEE las AEL podrán  destinar hasta  un 50% del recurso, de acuerdo con lo estipulado en las reglas de operación 2024."]
[null,"2.2 Acciones orientadas a que las y los estudiantes con discapacidad pongan en práctica las habilidades académicas, artísticas, deportivas, para la vida y/o laborales y que promuevan la sensibilización, promoción, difusión y desarrollo en la comunidad escolar una cultura inclusiva, a través de campañas, ferias y eventos"]
[null,"Recurso programado:",null,{"$f":"'Estrategia 2024'!H63","v":1161443.54},null,null,null,"SEE focalizados:",null,null,"USAER",{"$f":"'Servicios EE 2024'!B$21","v":0},"CAM básico",{"$f":"'Servicios EE 2024'!C$21","v":0},"Básico FpT",{"$f":"'Servicios EE 2024'!C$23","v":28},"CAM laboral",{"$f":"'Servicios EE 2024'!D$21","v":2},"CAPEP",{"$f":"'Servicios EE 2024'!E$21","v":0},"CRIE",{"$f":"'Servicios EE 2024'!F$21","v":0},"UOP",{"$f":"'Servicios EE 2024'!G$21","v":0},"UAEBH",{"$f":"'Servicios EE 2024'!H$21","v":0},"Otro",{"$f":"'Servicios EE 2024'!I$21","v":0}]
[null,"Remanente",null,{"$f":"D9-SUM(A13:A40)","v":0}]
[]
[null,"Numero de actividad",null,"2.2.1"]
[{"$f":"R13","v":1088743.54},"Tipo de actividad",null,"Trimestre de inicio",null,null,"3ro",null,"Trimestre de término",null,null,"4to",null,"Presupuesto de la actividad",null,null,null,1088743.54,null,null,null,"Título de la actividad",null,null,null,null,null,null,"Encuentro deportivo"]
[null,"Evento",null,"USAER",null,null,"CAM básico",null,null,"CAM básico con FpT",null,null,"CAM laboral",null,null,"CAPEP",null,null,"CRIE",null,null,"UOP",null,null,"UAEBH",null,null,"Otro",null,null,"Especifique producto o servicio en lo que se planea ejercer",null,null,null,null,null,null,null,"Propósito de la actividad"]
[null,null,null,"SEE:",0,null,"SEE:",0,null,"SEE:",28,null,"SEE:",2,null,"SEE:",0,null,"SEE:",0,null,"SEE:",0,null,"SEE:",0,null,"SEE:",0]
[null,null,null,"M","H","T","M","H","T","M","H","T","M","H","T","M","H","T","M","H","T","M","H","T","M","H","T","M","H","T"]
[null,"Estudiantes beneficiados",null,0,0,{"$f":"SUM(D17,E17)","v":0},0,0,{"$f":"SUM(G17,H17)","v":0},135,134,{"$f":"SUM(J17,K17)","v":269},21,20,{"$f":"SUM(M17,N17)","v":41},0,0,{"$f":"SUM(P17,Q17)","v":0},0,0,0,0,0,0,0,0,{"$f":"SUM(Y17,Z17)","v":0},0,0,{"$f":"SUM(AB17,AC17)","v":0},"Compra de material deportivo y/o artístico",null,null,null,null,null,null,null,"Propiciar una convivencia que demuestre las habilidades psicomotrices adquiridas por los alumnos en las disciplinas de futbol, básquetbol, cachibol y atletismo."]
[null,null,null,null,null,null,null,null,null,null,null,null,null,null,null,null,null,null,null,null,null,null,null,null,null,null,null,null,null,null,"Pago de viáticos para asistentes"]
[null,"En caso de requerir alguna precisión o aclaración, describa brevemente: ",null,null,null,null,null,null,null,null,null,null,null,null,null,null,null,null,null,null,null,null,null,null,null,null,null,null,null,null,"Pago de traslados para asistentes"]
[null,"Actividad deportiva donde participan 21 alumnos por zona en Durango,  20 alumnos por centro de trabajo en Región Laguna; traslado, hospeda y alimentación de alumnos de zonas foráneas.  Se formarán equipos para participar en las disciplinas de futbol, basquetbol, atletismo y cachibol. Jornada de un día durante 5 horas.",null,null,null,null,null,null,null,null,null,null,null,null,null,null,null,null,null,null,null,null,null,null,null,null,null,null,null,null,"Compra de Box lunch"]
[null,null,null,null,null,null,null,null,null,null,null,null,null,null,null,null,null,null,null,null,null,null,null,null,null,null,null,null,null,null,"Adquisición de uniformes"]
[null,null,null,null,null,null,null,null,null,null,null,null,null,null,null,null,null,null,null,null,null,null,null,null,null,null,null,null,null,null,"Diseño y producción de lonas"]
[]
[]
[]
[null,"Numero de actividad",null,"2.2.2"]
[{"$f":"R27","v":72700},"Tipo de actividad",null,"Trimestre de inicio",null,null,"4to",null,"Trimestre de término",null,null,"4to",null,"Presupuesto de la actividad",null,null,null,72700,null,null,null,"Título de la actividad",null,null,null,null,null,null,"Feria inclusiva"]
[null,"Feria",null,"USAER",null,null,"CAM básico",null,null,"CAM básico con FpT",null,null,"CAM laboral",null,null,"CAPEP",null,null,"CRIE",null,null,"UOP",null,null,"UAEBH",null,null,"Otro",null,null,"Especifique producto o servicio en lo que se planea ejercer",null,null,null,null,null,null,null,"Propósito de la actividad"]
[null,null,null,"SEE:",0,null,"SEE:",0,null,"SEE:",8,null,"SEE:",2,null,"SEE:",0,null,"SEE:",0,null,"SEE:",0,null,"SEE:",0,null,"SEE:",0]
[null,null,null,"M","H","T","M","H","T","M","H","T","M","H","T","M","H","T","M","H","T","M","H","T","M","H","T","M","H","T"]
[null,"Estudiantes beneficiados",null,0,0,{"$f":"SUM(D31,E31)","v":0},0,0,{"$f":"SUM(G31,H31)","v":0},307,513,{"$f":"SUM(J31,K31)","v":820},54,67,{"$f":"SUM(M31,N31)","v":121},0,0,{"$f":"SUM(P31,Q31)","v":0},0,0,{"$f":"SUM(S31,T31)","v":0},0,0,{"$f":"SUM(V31,W31)","v":0},0,0,{"$f":"SUM(Y31,Z31)","v":0},0,0,{"$f":"SUM(AB31,AC31)","v":0},"Pago de traslados para asistentes",null,null,null,null,null,null,null,"Propiciar el intercambio de habilidades artísticas a través de un evento cultural en conjunto con la presentación de productos que se elaboran en los CAM, para promover la inclusión social y laboral de los alumnos con discapacidad. "]
[null,null,null,null,null,null,null,null,null,null,null,null,null,null,null,null,null,null,null,null,null,null,null,null,null,null,null,null,null,null,"Diseño y producción de lonas"]
[null,"En caso de requerir alguna precisión o aclaración, describa brevemente: ",null,null,null,null,null,null,null,null,null,null,null,null,null,null,null,null,null,null,null,null,null,null,null,null,null,null,null,null,"Renta de equipo de audio y/o video"]
[null,"Actividad artística donde participan los 5 CAM de la Ciudad de Durango y 5 CAM de región Laguna, con 2 números artísticos por Centro de Trabajo, en los stand se llevará a cabo un muestreo de las actividades y/o productos que elaboran dentro de la institución. Jornada de un día durante 5 horas.",null,null,null,null,null,null,null,null,null,null,null,null,null,null,null,null,null,null,null,null,null,null,null,null,null,null,null,null,"Renta de mobiliario"]

{"sheet":"2. Atención complementaria(AS)","index":11,"n_rows":48,"n_cols":24,"rows_kept":48,"cut":false,"hidden":false,"merged":[[44,1,44,2],[44,23,49,25],[46,1,46,20],[47,1,51,20],[30,23,35,25],[32,1,32,20],[33,1,37,20],[39,1,39,2],[39,3,39,5],[40,1,40,2],[40,3,40,5],[40,6,40,7],[40,8,40,10],[40,11,40,12],[40,13,40,16],[42,4,42,5],[25,1,25,2],[25,3,25,5],[26,1,26,2],[26,3,26,5],[26,6,26,7],[30,1,30,2],[28,19,28,20],[27,1,29,2],[27,3,27,5],[27,6,27,8],[27,9,27,11],[27,12,27,14],[28,4,28,5],[28,7,28,8],[28,10,28,11],[28,13,28,14],[26,8,26,10],[26,11,26,12],[26,13,26,16],[26,17,26,20],[41,15,41,17],[41,18,41,20],[41,23,43,25],[13,23,15,25],[13,21,15,22],[41,1,43,2],[41,3,41,5],[41,6,41,8],[41,9,41,11],[41,12,41,14],[16,1,16,2],[18,1,18,20],[19,1,23,20],[16,23,21,25],[40,17,40,20],[40,22,40,25],[42,7,42,8],[42,10,42,11],[26,22,26,25],[27,15,27,17],[27,18,27,20],[27,21,29,22],[27,23,29,25],[28,16,28,17],[41,21,43,22],[42,13,42,14],[42,16,42,17],[42,19,42,20],[0,1,4,25],[5,1,5,25],[6,1,6,25],[12,17,12,20],[8,1,8,2],[8,3,8,6],[8,7,8,8],[11,1,11,2],[9,1,9,2],[12,8,12,10],[11,3,11,5],[12,11,12,12],[12,1,12,2],[12,3,12,5],[7,1,7,25],[9,3,9,6],[12,6,12,7],[12,13,12,16],[12,22,12,25],[14,16,14,17],[13,1,15,2],[13,9,13,11],[14,19,14,20],[13,3,13,5],[13,12,13,14],[14,4,14,5],[14,7,14,8],[14,10,14,11],[14,13,14,14],[13,15,13,17],[13,6,13,8],[13,18,13,20]]}
[null,"Subsecretaría de Educación Básica\nDirección General de Desarrollo Curricular\nDirección de Fortalecimiento Curricular para la \nFormación Personal y Social en la Educación Básica\nEducación Especial"]
[]
[]
[]
[]
[null,"Componente: 2. Atención complementaria a estudiantes con aptitudes sobresalientes"]
[null,"Para garantizar el cumplimiento de los objetivos del PFSEE las AEL podrán  destinar hasta  un 50% del recurso, de acuerdo con lo estipulado en las reglas de operación 2024"]
[null,"2.1 Acciones orientadas a la intervención directa y la atención complementaria: académica, artística, deportiva, rehabilitadora, desarrollo de habilidades socioafectivas y/o que contribuyan en el diagnóstico de las y los estudiantes con aptitudes sobresalientes"]
[null,"Recurso programado:",null,{"$f":"'Estrategia 2024'!W62","v":1069697.26},null,null,null,"SEE focalizados:",null,"USAER",{"$f":"'Servicios EE 2024'!N21","v":81},"CAPEP",{"$f":"'Servicios EE 2024'!O21","v":0},"CRIE",{"$f":"'Servicios EE 2024'!P21","v":0},"UOP",{"$f":"'Servicios EE 2024'!Q21","v":0},"UAEBH",{"$f":"'Servicios EE 2024'!R21","v":0},"Otro",{"$f":"'Servicios EE 2024'!S21","v":0}]
[null,"Remanente",null,{"$f":"D9-SUM(A13:A53)","v":0}]
[]
[null,"Numero de actividad",null,"2.1.1"]
[{"$f":"R13","v":95248.22},"Tipo de actividad",null,"Trimestre de inicio",null,null,"3ro",null,"Trimestre de término",null,null,"3ro",null,"Presupuesto de la actividad",null,null,null,95248.22,null,null,null,"Título de la actividad","Caravanas de la ciencia"]
[null,"Académica",null,"USAER",null,null,"CAPEP",null,null,"CRIE",null,null,"UOP",null,null,"UAEBH",null,null,"Otro",null,null,"Especifique producto o servicio en lo que se planea ejercer",null,"Propósito de la actividad"]
[null,null,null,"SEE:",81,null,"SEE:",0,null,"SEE:",0,null,"SEE:",0,null,"SEE:",0,null,"SEE:",0]
[null,null,null,"M","H","T","M","H","T","M","H","T","M","H","T","M","H","T","M","H","T"]
[null,"Estudiantes beneficiados",null,420,420,{"$f":"SUM(D17,E17)","v":840},0,0,{"$f":"SUM(G17,H17)","v":0},0,0,{"$f":"SUM(J17,K17)","v":0},0,0,0,0,0,{"$f":"SUM(P17,Q17)","v":0},0,0,{"$f":"SUM(S17,T17)","v":0},"Compra de Box lunch",null,"Motivar el interés y la curiosidad por la ciencia, a través de demostraciones, experimentos y actividades lúdicas implementadas dentro de su contexto escolar para facilitar la detección de alumnos que muestren una inclinación natural por comprender y  aprender sobre temas científicos"]
[null,null,null,null,null,null,null,null,null,null,null,null,null,null,null,null,null,null,null,null,null,"Pago de traslados para asistentes"]
[null,"En caso de requerir alguna precisión o aclaración, describa brevemente: "]
[null,"Se realizará una jornada de 5 horas (1 día) en una sede de cada zona escolar, donde se llevará a cabo un taller con los alumnos para que realicen prácticas y experimentos relacionados con diversas ramas de la ciencia: química, física, biología y matemáticas. Para colaborar en el proceso de diagnóstico de alumnos."]
[]
[]
[]
[]
[]
[null,"Numero de actividad",null,"2.1.2"]
[{"$f":"R27","v":500000},"Tipo de actividad",null,"Trimestre de inicio",null,null,"4to",null,"Trimestre de término",null,null,"4to",null,"Presupuesto de la actividad",null,null,null,500000,null,null,null,"Título de la actividad","Talleres de enriquecimiento extracurricular de ciencias."]
[null,"Académica",null,"USAER",null,null,"CAPEP",null,null,"CRIE",null,null,"UOP",null,null,"UAEBH",null,null,"Otro",null,null,"Especifique producto o servicio en lo que se planea ejercer",null,"Propósito de la actividad"]
[null,null,null,"SEE:",65,null,"SEE:",0,null,"SEE:",0,null,"SEE:",0,null,"SEE:",0,null,"SEE:",0]
[null,null,null,"M","H","T","M","H","T","M","H","T","M","H","T","M","H","T","M","H","T"]
[null,"Estudiantes beneficiados",null,200,200,{"$f":"SUM(D31,E31)","v":400},0,0,{"$f":"SUM(G31,H31)","v":0},0,0,{"$f":"SUM(J31,K31)","v":0},0,0,{"$f":"SUM(M31,N31)","v":0},0,0,{"$f":"SUM(P31,Q31)","v":0},0,0,{"$f":"SUM(S31,T31)","v":0},"Pago a especialistas",null,"Potenciar las aptitudes sobresalientes de los alumnos ofreciéndoles un entorno estimulante y desafiante que les permita desarrollar todo su potencial en los campos del pensamiento científico."]
[]
[null,"En caso de requerir alguna precisión o aclaración, describa brevemente: "]
[null,"Implementación de talleres de ciencias en 3 grupos, jornadas de 3 horas. Durante 15 sábados."]
[]
[]
[]
[]
[]
[null,"Numero de actividad",null,"2.1.3"]
[{"$f":"R41","v":474449.04},"Tipo de actividad",null,"Trimestre de inicio",null,null,"4to",null,"Trimestre de término",null,null,"4to",null,"Presupuesto de la actividad",null,null,null,474449.04,null,null,null,"Título de la actividad","Talleres de enriquecimiento extracurricular de danza."]
[null,"Artística",null,"USAER",null,null,"CAPEP",null,null,"CRIE",null,null,"UOP",null,null,"UAEBH",null,null,"Otro",null,null,"Especifique producto o servicio en lo que se planea ejercer",null,"Propósito de la actividad"]
[null,null,null,"SEE:",46,null,"SEE:",0,null,"SEE:",0,null,"SEE:",0,null,"SEE:",0,null,"SEE:",0]
[null,null,null,"M","H","T","M","H","T","M","H","T","M","H","T","M","H","T","M","H","T"]
[null,"Estudiantes beneficiados",null,100,50,150,0,0,{"$f":"SUM(G45,H45)","v":0},0,0,0,0,0,0,0,0,0,0,0,{"$f":"SUM(S45,T45)","v":0},"Pago a especialistas",null,"Perfeccionar las habilidades técnicas de los alumnos con aptitudes sobresalientes en la danza folklórica."]
[]
[null,"En caso de requerir alguna precisión o aclaración, describa brevemente: "]
[null,"Implementación de talleres de danza, jornadas de 3 horas, durante 15 sábados en tres grupos de trabajo. Se implementa el siguiente nivel del taller de danza, para dar seguimiento y fortalecer las habilidades adquiridas."]

{"sheet":"3. Equipamiento espec. (DIS)","index":12,"n_rows":147,"n_cols":51,"rows_kept":147,"cut":false,"hidden":false,"merged":[[133,0,133,1],[137,20,139,20],[137,21,139,21],[138,3,139,3],[138,4,138,6],[138,8,139,8],[138,9,138,11],[138,13,139,13],[138,14,138,16],[137,22,139,25],[137,17,139,19],[137,3,137,6],[137,7,139,7],[137,8,137,11],[137,12,139,12],[137,13,137,16],[133,2,133,7],[113,0,113,1],[136,5,136,6],[136,10,136,11],[134,0,134,1],[134,2,134,7],[116,0,116,1],[118,0,118,1],[124,0,124,1],[125,0,125,1],[126,0,126,1],[127,0,127,1],[137,2,139,2],[136,2,136,4],[136,7,136,9],[137,0,139,0],[137,1,139,1],[147,0,147,25],[140,22,140,25],[141,22,141,25],[142,22,142,25],[142,17,142,19],[143,17,143,19],[144,17,144,19],[140,17,140,19],[141,17,141,19],[143,22,143,25],[146,0,146,25],[109,38,109,41],[109,42,111,42],[109,43,109,46],[110,44,110,46],[109,27,111,27],[132,0,132,50],[109,48,111,48],[109,49,111,49],[109,50,111,50],[110,3,111,3],[110,4,110,6],[110,8,111,8],[109,47,111,47],[109,23,109,26],[109,22,111,22],[110,9,110,11],[109,13,109,16],[109,17,111,17],[129,0,129,50],[130,0,130,50],[119,0,119,1],[120,0,120,1],[121,0,121,1],[122,0,122,1],[123,0,123,1],[108,10,108,11],[108,12,108,14],[108,15,108,16],[108,17,108,19],[108,20,108,21],[109,7,111,7],[109,8,109,11],[112,0,112,1],[115,0,115,1],[109,12,111,12],[114,0,114,1],[109,33,109,36],[109,37,111,37],[109,2,111,2],[109,3,109,6],[117,0,117,1],[136,12,136,14],[136,15,136,16],[108,42,108,44],[108,45,108,46],[110,13,111,13],[110,14,110,16],[110,18,111,18],[110,19,110,21],[110,23,111,23],[110,24,110,26],[110,28,111,28],[110,29,110,31],[110,33,111,33],[110,34,110,36],[110,38,111,38],[110,39,110,41],[110,43,111,43],[108,25,108,26],[108,27,108,29],[108,40,108,41],[109,28,109,31],[109,32,111,32],[108,37,108,39],[101,0,101,22],[98,2,98,5],[94,2,94,5],[95,2,95,5],[94,21,94,25],[95,21,95,25],[108,30,108,31],[108,32,108,34],[108,35,108,36],[96,2,96,5],[97,2,97,5],[97,16,97,18],[108,22,108,24],[105,2,105,7],[108,2,108,4],[108,5,108,6],[108,7,108,9],[102,0,102,22],[96,21,96,25],[97,21,97,25],[98,21,98,25],[104,0,104,50],[105,0,105,1],[62,47,64,47],[93,21,93,25],[85,11,85,13],[83,0,83,1],[83,2,83,7],[86,7,86,10],[93,2,93,5],[86,19,88,19],[89,21,89,25],[85,14,85,15],[86,2,88,5],[85,6,85,8],[85,9,85,10],[87,13,87,15],[86,1,88,1],[62,43,62,46],[63,43,64,43],[63,44,63,46],[63,33,64,33],[82,2,82,7],[91,21,91,25],[90,16,90,18],[86,16,88,18],[89,16,89,18],[38,0,38,1],[38,2,38,7],[40,5,40,6],[40,7,40,9],[42,18,43,18],[50,0,50,1],[59,0,59,1],[40,2,40,4],[40,10,40,11],[40,12,40,14],[63,8,64,8],[63,9,63,11],[61,5,61,6],[61,7,61,9],[44,0,44,1],[45,0,45,1],[46,0,46,1],[47,0,47,1],[48,0,48,1],[41,2,43,2],[41,3,41,6],[86,20,88,20],[63,28,64,28],[79,0,79,50],[63,23,64,23],[63,24,63,26],[62,18,62,21],[62,2,64,2],[63,14,63,16],[63,18,64,18],[63,19,63,21],[62,27,64,27],[62,0,64,0],[62,1,64,1],[63,34,63,36],[63,38,64,38],[63,39,63,41],[63,4,63,6],[82,0,82,1],[62,3,62,6],[62,7,64,7],[62,8,62,11],[62,12,64,12],[62,13,62,16],[63,3,64,3],[13,0,15,0],[40,45,40,46],[36,0,36,50],[42,19,42,21],[14,34,14,36],[13,37,15,37],[13,38,13,41],[14,38,15,38],[14,39,14,41],[14,4,14,6],[14,28,15,28],[34,0,34,50],[13,13,13,16],[14,33,15,33],[14,18,15,18],[14,19,14,21],[42,3,43,3],[42,4,42,6],[42,8,43,8],[42,13,43,13],[42,14,42,16],[41,12,43,12],[42,9,42,11],[41,0,43,1],[86,21,88,25],[99,16,99,18],[12,22,12,24],[33,0,33,50],[31,0,31,1],[37,0,37,1],[37,2,37,7],[12,25,12,26],[13,1,15,1],[12,27,12,29],[12,17,12,19],[12,20,12,21],[13,27,15,27],[14,13,15,13],[14,14,14,16],[13,17,15,17],[13,18,13,21],[12,37,12,39],[12,40,12,41],[81,0,81,50],[62,49,64,49],[62,50,64,50],[61,2,61,4],[62,37,64,37],[62,38,62,41],[61,20,61,21],[61,10,61,11],[61,12,61,14],[61,15,61,16],[61,17,61,19],[62,22,64,22],[62,23,62,26],[62,17,64,17],[63,29,63,31],[61,35,61,36],[62,28,62,31],[62,32,64,32],[61,42,61,44],[63,13,64,13],[78,0,78,50],[76,0,76,1],[62,33,62,36],[62,42,64,42],[62,48,64,48],[49,0,49,1],[54,0,54,50],[61,30,61,31],[61,32,61,34],[59,2,59,7],[61,22,61,24],[61,25,61,26],[61,37,61,39],[61,40,61,41],[57,0,57,50],[61,27,61,29],[51,0,51,1],[55,0,55,50],[52,0,52,1],[61,45,61,46],[58,0,58,1],[58,2,58,7],[41,7,43,7],[41,8,41,11],[41,18,41,21],[41,27,43,27],[41,28,41,31],[41,32,43,32],[41,17,43,17],[42,44,42,46],[41,47,43,47],[41,13,41,16],[42,23,43,23],[42,24,42,26],[41,43,41,46],[41,38,41,41],[41,42,43,42],[42,29,42,31],[41,22,43,22],[42,28,43,28],[41,50,43,50],[40,40,40,41],[40,37,40,39],[41,37,43,37],[42,38,43,38],[42,39,42,41],[42,43,43,43],[40,35,40,36],[41,23,41,26],[40,22,40,24],[40,25,40,26],[40,30,40,31],[40,32,40,34],[40,42,40,44],[41,48,43,48],[41,49,43,49],[41,33,41,36],[42,33,43,33],[42,34,42,36],[40,15,40,16],[40,17,40,19],[40,20,40,21],[14,29,14,31],[6,0,6,50],[8,0,8,50],[13,47,15,47],[13,48,15,48],[13,49,15,49],[13,50,15,50],[12,7,12,9],[13,22,15,22],[13,23,13,26],[14,23,15,23],[14,24,14,26],[12,42,12,44],[12,45,12,46],[13,42,15,42],[13,43,13,46],[14,43,15,43],[14,44,14,46],[9,0,9,1],[9,2,9,7],[40,27,40,29],[0,47,4,50],[12,2,12,4],[12,5,12,6],[12,30,12,31],[12,32,12,34],[12,35,12,36],[12,10,12,11],[13,7,15,7],[13,8,13,11],[14,8,15,8],[14,9,14,11],[13,12,15,12],[5,0,5,50],[0,0,4,36],[13,32,15,32],[13,33,13,36],[13,2,15,2],[13,3,13,6],[13,28,13,31],[10,0,10,1],[10,2,10,7],[14,3,15,3],[12,12,12,14],[12,15,12,16],[93,16,93,18],[94,16,94,18],[95,16,95,18],[96,16,96,18],[109,0,111,1],[87,8,87,10],[87,12,88,12],[98,16,98,18],[86,6,88,6],[86,11,88,11],[86,12,86,15],[109,18,109,21],[106,2,106,7],[89,2,89,5],[90,2,90,5],[91,2,91,5],[92,2,92,5],[106,0,106,1],[90,21,90,25],[91,16,91,18],[92,16,92,18],[86,0,88,0],[92,21,92,25],[87,7,88,7]]}
[null,null,null,null,null,null,null,null,null,null,null,null,null,null,null,null,null,null,null,null,null,null,null,null,null,null,null,null,null,null,null,null,null,null,null,null,null,null,null,null,null,null,null,null,null,null,null,"Subsecretaría de Educación Básica\nDirección General de Desarrollo Curricular\nDirección de Fortalecimiento Curricular para la \nFormación Personal y Social en la Educación Básica\nEducación Especial"]
[]
[]
[]
[]
["Componente: 3. Equipamiento específico en beneficio de estudiantes con discapacidad"]
["Para garantizar el cumplimiento de  los objetivos del PFSEE las AEL podrán destinar hasta un 80% del recurso, de acuerdo con lo estipulado en las reglas de operación 2024"]
[]
["3.1 Dotar de material didáctico especializado para estudiantes con discapacidad"]
["Recurso programado:",null,{"$f":"'Estrategia 2024'!H67","v":686043.12}]
["Remanente ",null,{"$f":"C10-AV32","v":0}]
[]
[null,null,"Focalizados USAER",null,null,{"$f":"'Servicios EE 2024'!B26","v":81},null,"Focalizados CAM básico",null,null,{"$f":"'Servicios EE 2024'!C26","v":0},null,"Focalizados CAM b con FpT",null,null,{"$f":"'Servicios EE 2024'!C28","v":28},null,"Focalizados CAM laboral",null,null,{"$f":"'Servicios EE 2024'!D26","v":2},null,"Focalizados CAPEP",null,null,{"$f":"'Servicios EE 2024'!E26","v":0},null,"Focalizados CRIE",null,null,{"$f":"'Servicios EE 2024'!F26","v":0},null,"Focalizados UOP",null,null,{"$f":"'Servicios EE 2024'!G26","v":0},null,"Focalizados UAEBH",null,null,{"$f":"'Servicios EE 2024'!H26","v":0},null,"Focalizados Otro",null,null,{"$f":"'Servicios EE 2024'!I26","v":0}]
["Tipo de materiales\n(seleccione)","Material a adquirir","Cantidad a distribuir","USAER",null,null,null,"Cantidad a distribuir","CAM básico",null,null,null,"Cantidad a distribuir","CAM básico con FpT",null,null,null,"Cantidad a distribuir","CAM laboral",null,null,null,"Cantidad a distribuir","CAPEP",null,null,null,"Cantidad a distribuir","CRIE",null,null,null,"Cantidad a distribuir","UOP",null,null,null,"Cantidad a distribuir","UAEBH",null,null,null,"Cantidad a distribuir","Otro",null,null,null,"Presupuesto","Trimestre de inicio","Trimestre de término","Propósito educativo\n(específico del material a adquirir)"]
[null,null,null,"SEE","Estudiantes",null,null,null,"SEE","Estudiantes",null,null,null,"SEE","Estudiantes",null,null,null,"SEE","Estudiantes",null,null,null,"SEE","Estudiantes",null,null,null,"SEE","Estudiantes",null,null,null,"SEE","Estudiantes",null,null,null,"SEE","Estudiantes",null,null,null,"SEE","Estudiantes"]
[null,null,null,null,"M","H","T",null,null,"M","H","T",null,null,"M","H","T",null,null,"M","H","T",null,null,"M","H","T",null,null,"M","H","T",null,null,"M","H","T",null,null,"M","H","T",null,null,"M","H","T"]
["Paquetes con diversos materiales","Paquete para DV:  2 alfabeto braille, 2 paquete de fracciones en braille, 3 memorama en braille, 3 lotería braille, 3 mapa en relieve de México, 3 mapa en relieve de Durango, 3 mapamundis en relieve, juegos de mesa: 1 juego gato adaptado y un juego parchis adaptado para discapacidad visual. ",2,2,1,5,{"$f":"SUM(E17,F17)","v":6},0,0,0,0,{"$f":"SUM(J17,K17)","v":0},3,3,3,2,{"$f":"SUM(O17,P17)","v":5},0,0,0,0,{"$f":"SUM(T17,U17)","v":0},0,0,0,0,{"$f":"SUM(Y17,Z17)","v":0},0,0,0,0,{"$f":"SUM(AD17,AE17)","v":0},0,0,0,0,{"$f":"SUM(AI17,AJ17)","v":0},0,0,0,0,{"$f":"SUM(AN17,AO17)","v":0},0,0,0,0,{"$f":"SUM(AS17,AT17)","v":0},65500,"3ro","4to","Favorecer el desarrollo de habilidades de pensamiento matemático, lenguaje y conocimiento del medio en alumnos con discapacidad visual."]
["Paquetes con diversos materiales","Paquete de Juguetes Montessori: 3 Cajas de clasificación cognitiva, 5 juegos de ensamble de madera de diversos campos semánticos: animales, figuras geométricas, verduras, transportes, profesiones.  ",0,0,0,0,{"$f":"SUM(E18,F18)","v":0},0,0,0,0,{"$f":"SUM(J18,K18)","v":0},5,5,104,159,{"$f":"SUM(O18,P18)","v":263},0,0,0,0,{"$f":"SUM(T18,U18)","v":0},0,0,0,0,{"$f":"SUM(Y18,Z18)","v":0},0,0,0,0,{"$f":"SUM(AD18,AE18)","v":0},0,0,0,0,{"$f":"SUM(AI18,AJ18)","v":0},0,0,0,0,{"$f":"SUM(AN18,AO18)","v":0},0,0,0,0,{"$f":"SUM(AS18,AT18)","v":0},61750,"3ro","4to","Favorcer el desarrollo de la psicomotricidad fina y gruesa, el pensamiento matemático y el conocimiento del mundo en alumnos de CAM"]
["Paquetes con diversos materiales","Material para TEA: 3 tarjetas de horario visual, 3 calendario de anticipación, 3 temporalizadores",0,0,0,0,0,0,0,0,0,0,3,3,6,30,36,0,0,0,0,0,0,0,0,0,0,0,0,0,0,0,0,0,0,0,0,0,0,0,0,0,0,0,0,0,0,11400,"3ro","4to","Favorecer la adaptación a la jornada y rutina diara escolar, así como habilidades para el desarrollo de pensamiento matemático, comunicación y conocimiento del mundo en alumnos con TEA"]
["Paquetes con diversos materiales","Paquete deportivo: 1 twister, 2 set de 3 postes de agilidad y entrenamiento deportivo 1.20m, 3 balones sonoros: 1 de futbol, 1 basquetbol, 1 voleibol, 1 kit de pelotas sensoriales: pelota de yoga de 75 cm con 2 mm de espesor, 1 paracaídas.",0,0,0,0,0,0,0,0,0,0,2,2,22,33,55,0,0,0,0,0,0,0,0,0,0,0,0,0,0,0,0,0,0,0,0,0,0,0,0,0,0,0,0,0,0,10400,"3ro","4to","Favorecer el desarrollo de psicomotricidad gruesa. "]
["Paquetes con diversos materiales","Paquete construcción: 3  Juegos de construcción con bolas y varillas magnéticas de 50 piezas, 3 kit de bloques de construcción LEGO primaria, 3 kit de bloques de construcción LEGO preescolar,  3 kits de bloques magnéticos de construcción en 3D, 1 arenal sensorial. ",0,0,0,0,0,0,0,0,0,0,6,6,224,374,598,0,0,0,0,0,0,0,0,0,0,0,0,0,0,0,0,0,0,0,0,0,0,0,0,0,0,0,0,0,0,223200,"3ro","4to","Favorcer el desarrollo de la psicomotricidad fina y gruesa, el pensamiento matemático y el conocimiento del mundo en alumnos de CAM"]
["Paquetes con diversos materiales","Paquete Juegos de estrategia: 1 Jenga gigante, 2 dados de foamy de 50 cm, 1 Adigma, 1 desafío pin-pong, 1 apilamiento de tazas, 1 adivina quién, 1 gato, 1 parchis, 1 acrobat, 2 reloj de arena, 2 temporalizador de 60 min. ",0,0,0,0,0,0,0,0,0,0,5,5,178,297,475,0,0,0,0,0,0,0,0,0,0,0,0,0,0,0,0,0,0,0,0,0,0,0,0,0,0,0,0,0,0,48800,"3ro","4to","Mejorar las habilidades cognitivas como la planificación, la toma de decisiones, el razonamiento lógico y la resolución de problemas en alumnos con discapacidad."]
["Paquetes con diversos materiales","Paquete sensorial: 1 Geoplano, 1 pizarrón magnético, 1 alfabeto de imán, 1 números de imán, 1 máquina de burbujas, 1 lotería de sonidos, 1 memoria electrónica de mano con luces y sonido. ",0,0,0,0,{"$f":"SUM(E23,F23)","v":0},0,0,0,0,{"$f":"SUM(J23,K23)","v":0},3,3,66,104,{"$f":"SUM(O23,P23)","v":170},0,0,0,0,{"$f":"SUM(T23,U23)","v":0},0,0,0,0,{"$f":"SUM(Y23,Z23)","v":0},0,0,0,0,{"$f":"SUM(AD23,AE23)","v":0},0,0,0,0,{"$f":"SUM(AI23,AJ23)","v":0},0,0,0,0,{"$f":"SUM(AN23,AO23)","v":0},0,0,0,0,{"$f":"SUM(AS23,AT23)","v":0},22650,"3ro","4to","Favorcer el desarrollo de la psicomotricidad fina y gruesa, el pensamiento matemático y el conocimiento del mundo en alumnos de CAM"]
["Tableros de comunicación","Tableros de madera o plástico grueso con estuche para diferentes campos y contextos",50,5,2,28,{"$f":"SUM(E24,F24)","v":30},0,0,0,0,{"$f":"SUM(J24,K24)","v":0},21,4,85,142,{"$f":"SUM(O24,P24)","v":227},0,0,0,0,{"$f":"SUM(T24,U24)","v":0},0,0,0,0,{"$f":"SUM(Y24,Z24)","v":0},0,0,0,0,{"$f":"SUM(AD24,AE24)","v":0},0,0,0,0,{"$f":"SUM(AI24,AJ24)","v":0},0,0,0,0,{"$f":"SUM(AN24,AO24)","v":0},0,0,0,0,{"$f":"SUM(AS24,AT24)","v":0},42600,"3ro","4to","Favorecer el desarrollo de habilidades de comunicación en alumnos con discapacidad."]
["Regletas y punzón","Regleta y punzón metálicos tamaño carta resistentes",8,2,0,3,3,0,0,0,0,0,1,1,1,0,1,0,0,0,0,0,0,0,0,0,0,0,0,0,0,0,0,0,0,0,0,0,0,0,0,0,0,0,0,0,0,14000,"3ro","4to","Favorecer el desarrollo de procesos de lectura y escritura en alumnos con DV"]
[" Ábaco Cramer","Ábaco de material resistente con estuche",6,2,0,3,3,0,0,0,0,0,4,2,1,1,2,0,0,0,0,0,0,0,0,0,0,0,0,0,0,0,0,0,0,0,0,0,0,0,0,0,0,0,0,0,0,27040,"3ro","4to","Favorecer el desarrollo de pensamiento matemático en alumnos con DV"]
["Regletas cuisenaire","Regletas de material resistente ",18,18,176,458,634,0,0,0,0,0,5,1,28,43,71,0,0,0,0,0,0,0,0,0,0,0,0,0,0,0,0,0,0,0,0,0,0,0,0,0,0,0,0,0,0,13455,"3ro","4to","Favorecer el desarrollo de pensamiento matemático en alumnos con Discapacidad"]
["Caja aritmética","Caja de madera resistente ",9,6,2,7,9,0,0,0,0,0,5,3,3,2,5,0,0,0,0,0,0,0,0,0,0,0,0,0,0,0,0,0,0,0,0,0,0,0,0,0,0,0,0,0,0,24000,"3ro","4to","Favorecer el desarrollo de pensamiento matemático en alumnos con DV"]
["Material didáctico concreto","Lámpara de lava",0,0,0,0,0,0,0,0,0,0,15,3,142,242,384,0,0,0,0,0,0,0,0,0,0,0,0,0,0,0,0,0,0,0,0,0,0,0,0,0,0,0,0,0,0,60900,"3ro","4to","Favorecer la estimulación sensorial"]
["Paquetes con diversos materiales","Paquete lectoescritura de 5 silabarios, 5 alfabeto móvil, 5 juegos de números móviles de plástico, 5 tarjetas de abecedario por asociación. ",16,16,176,427,603,0,0,0,0,0,0,0,0,0,0,0,0,0,0,0,0,0,0,0,0,0,0,0,0,0,0,0,0,0,0,0,0,0,0,0,0,0,0,0,0,58848.12,"3ro","4to","Desarrollar habilidades de lectoescritura en alumnos con discapacidad."]
["Material didáctico concreto","Lupa ",0,0,0,0,0,0,0,0,0,0,5,4,3,2,5,0,0,0,0,0,0,0,0,0,0,0,0,0,0,0,0,0,0,0,0,0,0,0,0,0,0,0,0,0,0,1500,"3ro","4to","Favorecer el acceso a diversos formatos para alumnos con debilidad visual "]
["Total",null,{"$f":"SUM(C17:C31)","v":109},51,357,931,1288,0,0,0,0,0,83,45,866,1431,2297,0,0,0,0,0,0,0,0,0,0,0,0,0,0,0,0,{"$f":"SUM(AH17:AH31)","v":0},0,0,0,0,0,0,0,0,0,0,0,0,0,686043.12]
[]
["En caso de requerir alguna precisión o aclaración, describa brevemente: "]
[]
[]
["3.2 Dotar de material bibliográfico para estudiantes con discapacidad"]
["Recurso programado:",null,{"$f":"'Estrategia 2024'!H68","v":34200}]
["Remanente ",null,{"$f":"C38-AV53","v":0}]
[]
[null,null,"Focalizados USAER",null,null,{"$f":"'Servicios EE 2024'!B26","v":81},null,"Focalizados CAM básico",null,null,{"$f":"'Servicios EE 2024'!C26","v":0},null,"Focalizados CAM b con FpT",null,null,{"$f":"'Servicios EE 2024'!C28","v":28},null,"Focalizados CAM laboral",null,null,{"$f":"'Servicios EE 2024'!D26","v":2},null,"Focalizados CAPEP",null,null,{"$f":"'Servicios EE 2024'!E26","v":0},null,"Focalizados CRIE",null,null,{"$f":"'Servicios EE 2024'!F26","v":0},null,"Focalizados UOP",null,null,{"$f":"'Servicios EE 2024'!G26","v":0},null,"Focalizados UAEBH",null,null,{"$f":"'Servicios EE 2024'!H26","v":0},null,"Focalizados Otro",null,null,{"$f":"'Servicios EE 2024'!I26","v":0}]
["Tipo de libros\n(seleccione)",null,"Cantidad a distribuir","USAER",null,null,null,"Cantidad a distribuir","CAM básico",null,null,null,"Cantidad a distribuir","CAM básico con FpT",null,null,null,"Cantidad a distribuir","CAM laboral",null,null,null,"Cantidad a distribuir","CAPEP",null,null,null,"Cantidad a distribuir","CRIE",null,null,null,"Cantidad a distribuir","UOP",null,null,null,"Cantidad a distribuir","UAEBH",null,null,null,"Cantidad a distribuir","Otro",null,null,null,"Presupuesto","Trimestre de inicio","Trimestre de término","Propósito educativo\n(específico de la bibliografía a adquirir)"]
[null,null,null,"SEE","Estudiantes",null,null,null,"SEE","Estudiantes",null,null,null,"SEE","Estudiantes",null,null,null,"SEE","Estudiantes",null,null,null,"SEE","Estudiantes",null,null,null,"SEE","Estudiantes",null,null,null,"SEE","Estudiantes",null,null,null,"SEE","Estudiantes",null,null,null,"SEE","Estudiantes"]
[null,null,null,null,"M","H","T",null,null,"M","H","T",null,null,"M","H","T",null,null,"M","H","T",null,null,"M","H","T",null,null,"M","H","T",null,null,"M","H","T",null,null,"M","H","T",null,null,"M","H","T"]
["Especializados en atención educativa",null,2,1,1,21,{"$f":"SUM(E45,F45)","v":22},0,0,0,0,{"$f":"SUM(J45,K45)","v":0},0,0,0,0,{"$f":"SUM(O45,P45)","v":0},0,0,0,0,{"$f":"SUM(T45,U45)","v":0},0,0,0,0,{"$f":"SUM(Y45,Z45)","v":0},0,0,0,0,{"$f":"SUM(AD45,AE45)","v":0},0,0,0,0,{"$f":"SUM(AI45,AJ45)","v":0},0,0,0,0,{"$f":"SUM(AN45,AO45)","v":0},0,0,0,0,{"$f":"SUM(AS45,AT45)","v":0},5400,"3ro","4to","Proporcionar recursos y herramientas específicas para mejorar la atención educativa, el  desarrollo personal de los estudiantes."]
["Especializados en discapacidad",null,2,1,4,14,{"$f":"SUM(E46,F46)","v":18},0,0,0,0,{"$f":"SUM(J46,K46)","v":0},0,0,0,0,{"$f":"SUM(O46,P46)","v":0},0,0,0,0,{"$f":"SUM(T46,U46)","v":0},0,0,0,0,{"$f":"SUM(Y46,Z46)","v":0},0,0,0,0,{"$f":"SUM(AD46,AE46)","v":0},0,0,0,0,{"$f":"SUM(AI46,AJ46)","v":0},0,0,0,0,{"$f":"SUM(AN46,AO46)","v":0},0,0,0,0,{"$f":"SUM(AS46,AT46)","v":0},3800,"3ro","4to","Ofrecer a los docentes estrategias y técnicas adicionales para abordar las necesidades individuales de los estudiantes en el aula."]
["Especializados en atención educativa",null,2,1,4,11,15,0,0,0,0,0,0,0,0,0,0,0,0,0,0,0,0,0,0,0,0,0,0,0,0,0,0,0,0,0,0,0,0,0,0,0,0,0,0,0,0,16200,"3ro","4to","Mejorar las habilidades de lenguaje y expresión oral, al exponerse a una variedad de estilos de escritura y estructura lingüística.  "]
["Especializados en atención educativa",null,2,1,11,20,31,0,0,0,0,0,0,0,0,0,0,0,0,0,0,0,0,0,0,0,0,0,0,0,0,0,0,0,0,0,0,0,0,0,0,0,0,0,0,0,0,2400,"3ro","4to","Ofrecer estrategias para apoyar el desarrollo de habilidades sociales y emocionales como la comunicación, la interaccción social y la autorregulación emocional en alumnos con autismo."]
["En formatos accesibles",null,2,2,2,5,7,0,0,0,0,0,0,0,0,0,0,0,0,0,0,0,0,0,0,0,0,0,0,0,0,0,0,0,0,0,0,0,0,0,0,0,0,0,0,0,0,6400,"3ro","4to","Proporcionar a los estudiantes con discapacidad visual acceso a material educativo que le permita participar plenamente en actividades educativas."]
[null,null,0,0,0,0,0,0,0,0,0,0,0,0,0,0,0,0,0,0,0,0,0,0,0,0,0,0,0,0,0,0,0,0,0,0,0,0,0,0,0,0,0,0,0,0,0]
[null,null,0,0,0,0,0,0,0,0,0,0,0,0,0,0,0,0,0,0,0,0,0,0,0,0,0,0,0,0,0,0,0,0,0,0,0,0,0,0,0,0,0,0,0,0,0]
[null,null,0,0,0,0,0,0,0,0,0,0,0,0,0,0,0,0,0,0,0,0,0,0,0,0,0,0,0,0,0,0,0,0,0,0,0,0,0,0,0,0,0,0,0,0,0]
["Total",null,{"$f":"SUM(C45:C52)","v":10},6,22,71,93,0,0,0,0,0,0,0,0,0,0,0,0,0,0,0,0,0,0,0,0,0,0,0,0,0,0,0,0,0,0,0,0,0,0,0,0,0,0,0,0,34200]
[]
["En caso de requerir alguna precisión o aclaración, describa brevemente: "]
["Son paquetes de libros a distribuir."]
[]
["3.5 Dotar de equipo adaptado, tecnológico y/o multimedia para estudiantes con discapacidad"]
["Recurso programado:",null,{"$f":"'Estrategia 2024'!H71","v":1643430}]
["Remanente ",null,{"$f":"C59-AV77","v":0}]
[]
[null,null,"Focalizados USAER",null,null,{"$f":"'Servicios EE 2024'!B26","v":81},null,"Focalizados CAM básico",null,null,{"$f":"'Servicios EE 2024'!C26","v":0},null,"Focalizados CAM b con FpT",null,null,{"$f":"'Servicios EE 2024'!C28","v":28},null,"Focalizados CAM laboral",null,null,{"$f":"'Servicios EE 2024'!D26","v":2},null,"Focalizados CAPEP",null,null,{"$f":"'Servicios EE 2024'!E26","v":0},null,"Focalizados CRIE",null,null,{"$f":"'Servicios EE 2024'!F26","v":0},null,"Focalizados UOP",null,null,{"$f":"'Servicios EE 2024'!G26","v":0},null,"Focalizados UAEBH",null,null,{"$f":"'Servicios EE 2024'!H26","v":0},null,"Focalizados Otro",null,null,{"$f":"'Servicios EE 2024'!I26","v":0}]
["Tipo de equipo\n(seleccione)","Características generales de los equipos","Cantidad a distribuir","USAER",null,null,null,"Cantidad a distribuir","CAM básico",null,null,null,"Cantidad a distribuir","CAM básico con FpT",null,null,null,"Cantidad a distribuir","CAM laboral",null,null,null,"Cantidad a distribuir","CAPEP",null,null,null,"Cantidad a distribuir","CRIE",null,null,null,"Cantidad a distribuir","UOP",null,null,null,"Cantidad a distribuir","UAEBH",null,null,null,"Cantidad a distribuir","Otro",null,null,null,"Presupuesto","Trimestre de inicio","Trimestre de término","Propósito educativo\n(específico de los materiales)"]
[null,null,null,"SEE","Estudiantes",null,null,null,"SEE","Estudiantes",null,null,null,"SEE","Estudiantes",null,null,null,"SEE","Estudiantes",null,null,null,"SEE","Estudiantes",null,null,null,"SEE","Estudiantes",null,null,null,"SEE","Estudiantes",null,null,null,"SEE","Estudiantes",null,null,null,"SEE","Estudiantes"]
[null,null,null,null,"M","H","T",null,null,"M","H","T",null,null,"M","H","T",null,null,"M","H","T",null,null,"M","H","T",null,null,"M","H","T",null,null,"M","H","T",null,null,"M","H","T",null,null,"M","H","T"]
["Cañón","Proyector lcd, 3400 lúmenes, brillo de proyector, lámpara UHE 210 vatios, tecnología de proyección 3LCD, resolución de proyección XGA (1024 x 768), resolución de contraste 15000:1 dinámico",19,16,138,344,{"$f":"SUM(E66,F66)","v":482},0,0,0,0,{"$f":"SUM(J66,K66)","v":0},13,12,269,468,{"$f":"SUM(O66,P66)","v":737},0,0,0,0,{"$f":"SUM(T66,U66)","v":0},0,0,0,0,{"$f":"SUM(Y66,Z66)","v":0},0,0,0,0,{"$f":"SUM(AD66,AE66)","v":0},0,0,0,0,{"$f":"SUM(AI66,AJ66)","v":0},0,0,0,0,{"$f":"SUM(AN66,AO66)","v":0},0,0,0,0,{"$f":"SUM(AS66,AT66)","v":0},422560.47,"3ro","4to","Facilitar las actividades académicas a favor de alumnos con discapacidad."]
["Equipo de cómputo","Laptop, procesador intel core i5-1235 U 12 th gen (12 MB CACHÉ, 10 core 12 threads 4.40 Ghz turbo). Sistema operativo windows 11 home single en español. Microsoft office profesional 2021 en español. Adaptador de C.A.65 watt. Memoria ram 8 gb DDR4 3200 mhz. pantalla 16 pulgadas fhd (1920 x 1200) 60 hz led antirreflejo. teclado en español, tarjeta inalámbrica wifi 6E AX211, 2X2, 802.11ax, bluetooth.",8,8,45,139,{"$f":"SUM(E67,F67)","v":184},0,0,0,0,{"$f":"SUM(J67,K67)","v":0},3,3,37,63,{"$f":"SUM(O67,P67)","v":100},1,1,33,33,{"$f":"SUM(T67,U67)","v":66},0,0,0,0,{"$f":"SUM(Y67,Z67)","v":0},0,0,0,0,{"$f":"SUM(AD67,AE67)","v":0},0,0,0,0,{"$f":"SUM(AI67,AJ67)","v":0},0,0,0,0,{"$f":"SUM(AN67,AO67)","v":0},0,0,0,0,{"$f":"SUM(AS67,AT67)","v":0},372000,"3ro","4to","Favorecer el desarrollo de habilidades digitales en los alumnos mediante TICS y comunucación."]
["Equipo de cómputo","Pc escritorio: Intel®️ Core™️ i5 14500T vPro®️ (24MB cache, 14 cores, 20 threads, up to 4.8 GHz)\nWindows 11 Pro, inglés, español, francés y portugués de Brasil\nIntel®️ Graphics\n8 GB: 1 x 8 GB, DDR5\n256 GB, M.2 2230, PCIe NVMe, SSD, Class 35\n23.8 pulgadas pantalla.",1,1,2,8,10,0,0,0,0,0,10,10,175,251,426,0,0,0,0,0,0,0,0,0,0,0,0,0,0,0,0,0,0,0,0,0,0,0,0,0,0,0,0,0,0,258000,"3ro","4to","Fortalecer procesos de aprendizaje de los alumnos con uso de programas especiales"]
["Impresora","Multifuncional de inyección de tinta continua, volumen de impresión mensual 500 páginas aproximadamente, velocidad de impresión en negro 10 ppm, velocidad de impresión a color 5 ppm, interface ethernet integrada.",13,13,89,248,337,0,0,0,0,0,15,15,264,391,655,1,1,33,33,66,0,0,0,0,0,0,0,0,0,0,0,0,0,0,0,0,0,0,0,0,0,0,0,0,0,290000,"3ro","4to","Favorecer  el desarrollo de habilidades cognitivas y sensoperceptuales en alumnos con discapacidad y trastornos (TEA y TDAH)"]
["Enmicadora","Enmicadora térmica fusión ancho 22 cm carta, 3.5 milésimas, dimensiones 14, 2L, x 12,6 w x 41, 4h centímetros.",1,1,11,24,35,0,0,0,0,0,6,6,123,199,322,0,0,0,0,0,0,0,0,0,0,0,0,0,0,0,0,0,0,0,0,0,0,0,0,0,0,0,0,0,0,12600,"3ro","4to","Apoyar el desarrollo de habilidades manuales de los alumnos y la protección de materiales."]
["Reproductor de video","Smart tv, 50 pulgadas, diseño flat-FHD, resolución: 1920 x 1080, 16-7 70 hz, white color enhancer, mega contraste, connect share, POP integrado IP video close.",0,0,0,0,{"$f":"SUM(E71,F71)","v":0},0,0,0,0,{"$f":"SUM(J71,K71)","v":0},4,4,58,74,{"$f":"SUM(O71,P71)","v":132},0,0,0,0,{"$f":"SUM(T71,U71)","v":0},0,0,0,0,{"$f":"SUM(Y71,Z71)","v":0},0,0,0,0,{"$f":"SUM(AD71,AE71)","v":0},0,0,0,0,{"$f":"SUM(AI71,AJ71)","v":0},0,0,0,0,{"$f":"SUM(AN71,AO71)","v":0},0,0,0,0,{"$f":"SUM(AS71,AT71)","v":0},39734.199999999997,"3ro","4to","Apoyo a las actividades académias dentro del aula."]
["Otro (especifique)","Teclado adaptado (Braille) para equipo computo.",4,4,3,6,{"$f":"SUM(E72,F72)","v":9},0,0,0,0,{"$f":"SUM(J72,K72)","v":0},7,7,4,5,{"$f":"SUM(O72,P72)","v":9},0,0,0,0,{"$f":"SUM(T72,U72)","v":0},0,0,0,0,{"$f":"SUM(Y72,Z72)","v":0},0,0,0,0,{"$f":"SUM(AD72,AE72)","v":0},0,0,0,0,{"$f":"SUM(AI72,AJ72)","v":0},0,0,0,0,{"$f":"SUM(AN72,AO72)","v":0},0,0,0,0,{"$f":"SUM(AS72,AT72)","v":0},19940.25,"3ro","4to","Favorecer acceso a contenidos en los alumnos"]
["Otro (especifique)","Cámara video, cámara web para PC y portátil, 1080 p - micrófono,  conexión USB, 1920x1080 hd resolución, clip adaptador de pantalla.",0,0,0,0,{"$f":"SUM(E73,F73)","v":0},0,0,0,0,{"$f":"SUM(J73,K73)","v":0},1,1,29,51,{"$f":"SUM(O73,P73)","v":80},0,0,0,0,{"$f":"SUM(T73,U73)","v":0},0,0,0,0,{"$f":"SUM(Y73,Z73)","v":0},0,0,0,0,{"$f":"SUM(AD73,AE73)","v":0},0,0,0,0,{"$f":"SUM(AI73,AJ73)","v":0},0,0,0,0,{"$f":"SUM(AN73,AO73)","v":0},0,0,0,0,{"$f":"SUM(AS73,AT73)","v":0},1786.4,"3ro","4to","Apoyar involucrar a los alumnos en las TIC."]
["Otro (especifique)","Pantalla interactiva, 75 M5A, conectividad rj-45 hdmi y vga, 165 x 92.8 cm, resolución de pantalla de 3840 x 2160 pixeles y retroliuminación led, sistema operativo Android 8.0 preinstalado.",0,0,0,0,{"$f":"SUM(E74,F74)","v":0},0,0,0,0,{"$f":"SUM(J74,K74)","v":0},6,6,165,269,{"$f":"SUM(O74,P74)","v":434},0,0,0,0,{"$f":"SUM(T74,U74)","v":0},0,0,0,0,{"$f":"SUM(Y74,Z74)","v":0},0,0,0,0,{"$f":"SUM(AD74,AE74)","v":0},0,0,0,0,{"$f":"SUM(AI74,AJ74)","v":0},0,0,0,0,{"$f":"SUM(AN74,AO74)","v":0},0,0,0,0,{"$f":"SUM(AS74,AT74)","v":0},225000,"3ro","4to","Apoyo a las actividades académicas dentro del aula."]
["Otro (especifique)","Engargoladora, para arillo metálico y espiral.",1,1,11,24,35,0,0,0,0,0,0,0,0,0,0,0,0,0,0,0,0,0,0,0,0,0,0,0,0,0,0,0,0,0,0,0,0,0,0,0,0,0,0,0,0,800,"3ro","4to","Diseño de material didáctico"]
["Otro (especifique)","Magnificador de pantalla, 3d lupa black, 18 x 15 x 2 cm, inalámbrica con peso del producto de 1kg.",3,1,1,2,3,0,0,0,0,0,0,0,0,0,0,0,0,0,0,0,0,0,0,0,0,0,0,0,0,0,0,0,0,0,0,0,0,0,0,0,0,0,0,0,0,1008.68,"3ro","4to","Brindar herramientas que complementen la atención a los alumnos con discapacidad."]
["Total",null,{"$f":"SUM(C66:C76)","v":50},45,300,795,1095,0,0,0,0,0,65,64,1124,1771,2895,2,2,66,66,132,0,0,0,0,0,0,0,0,0,0,0,0,0,0,0,0,0,0,0,0,0,0,0,0,0,1643429.9999999998]
[]
["En caso de requerir alguna precisión o aclaración, describa brevemente: "]
[]
[]
["3.6 Adquirir herramientas, utensilios, enseres domésticos y aparatos electrónicos que se requieren para impartir talleres laborales que se ofertan en los CAM laboral y con Formación para el Trabajo"]
["Recurso programado:",null,{"$f":"'Estrategia 2024'!H72","v":1308924.8}]
["Remanente ",null,{"$f":"C83-Q100","v":0}]
[]
[null,null,null,null,null,null,"Focalizados CAM b con FpT",null,null,{"$f":"'Servicios EE 2024'!C28","v":28},null,"Focalizados CAM laboral",null,null,{"$f":"'Servicios EE 2024'!D26","v":2}]
["Taller a equipar","Herramienta, utensilio, mobiliario o aparato a adquirir","Insumo para instalación, mantenimiento y/o reparación",null,null,null,"Cantidad a distribuir","CAM básico con FpT",null,null,null,"Cantidad a distribuir","CAM laboral",null,null,null,"Presupuesto",null,null,"Trimestre de inicio","Trimestre de término","Propósito educativo\n(específico de los materiales a reproducir)"]
[null,null,null,null,null,null,null,"SEE","Estudiantes",null,null,null,"SEE","Estudiantes"]
[null,null,null,null,null,null,null,null,"M","H","T",null,null,"M","H","T"]
["Taller de lavandería","1 Lavadora, 1 Secadora, 1 Estante de metal (cesta)",null,null,null,null,6,6,93,126,{"$f":"SUM(I90,J90)","v":219},0,0,0,0,{"$f":"SUM(N90,O90)","v":0},331424.8,null,null,"3ro","4to","Desarrollo de habilidades para la operación de los equipos de lavar y secar, así como el uso  de los materiales."]
["Taller de Cocina","1 Juego de vaporeras, 1 Olla presto 6lts,  1 Sarten 6 lts con tapa, 100 Platos hondos, 100 platos extendidos, 100 vasos de vidrio, 100 tazas de ceramica, 100 juego de cubiertos, 2  tanques de gas, 1 cafetera 20 tazas, 1 licuadora industrial, 1 batidora de pedestal, 20 tenedores, 1 comal, 25 cucharas grandes, 15 cuchillos, 1 estufa industrial, 2 tablas para picar, 2 tarja doble tina",null,null,null,null,8,8,130,180,{"$f":"SUM(I91,J91)","v":310},0,0,0,0,{"$f":"SUM(N91,O91)","v":0},151960,null,null,"3ro","4to","Desarrollar saberes, habilidades y aptitudes en los alumnos con discapacidad de los CAM Laboral, para favorecer la inclusión en el ámbito laboral, para reforzar hábitos de higiene y seguridad, así como para distinguir los alimentos."]
["Taller de repostería","1 Máquina para hacer churros, 1 crepera, 3  moldes para repostería, 10 mandiles, 1  cazo de cobre, 4 cucharon, 1 escurridor para aceite, 2 vitroleras plástico, 2 cucharones para agua, 5 tenazas, 1 freidora, 1 maquina palomera, 1 batidora industrial, 1 batería de sartenes, 1 moldes para pastel, 1 horno electrico, 1 licuadora, 1 batidora manual, 1 juego de tazas medidoras.",null,null,null,null,8,8,172,265,437,0,0,0,0,0,210540,null,null,"3ro","4to","Fortalecer habilidades laborales en los alumnos de CAM para la elaboración de repostería."]
["Empaquetado","3 Pistola de silicón Industrial, 2 Cortadoras, 2 Tijeras eléctricas, 2 Selladora industrial, 1 Aparato para emplayado de alimentos",null,null,null,null,1,1,19,26,45,0,0,0,0,0,12500,null,null,"3ro","4to","Desarrollar en los alumnos habilidades para el empaquetado de alimentos."]
["Manualidades","1 Enmicadora, 2 Guillotina",null,null,null,null,2,2,27,33,60,0,0,0,0,0,8000,null,null,"3ro","4to","Favorecer en los alumnos habilidades creativas "]
["Jardinería/Herramientas","1 Malla sombra 6x6, 2 Extintores, 1 Diablito, 1 Escalera de tripie 3 mts, 1 Tijeras para podar, 1 Asadones, 1 Carretilla, 1 Pala, 1 Desbrozadora, 1 Rastrillos, 1 Mangueras, 1 Caja de herramientas",null,null,null,null,5,5,161,271,432,2,2,54,67,121,55500,null,null,"3ro","4to","Desarrollo de habilidades para el manejo del suelo,  las plantas y su cuidado."]
["Carpintería","1 Lijadora de 1/4, 1 Martillo de carpintero, 1 Serruchos de costilla de hoja, 1 Juego de brocas p/router, 1 Cintas metricas, 1 Taladros de 3/8, Berbiqui, 1 Caladora eléctrica, 1 Clavadora neumática, 1 Pistola de aire, 1 Cepillos, 1 Escofinas, 1 Escuadras de 8\", 1 Router dos manos, 1 Router una mano, 1 Compresor, 1 Pulidora, 1 Disco p/sierra diente diamante 10\" entrada 5/8, 1 Sierra circular, 1 Taladro inhalámbrico, 1 Sierra de banco, 1 Sierra Ingletadora.",null,null,null,null,4,4,80,122,202,2,2,54,67,121,35000,null,null,"3ro","4to","Desarrollar habilidades necesarias para el oficio de trabajar y labrar la madera creando objetos útiles."]
["Corte y confección ","1 Máquina remalladora industrial de 5 hilos, 1 Máquina remalladora industrial  MC 500E, 1 Máquina estampadora, 2 Plancha industrial de vapor",null,null,null,null,0,0,0,0,0,2,2,54,67,121,38000,null,null,"3ro","4to","Desarrollar habilidades y establecer  prácticas de trabajo seguras y aprenda a manejar de manera adecuada y segura las herramientas y equipos básicos de prendas de vestir . "]
["Autolavado","1 Hidrolavadora, 1 Tanque espumador, 1 Aspirdora",null,null,null,null,1,1,14,21,35,0,0,0,0,0,6000,null,null,"3ro","4to","Desarrollar habilidades en los alumnos para el  manejo de maquinaria y lavado de autos."]
["Taller Panadería","1 Batidora industrial, 1 Licuadora industrial,  1 Estufa 6 quemadores, 1 Refrigerador, 1 Maquina para donas, 1 Freidora de aceite,  1 Microondas\n",null,null,null,null,7,7,97,129,226,1,1,33,33,66,460000,null,null,"3ro","4to","Fortalecer habilidades laborales en el manejo de electrodomésticos proporcionando oportunidades prácticas a los estudiantes que favorezcan su inclusión laboral. "]
["Total",null,null,null,null,null,{"$f":"SUM(G90:G99)","v":42},42,793,1173,1966,7,7,195,234,429,{"$f":"SUM(Q90:Q99)","v":1308924.8}]
[]
["En caso de requerir alguna precisión o aclaración, describa brevemente: "]
[]
[]
["3.9 Dotar de mobiliario ordinario y/o adaptado para estudiantes con discapacidad"]
["Recurso programado:",null,{"$f":"'Estrategia 2024'!H76","v":550637.21}]
["Remanente ",null,{"$f":"C106-AV128","v":0}]
[]
[null,null,"Focalizados USAER",null,null,{"$f":"'Servicios EE 2024'!B26","v":81},null,"Focalizados CAM básico",null,null,{"$f":"'Servicios EE 2024'!C26","v":0},null,"Focalizados CAM b con FpT",null,null,{"$f":"'Servicios EE 2024'!C28","v":28},null,"Focalizados CAM laboral",null,null,{"$f":"'Servicios EE 2024'!D26","v":2},null,"Focalizados CAPEP",null,null,{"$f":"'Servicios EE 2024'!E26","v":0},null,"Focalizados CRIE",null,null,{"$f":"'Servicios EE 2024'!F26","v":0},null,"Focalizados UOP",null,null,{"$f":"'Servicios EE 2024'!G26","v":0},null,"Focalizados UAEBH",null,null,{"$f":"'Servicios EE 2024'!H26","v":0},null,"Focalizados Otro",null,null,{"$f":"'Servicios EE 2024'!I26","v":0}]
["Especifique el tipo de mobiliario a adquirir",null,"Cantidad a distribuir","USAER",null,null,null,"Cantidad a distribuir","CAM básico",null,null,null,"Cantidad a distribuir","CAM básico con FpT",null,null,null,"Cantidad a distribuir","CAM laboral",null,null,null,"Cantidad a distribuir","CAPEP",null,null,null,"Cantidad a distribuir","CRIE",null,null,null,"Cantidad a distribuir","UOP",null,null,null,"Cantidad a distribuir","UAEBH",null,null,null,"Cantidad a distribuir","Otro",null,null,null,"Presupuesto","Trimestre de inicio","Trimestre de término","Propósito educativo\n(específico del mobiliario a adquirir)"]
[null,null,null,"SEE","Estudiantes",null,null,null,"SEE","Estudiantes",null,null,null,"SEE","Estudiantes",null,null,null,"SEE","Estudiantes",null,null,null,"SEE","Estudiantes",null,null,null,"SEE","Estudiantes",null,null,null,"SEE","Estudiantes",null,null,null,"SEE","Estudiantes",null,null,null,"SEE","Estudiantes"]
[null,null,null,null,"M","H","T",null,null,"M","H","T",null,null,"M","H","T",null,null,"M","H","T",null,null,"M","H","T",null,null,"M","H","T",null,null,"M","H","T",null,null,"M","H","T",null,null,"M","H","T"]
["Pintarrón 1.50 x90 cm",null,66,14,93,238,{"$f":"SUM(E113,F113)","v":331},0,0,0,0,{"$f":"SUM(J113,K113)","v":0},23,9,156,268,{"$f":"SUM(O113,P113)","v":424},0,0,0,0,{"$f":"SUM(T113,U113)","v":0},0,0,0,0,{"$f":"SUM(Y113,Z113)","v":0},0,0,0,0,{"$f":"SUM(AD113,AE113)","v":0},0,0,0,0,{"$f":"SUM(AI113,AJ113)","v":0},0,0,0,0,{"$f":"SUM(AN113,AO113)","v":0},0,0,0,0,{"$f":"SUM(AS113,AT113)","v":0},22395.1,"2do","4to","Favorecer el aprendizaje visual y la comunicación mediante representaciones gráficas, esquemas, dibujos, etc., durante las actividades aúlicas."]
["Sillas adaptadas para PCI",null,0,0,0,0,{"$f":"SUM(E114,F114)","v":0},0,0,0,0,{"$f":"SUM(J114,K114)","v":0},5,1,13,23,{"$f":"SUM(O114,P114)","v":36},0,0,0,0,{"$f":"SUM(T114,U114)","v":0},0,0,0,0,{"$f":"SUM(Y114,Z114)","v":0},0,0,0,0,{"$f":"SUM(AD114,AE114)","v":0},0,0,0,0,{"$f":"SUM(AI114,AJ114)","v":0},0,0,0,0,{"$f":"SUM(AN114,AO114)","v":0},0,0,0,0,{"$f":"SUM(AS114,AT114)","v":0},48610,"2do","4to","Brindar comodidad y soporte postural adecuado a los alumnos con discapacidad motora durante la jornada escolar, favoreciendo la atención y motivación hacia el aprendizaje."]
["Mesa trapezoidal",null,0,0,0,0,0,0,0,0,0,0,10,1,29,55,84,0,0,0,0,0,0,0,0,0,0,0,0,0,0,0,0,0,0,0,0,0,0,0,0,0,0,0,0,0,0,26650,"2do","4to","Facilitar el trabajo colaborativo y la interacción entre alumnos y docentes en actividades grupales."]
["Cambiador de pañal de adulto para baño",null,0,0,0,0,0,0,0,0,0,0,6,4,62,94,156,0,0,0,0,0,0,0,0,0,0,0,0,0,0,0,0,0,0,0,0,0,0,0,0,0,0,0,0,0,0,10000,"2do","4to","Proporcionar un espacio seguro, higiénico y digno para el cambio de pañales de alumnos con discapacidades severas en los CAM."]
["Sillas para alumno",null,0,0,0,0,0,0,0,0,0,0,40,1,29,51,80,0,0,0,0,0,0,0,0,0,0,0,0,0,0,0,0,0,0,0,0,0,0,0,0,0,0,0,0,0,0,37000,"2do","4to","Ofrecer un mobiliario ergonómico y adecuado para las necesidades de los estudiantes, que pueda ser utilizado para las actividades de aprendizaje en el aula."]
["Mesas binarias",null,0,0,0,0,0,0,0,0,0,0,20,1,29,51,80,0,0,0,0,0,0,0,0,0,0,0,0,0,0,0,0,0,0,0,0,0,0,0,0,0,0,0,0,0,0,54392,"2do","4to","Promover el trabajo en parejas y la colaboración entre compañeros, que sea adecuado al espacio de las aulas de CAM."]
["Mesas grandes para taller",null,0,0,0,0,0,0,0,0,0,0,3,1,29,51,80,0,0,0,0,0,0,0,0,0,0,0,0,0,0,0,0,0,0,0,0,0,0,0,0,0,0,0,0,0,0,67426.559999999998,"2do","4to","Facilitar actividades prácticas, manuales y de desarrollo de habilidades en los talleres, buscando mayor calidad e higiene en la elaboración de productos, durante la capacitación laboral."]
["Silla ordinaria",null,0,0,0,0,{"$f":"SUM(E120,F120)","v":0},0,0,0,0,{"$f":"SUM(J120,K120)","v":0},37,3,48,67,{"$f":"SUM(O120,P120)","v":115},0,0,0,0,{"$f":"SUM(T120,U120)","v":0},0,0,0,0,{"$f":"SUM(Y120,Z120)","v":0},0,0,0,0,{"$f":"SUM(AD120,AE120)","v":0},0,0,0,0,{"$f":"SUM(AI120,AJ120)","v":0},0,0,0,0,{"$f":"SUM(AN120,AO120)","v":0},0,0,0,0,{"$f":"SUM(AS120,AT120)","v":0},76775,"2do","4to","Proveer de mobiliario básico para el aula, adaptable a diferentes necesidades y edades de los alumnos."]
["Mesa ordinaria ",null,0,0,0,0,0,0,0,0,0,0,14,3,48,67,{"$f":"SUM(O121,P121)","v":115},0,0,0,0,0,0,0,0,0,0,0,0,0,0,0,0,0,0,0,0,0,0,0,0,0,0,0,0,0,0,33292,"2do","4to","Proveer mobiliario básico que brinde una superficie plana de trabajo para actividades de aprendizaje grupales e individuales en el aula."]
["Atril de madera",null,0,0,0,0,0,0,0,0,0,0,1,1,19,26,{"$f":"SUM(O122,P122)","v":45},0,0,0,0,0,0,0,0,0,0,0,0,0,0,0,0,0,0,0,0,0,0,0,0,0,0,0,0,0,0,1578.7,"2do","4to","Apoyar la lectura, exposiciones y presentaciones de los alumnos y maestros durante actividades escolares, cívicas, culturales y deportivas."]
["Bipedestador",null,0,0,0,0,0,0,0,0,0,0,3,1,5,2,{"$f":"SUM(O123,P123)","v":7},0,0,0,0,0,0,0,0,0,0,0,0,0,0,0,0,0,0,0,0,0,0,0,0,0,0,0,0,0,0,37050,"2do","4to","Favorecer la posición erguida de alumnos con discapacidades motoras para promover la participación y motivación en las diversas actividades escolares."]
["Silla de plástico",null,0,0,0,0,0,0,0,0,0,0,10,1,15,20,{"$f":"SUM(O124,P124)","v":35},0,0,0,0,0,0,0,0,0,0,0,0,0,0,0,0,0,0,0,0,0,0,0,0,0,0,0,0,0,0,9338,"2do","4to","Proveer mobiliario adecuado al tamaño de los niños en edad preescolar, que les permita una posición ergonómica durante las actividades de aprendizaje en el aula."]
["Mesa de acero inoxidable",null,0,0,0,0,0,0,0,0,0,0,5,2,66,105,171,10,1,33,33,66,0,0,0,0,0,0,0,0,0,0,0,0,0,0,0,0,0,0,0,0,0,0,0,0,0,62257.75,"2do","4to","Facilitar actividades prácticas, manuales y de desarrollo de habilidades en los talleres, buscando mayor calidad e higiene en la elaboración de productos, durante la capacitación laboral."]
["Estantes metálicos",null,0,0,0,0,0,0,0,0,0,0,21,5,66,108,174,0,0,0,0,0,0,0,0,0,0,0,0,0,0,0,0,0,0,0,0,0,0,0,0,0,0,0,0,0,0,59978.1,"2do","4to","Proveer mobiliario básico y adecuado a los espacios de las aulas, para que los alumnos y maestros puedan organizar y almacenar materiales didácticos, libros, recursos, etc."]
["Mueble organizador de madera",null,0,0,0,0,0,0,0,0,0,0,2,1,28,43,71,0,0,0,0,0,0,0,0,0,0,0,0,0,0,0,0,0,0,0,0,0,0,0,0,0,0,0,0,0,0,3894,"2do","4to","Proveer mobiliario básico y adecuado a los espacios de las aulas, que permita mantener el orden y la accesibilidad de materiales educativos para alumnos y maestros."]
["Total",null,{"$f":"SUM(C113:C127)","v":66},14,93,238,331,0,0,0,0,0,200,35,642,1031,1673,10,1,33,33,66,0,0,0,0,0,0,0,0,0,0,0,0,0,0,0,0,0,0,0,0,0,0,0,0,0,550637.21000000008]
[]
["En caso de requerir alguna precisión o aclaración, describa brevemente: "]
[]
[]
["3.10 Adquirir equipamiento y materiales para aulas multisensoriales"]
["Recurso programado:",null,{"$f":"'Estrategia 2024'!H77","v":440000}]
["Remanente ",null,{"$f":"C134-R145","v":0}]
[]
[null,null,"Focalizados CAM básico",null,null,{"$f":"'Servicios EE 2024'!C26","v":0},null,"Focalizados CAM b con FpT",null,null,{"$f":"'Servicios EE 2024'!C28","v":28},null,"Focalizados CAM laboral",null,null,{"$f":"'Servicios EE 2024'!D26","v":2}]
["Marque con \"X\" cuando sea aula de nueva creación","Material a adquirir","Cantidad a distribuir","CAM básico",null,null,null,"Cantidad a distribuir","CAM básico con FpT",null,null,null,"Cantidad a distribuir","CAM laboral",null,null,null,"Presupuesto",null,null,"Trimestre de inicio","Trimestre de término","Propósito educativo\n(específico de los materiales a adquirir)"]
[null,null,null,"SEE","Estudiantes",null,null,null,"SEE","Estudiantes",null,null,null,"SEE","Estudiantes"]
[null,null,null,null,"M","H","T",null,null,"M","H","T",null,null,"M","H","T"]
[null,"PAQUETE 1 \n1 COLUMPIO GIRATORIO DE 100 A 300 KGS; \n1 COLUMPIO RECTANGULAR 1 METRO POR 60 CMS; \n1 COLUMPIO DE DISCO; \n1 COLUMPIO DE CUERDA DE 2 MTS; \n2 ESPALDERA HORIZONTAL Y VERTICAL; \n5 PELOTAS DE PESO; \n5 COLCHONETAS DE 2 X 2; \n2 TRAMPOLÍN DE 90 CMS DE DIAMETRO; \n1 BRINCOLIN 3 METROS DE DIAMETRO; \n3 PELOTA DE EQUILIBRIO;\n 1 RULO DE ESTIMULACIÓN DE 1 METRO DE DIAMETRO;\n 2 PISTOLA DE MASAJE; \n2 PELOTA DE BOBATH 75 CM; \n1 ESPEJO DE PARED; ",0,0,0,0,{"$f":"SUM(E141,F141)","v":0},10,10,208,287,{"$f":"SUM(J141,K141)","v":495},0,0,0,0,{"$f":"SUM(O141,P141)","v":0},440000,null,null,"3ro","4to","Estimular los sentidos de los alumnos con discapacidad a traves de una variedad de experiencias multisensoriales."]
[null,null,0,0,0,0,{"$f":"SUM(E142,F142)","v":0},0,0,0,0,{"$f":"SUM(J142,K142)","v":0},0,0,0,0,{"$f":"SUM(O142,P142)","v":0}]
[null,null,0,0,0,0,0,0,0,0,0,0,0,0,0,0,0]
[null,null,0,0,0,0,0,0,0,0,0,0,0,0,0,0,0]
[{"$f":"COUNTIF(A141:A144,\"X\")","v":0},"Total",{"$f":"SUM(C141:C144)","v":0},0,0,0,0,10,10,208,287,495,0,0,0,0,0,{"$f":"SUM(R141:T144)","v":440000}]
[]
["En caso de requerir alguna precisión o aclaración, describa brevemente: "]

{"sheet":"3. Equipamiento espec. (AS)","index":13,"n_rows":67,"n_cols":36,"rows_kept":67,"cut":false,"hidden":false,"merged":[[40,0,40,1],[33,0,35,1],[36,0,36,1],[37,0,37,1],[38,0,38,1],[39,0,39,1],[64,0,64,1],[66,0,66,35],[67,0,67,35],[52,8,53,8],[52,9,52,11],[52,13,53,13],[52,14,52,16],[52,18,53,18],[52,19,52,21],[51,27,53,27],[51,28,51,31],[51,32,53,32],[51,22,53,22],[51,23,51,26],[52,23,53,23],[52,24,52,26],[51,7,53,7],[51,8,51,11],[51,0,53,0],[51,1,53,1],[51,2,53,2],[51,3,51,6],[52,3,53,3],[52,4,52,6],[46,0,46,35],[47,0,47,1],[47,2,47,6],[51,33,53,33],[51,34,53,34],[51,35,53,35],[52,28,53,28],[52,29,52,31],[51,12,53,12],[51,13,51,16],[51,17,53,17],[51,18,51,21],[50,17,50,19],[50,2,50,4],[50,5,50,6],[50,20,50,21],[50,22,50,24],[50,25,50,26],[50,27,50,29],[50,30,50,31],[50,7,50,9],[50,10,50,11],[50,12,50,14],[50,15,50,16],[41,0,41,1],[43,0,43,35],[44,0,44,35],[48,0,48,1],[48,2,48,6],[33,33,35,33],[33,34,35,34],[33,35,35,35],[34,28,35,28],[34,29,34,31],[33,12,35,12],[33,13,33,16],[33,17,35,17],[33,18,33,21],[33,22,35,22],[33,23,33,26],[34,23,35,23],[34,24,34,26],[34,13,35,13],[34,14,34,16],[34,18,35,18],[34,19,34,21],[33,27,35,27],[33,28,33,31],[33,32,35,32],[33,7,35,7],[33,8,33,11],[33,2,35,2],[33,3,33,6],[34,3,35,3],[34,4,34,6],[32,17,32,19],[32,20,32,21],[32,22,32,24],[34,8,35,8],[34,9,34,11],[32,25,32,26],[32,27,32,29],[32,30,32,31],[32,7,32,9],[32,10,32,11],[32,12,32,14],[32,15,32,16],[32,2,32,4],[32,5,32,6],[23,0,23,1],[25,0,25,35],[26,0,26,35],[28,0,28,35],[29,0,29,1],[29,2,29,6],[30,0,30,1],[30,2,30,6],[13,33,15,33],[13,34,15,34],[13,35,15,35],[14,28,15,28],[14,29,14,31],[13,12,15,12],[13,13,13,16],[13,17,15,17],[13,18,13,21],[13,22,15,22],[13,23,13,26],[14,23,15,23],[14,24,14,26],[14,13,15,13],[14,14,14,16],[14,18,15,18],[13,27,15,27],[13,28,13,31],[13,32,15,32],[13,7,15,7],[13,8,13,11],[13,0,15,0],[13,1,15,1],[13,2,15,2],[13,3,13,6],[14,3,15,3],[14,4,14,6],[12,2,12,4],[12,5,12,6],[14,8,15,8],[14,9,14,11],[0,0,4,21],[0,32,4,35],[5,0,5,35],[6,0,6,35],[8,0,8,35],[9,0,9,1],[9,2,9,6],[12,17,12,19],[12,20,12,21],[12,22,12,24],[12,25,12,26],[12,27,12,29],[12,30,12,31],[12,7,12,9],[12,10,12,11],[12,12,12,14],[12,15,12,16],[10,0,10,1],[10,2,10,6],[14,19,14,21]]}
[null,null,null,null,null,null,null,null,null,null,null,null,null,null,null,null,null,null,null,null,null,null,null,null,null,null,null,null,null,null,null,null,"Subsecretaría de Educación Básica\nDirección General de Desarrollo Curricular\nDirección de Fortalecimiento Curricular para la \nFormación Personal y Social en la Educación Básica\nEducación Especial"]
[]
[]
[]
[]
["Componente: 3. Equipamiento específico en beneficio de estudiantes con aptitudes sobresalientes"]
["Para garantizar el cumplimiento de  los objetivos del PFSEE las AEL podrán destinar hasta un 80% del recurso, de acuerdo con lo estipulado en las reglas de operación 2024"]
[]
["3.11 Dotar de material didáctico especializado para estudiantes con aptitudes sobresalientes"]
["Recurso programado:",null,{"$f":"'Estrategia 2024'!W67","v":677638.02}]
["Remanente ",null,{"$f":"C10-AG24","v":0}]
[]
[null,null,"Focalizados USAER",null,null,{"$f":"'Servicios EE 2024'!N26","v":81},null,"Focalizados CAPEP",null,null,{"$f":"'Servicios EE 2024'!O26","v":0},null,"Focalizados CRIE",null,null,{"$f":"'Servicios EE 2024'!P26","v":0},null,"Focalizados UOP",null,null,{"$f":"'Servicios EE 2024'!Q26","v":0},null,"Focalizados UAEBH",null,null,{"$f":"'Servicios EE 2024'!R26","v":0},null,"Focalizados Otro",null,null,{"$f":"'Servicios EE 2024'!S26","v":0}]
["Tipo de materiales\n(seleccione)","Material a adquirir","Cantidad a distribuir","USAER",null,null,null,"Cantidad a distribuir","CAPEP",null,null,null,"Cantidad a distribuir","CRIE",null,null,null,"Cantidad a distribuir","UOP",null,null,null,"Cantidad a distribuir","UAEBH",null,null,null,"Cantidad a distribuir","Otro",null,null,null,"Presupuesto","Trimestre de inicio","Trimestre de término","Propósito educativo\n(específico del material a adquirir)"]
[null,null,null,"SEE","Estudiantes",null,null,null,"SEE","Estudiantes",null,null,null,"SEE","Estudiantes",null,null,null,"SEE","Estudiantes",null,null,null,"SEE","Estudiantes",null,null,null,"SEE","Estudiantes"]
[null,null,null,null,"M","H","T",null,null,"M","H","T",null,null,"M","H","T",null,null,"M","H","T",null,null,"M","H","T",null,null,"M","H","T"]
["Otro (especifique)","1 Kit de robótica preescolar",48,16,32,54,{"$f":"SUM(E17,F17)","v":86},0,0,0,0,{"$f":"SUM(J17,K17)","v":0},0,0,0,0,{"$f":"SUM(O17,P17)","v":0},0,0,0,0,{"$f":"SUM(T17,U17)","v":0},0,0,0,0,{"$f":"SUM(Y17,Z17)","v":0},0,0,0,0,{"$f":"SUM(AD17,AE17)","v":0},77952,"3ro","4to","Estimular el aprendizaje temprano de habilidades como el pensamiento lógico, resolución de problemas, motricidad fina y alfabetización tecnológica de manera lúdica."]
["Otro (especifique)","Paquete con 6 kit de robótica primaria",37,37,79,94,{"$f":"SUM(E18,F18)","v":173},0,0,0,0,{"$f":"SUM(J18,K18)","v":0},0,0,0,0,{"$f":"SUM(O18,P18)","v":0},0,0,0,0,{"$f":"SUM(T18,U18)","v":0},0,0,0,0,{"$f":"SUM(Y18,Z18)","v":0},0,0,0,0,{"$f":"SUM(AD18,AE18)","v":0},38628,"3ro","4to","Que los alumnos con aptitudes sobresalientes exploren su creatividad, diseñen prototipos y pongan en práctica ideas innovadoras de una manera aplicada y tangible, lo que les permite adquirir un aprendizaje más profundo de ciencias, tecnología, ingeniería y matemáticas."]
["Otro (especifique)","1 Kit de robótica secundaria",20,6,19,15,34,0,0,0,0,0,0,0,0,0,0,0,0,0,0,0,0,0,0,0,0,0,0,0,0,0,487428.02,"3ro","4to","Brindar oportunidades enriquecedoras a los alumnos con aptitudes sobresalientes, desafiándolos y motivándolos a descubrir sus intereses y habilidades en campos STEM específicos, así como el desarrollo de pensamiento crítico y creativo."]
["Juegos de estrategia","Paquete:  1 backamon, 1 pictionary, 1 turista mundial, 1 uno, 1 rompecabezas de madera de 24 piezas.",37,37,261,287,548,0,0,0,0,0,0,0,0,0,0,0,0,0,0,0,0,0,0,0,0,0,0,0,0,0,73630,"3ro","4to","Estimular en los alumnos con aptitudes sobresalientes el desarrollo del pensamiento divergente, lógico y estratégico, así como habilidades sociales y emocionales que enriquezcan sus procesos de aprendizaje en las aulas."]
[null,null,0,0,0,0,0,0,0,0,0,0,0,0,0,0,0,0,0,0,0,0,0,0,0,0,0,0,0,0,0,0]
[null,null,0,0,0,0,0,0,0,0,0,0,0,0,0,0,0,0,0,0,0,0,0,0,0,0,0,0,0,0,0,0]
[null,null,0,0,0,0,0,0,0,0,0,0,0,0,0,0,0,0,0,0,0,0,0,0,0,0,0,0,0,0,0,0]
["Total",null,{"$f":"SUM(C17:C23)","v":142},96,391,450,841,0,0,{"$f":"SUM(J17:J23)","v":0},0,0,0,0,0,0,0,0,0,0,0,0,0,0,0,0,0,0,0,0,0,0,677638.02]
[]
["En caso de requerir alguna precisión o aclaración, describa brevemente: "]
["La cantidad a distribuir se refiere kits de robótica, para los servicios indicados."]
[]
["3.12 Dotar de material bibliográfico para estudiantes con aptitudes sobresalientes"]
["Recurso programado:",null,{"$f":"'Estrategia 2024'!W68","v":719360}]
["Remanente ",null,{"$f":"C30-AG42","v":0}]
[]
[null,null,"Focalizados USAER",null,null,{"$f":"'Servicios EE 2024'!N26","v":81},null,"Focalizados CAPEP",null,null,{"$f":"'Servicios EE 2024'!O26","v":0},null,"Focalizados CRIE",null,null,{"$f":"'Servicios EE 2024'!P26","v":0},null,"Focalizados UOP",null,null,{"$f":"'Servicios EE 2024'!Q26","v":0},null,"Focalizados UAEBH",null,null,{"$f":"'Servicios EE 2024'!R26","v":0},null,"Focalizados Otro",null,null,{"$f":"'Servicios EE 2024'!S26","v":0}]
["Tipo de libros\n(seleccione)",null,"Cantidad a distribuir","USAER",null,null,null,"Cantidad a distribuir","CAPEP",null,null,null,"Cantidad a distribuir","CRIE",null,null,null,"Cantidad a distribuir","UOP",null,null,null,"Cantidad a distribuir","UAEBH",null,null,null,"Cantidad a distribuir","Otro",null,null,null,"Presupuesto","Trimestre de inicio","Trimestre de término","Propósito educativo\n(específico de la bibliografía a adquirir)"]
[null,null,null,"SEE","Estudiantes",null,null,null,"SEE","Estudiantes",null,null,null,"SEE","Estudiantes",null,null,null,"SEE","Estudiantes",null,null,null,"SEE","Estudiantes",null,null,null,"SEE","Estudiantes"]
[null,null,null,null,"M","H","T",null,null,"M","H","T",null,null,"M","H","T",null,null,"M","H","T",null,null,"M","H","T",null,null,"M","H","T"]
["Especializados en aptitudes sobresalientes",null,972,81,522,561,{"$f":"SUM(E37,F37)","v":1083},0,0,0,0,{"$f":"SUM(J37,K37)","v":0},0,0,0,0,{"$f":"SUM(O37,P37)","v":0},0,0,0,0,{"$f":"SUM(T37,U37)","v":0},0,0,0,0,{"$f":"SUM(Y37,Z37)","v":0},0,0,0,0,{"$f":"SUM(AD37,AE37)","v":0},369360,"3ro","4to","Brindar material bibliográfico como herramienta que permita a los docentes proponer actividades que representen retos cognitivos, lógicos y de resolución de problemas para los alumnos con aptitudes sobresalientes, explorar temas a mayor profundidad, fomentar el pensamiento crítico, la creatividad y las habilidades de análisis y síntesis complejas."]
["De literatura infantil",null,120,10,63,66,{"$f":"SUM(E38,F38)","v":129},0,0,0,0,{"$f":"SUM(J38,K38)","v":0},0,0,0,0,{"$f":"SUM(O38,P38)","v":0},0,0,0,0,{"$f":"SUM(T38,U38)","v":0},0,0,0,0,{"$f":"SUM(Y38,Z38)","v":0},0,0,0,0,{"$f":"SUM(AD38,AE38)","v":0},350000,"3ro","4to","Fomentar en los alumnos con aptitudes sobresalientes el amor por la lectura, la imaginación y la creatividad mediante obras literarias de calidad, que a su vez desarrollen habilidades lingüísticas, de comprensión lectora y análisis crítico, como un medio para abordar temas profundos de manera atractiva."]
[null,null,0,0,0,0,0,0,0,0,0,0,0,0,0,0,0,0,0,0,0,0,0,0,0,0,0,0,0,0,0,0]
[null,null,0,0,0,0,0,0,0,0,0,0,0,0,0,0,0,0,0,0,0,0,0,0,0,0,0,0,0,0,0,0]
[null,null,0,0,0,0,0,0,0,0,0,0,0,0,0,0,0,0,0,0,0,0,0,0,0,0,0,0,0,0,0,0]
["Total",null,{"$f":"SUM(C37:C41)","v":1092},91,585,627,1212,0,0,0,0,0,0,0,0,0,0,0,0,0,0,0,0,0,0,0,0,0,{"$f":"SUM(AC37:AC41)","v":0},{"$f":"SUM(AD37:AD41)","v":0},{"$f":"SUM(AE37:AE41)","v":0},{"$f":"SUM(AF37:AF41)","v":0},{"$f":"SUM(AG37:AG41)","v":719360}]
[]
["En caso de requerir alguna precisión o aclaración, describa brevemente: "]
["La cantidad a distribuir se refiere a la libros de cada colección"]
[]
["3.14 Dotar de euipo tecnológico y/o multimedia para estudiantes con aptitudes sobresalientes"]
["Recurso programado:",null,{"$f":"'Estrategia 2024'!W70","v":1095620.5}]
["Remanente ",null,{"$f":"C48-AG65","v":0}]
[]
[null,null,"Focalizados USAER",null,null,{"$f":"'Servicios EE 2024'!N26","v":81},null,"Focalizados CAPEP",null,null,{"$f":"'Servicios EE 2024'!O26","v":0},null,"Focalizados CRIE",null,null,{"$f":"'Servicios EE 2024'!P26","v":0},null,"Focalizados UOP",null,null,{"$f":"'Servicios EE 2024'!Q26","v":0},null,"Focalizados UAEBH",null,null,{"$f":"'Servicios EE 2024'!R26","v":0},null,"Focalizados Otro",null,null,{"$f":"'Servicios EE 2024'!S26","v":0}]
["Tipo de equipo\n(seleccione)","Características generales de los equipos","Cantidad a distribuir","USAER",null,null,null,"Cantidad a distribuir","CAPEP",null,null,null,"Cantidad a distribuir","CRIE",null,null,null,"Cantidad a distribuir","UOP",null,null,null,"Cantidad a distribuir","UAEBH",null,null,null,"Cantidad a distribuir","Otro",null,null,null,"Presupuesto","Trimestre de inicio","Trimestre de término","Propósito educativo\n(específico de los materiales)"]
[null,null,null,"SEE","Estudiantes",null,null,null,"SEE","Estudiantes",null,null,null,"SEE","Estudiantes",null,null,null,"SEE","Estudiantes",null,null,null,"SEE","Estudiantes",null,null,null,"SEE","Estudiantes"]
[null,null,null,null,"M","H","T",null,null,"M","H","T",null,null,"M","H","T",null,null,"M","H","T",null,null,"M","H","T",null,null,"M","H","T"]
["Cañón","Proyector lcd, 3400 lúmenes, brillo de proyector, lámpara UHE 210 vatios, tecnología de proyección 3LCD, resolución de proyección XGA (1024 x 768), resolución de contraste 15000:1 dinámico",28,28,148,164,{"$f":"SUM(E55,F55)","v":312},0,0,0,0,{"$f":"SUM(J55,K55)","v":0},0,0,0,0,{"$f":"SUM(O55,P55)","v":0},0,0,0,0,{"$f":"SUM(T55,U55)","v":0},0,0,0,0,{"$f":"SUM(Y55,Z55)","v":0},0,0,0,0,{"$f":"SUM(AD55,AE55)","v":0},369740,"3ro","4to","Facilitar presentaciones visuales atractivas y dinámicas para apoyar el aprendizaje de los alumnos mediante recursos multimedia."]
["Equipo de cómputo","Laptop, procesador intel core 15-1235 U 12 th gen (12 MB CACHÉ, 10 core 12 threads 4.40 Ghz turbo). Sistema operativo windows 11 home single en español. Microsoft office profesional 2021 en español. Adaptador de C.A.65 watt. Memoria ram 8 gb DDR4 3200 mhz. pantalla 16 pulgadas fhd (1920 x 1200) 60 hz led antirreflejo. teclado en español, tarjeta inhalámbrica wifi 6E AX211, 2X2, 802.11ax, bluetooth.",13,13,79,96,{"$f":"SUM(E56,F56)","v":175},0,0,0,0,{"$f":"SUM(J56,K56)","v":0},0,0,0,0,{"$f":"SUM(O56,P56)","v":0},0,0,0,0,{"$f":"SUM(T56,U56)","v":0},0,0,0,0,{"$f":"SUM(Y56,Z56)","v":0},0,0,0,0,{"$f":"SUM(AD56,AE56)","v":0},403000,"3ro","4to","Proveer a los centros de trabajo de una herramienta portátil para que los docentes puedan acceder a recursos digitales, preparar materiales y realizar actividades interactivas en el aula."]
["Equipo de cómputo","PC escritorio: Intel®️ Core™️ i5 14500T vPro®️ (24MB cache, 14 cores, 20 threads, up to 4.8 GHz)\nWindows 11 Pro, inglés, español, francés y portugués de Brasil\nIntel®️ Graphics\n8 GB: 1 x 8 GB, DDR5\n256 GB, M.2 2230, PCIe NVMe, SSD, Class 35\n23.8 pulgadas pantalla",3,3,2,10,12,0,0,0,0,0,0,0,0,0,0,0,0,0,0,0,0,0,0,0,0,0,0,0,0,0,70500,"3ro","4to","Proveer herramienta de trabajo para tareas de productividad, investigación en línea, diseño de materiales didácticos y acceso a software educativo especializado."]
["Impresora","multifuncional de inyección de tinta continua, volumen de impresión mensual 500 páginas aproximadamente, velocidad de impresión en negro 10 ppm, velocidad de impresión a color 5 ppm, interface ethernet integrada.",23,23,120,116,236,0,0,0,0,0,0,0,0,0,0,0,0,0,0,0,0,0,0,0,0,0,0,0,0,0,230000,"3ro","4to","Imprimir, escanear y fotocopiar materiales didácticos adaptados a las necesidades de los alumnos para diversas actividades de aprendizaje escolares y áulicas."]
["Enmicadora","Enmicadora térmica fusiónL ancho 22 cm carta, 3.5 milésimas, dimensiones 14, 2L, x 12,6 w x 41, 4h centímetros.",12,12,51,61,112,0,0,0,0,0,0,0,0,0,0,0,0,0,0,0,0,0,0,0,0,0,0,0,0,0,22380.5,"3ro","4to","Plastificar y proteger materiales didácticos manipulativos para un uso prolongado de los alumnos y facilitar su limpieza."]
[null,null,0,0,0,0,0,0,0,0,0,0,0,0,0,0,0,0,0,0,0,0,0,0,0,0,0,0,0,0,0,0]
[null,null,0,0,0,0,0,0,0,0,0,0,0,0,0,0,0,0,0,0,0,0,0,0,0,0,0,0,0,0,0,0]
[null,null,0,0,0,0,0,0,0,0,0,0,0,0,0,0,0,0,0,0,0,0,0,0,0,0,0,0,0,0,0,0]
[null,null,0,0,0,0,0,0,0,0,0,0,0,0,0,0,0,0,0,0,0,0,0,0,0,0,0,0,0,0,0,0]
[null,null,0,0,0,0,0,0,0,0,0,0,0,0,0,0,0,0,0,0,0,0,0,0,0,0,0,0,0,0,0,0]
["Total",null,{"$f":"SUM(C55:C64)","v":79},79,400,447,847,0,0,0,0,0,0,0,0,0,0,0,0,0,0,0,0,0,0,0,0,0,0,0,0,0,1095620.5]
[]
["En caso de requerir alguna precisión o aclaración, describa brevemente: "]

{"sheet":"Gastos de Operación Local","index":14,"n_rows":20,"n_cols":17,"rows_kept":20,"cut":false,"hidden":false,"merged":[[0,16,4,22],[0,0,4,4],[18,0,18,4],[19,0,22,4],[8,0,8,4]]}
["Subsecretaría de Educación Básica\nDirección General de Desarrollo Curricular\nDirección de Fortalecimiento Curricular para la \nFormación Personal y Social en la Educación Básica\nEducación Especial",null,null,null,null,null,null,null,null,null,null,null,null,null,null,null,"Subsecretaría de Educación Básica\nDirección General de Desarrollo Curricular\nDirección de Fortalecimiento Curricular para la \nFormación Personal y Social en la Educación Básica\nEducación Especial"]
[]
[]
[]
[]
["Recurso programado:",{"$f":"'Estrategia 2024'!S14","v":352970.55}]
["Remanente",{"$f":"B6-E17","v":0}]
[]
["Gastos de operación local 2024"]
["Tipo","Descripción de las actividades a realizar en cada caso","Trimestre de inicio","Trimestre de término","Presupuesto"]
["Planeación","Análisis y atención de RO en reunion nacional con DGDC, Reunión de trabajo con estructura de supervisores y construcción del PAT","2do","2do",0]
["Seguimiento y supervisión","Viáticos, combustible, coffee brake, hospedaje y alimentación.","2do","4to",40843]
["Evaluación","Aplicación de evaluación externa de acuerdo 6.2 de RO","3ro","4to",150000]
["Acciones de Contraloría Social","Las actividades de Contraloría Social serán descritas en el Programa de Trabajo de la Instancia Ejecutora.","3ro","4to",72970.55]
["Asistencia a reuniones convocadas por la DGDC","Viáticos y pasajes aereos","3ro","4to",65034]
["Distribución de materiales a los SEE focalizados","viáticos, combustible, servicio de paquetería","3ro","4to",24123]
[null,null,null,null,{"$f":"SUM(E11:E16)","v":352970.55}]
[]
[" En caso de requerir alguna precisión o aclaración, describa brevemente:"]
["En el rubro de Contraloría Social, se programa un recurso  menor al ejecicio 2023, a fin de evitar reintegro en este rubro de gasto, ya que se pretende citar en las  sedes de las  zonas escolares para la conformación de los Comités de Contraloria Social de CAM como de USAER."]

{"sheet":"Autorización","index":15,"n_rows":20,"n_cols":7,"rows_kept":20,"cut":false,"hidden":false,"merged":[[18,0,18,2],[18,3,18,9],[19,0,19,2],[19,3,19,9],[14,0,14,2],[14,3,14,9],[16,0,16,9],[17,0,17,2],[17,3,17,9],[11,0,11,9],[12,0,12,2],[12,3,12,9],[13,0,13,2],[13,3,13,9],[9,3,9,9],[7,0,7,2],[9,0,9,2],[7,3,7,9],[0,0,4,4],[0,6,4,9],[5,0,5,9],[6,0,6,9],[8,0,8,2],[8,3,8,9]]}
[null,null,null,null,null,null,"Subsecretaría de Educación Básica\nDirección General de Desarrollo Curricular\nDirección de Fortalecimiento Curricular para la \nFormación Personal y Social en la Educación Básica"]
[]
[]
[]
[]
["AUTORIZACIÓN PLAN ANUAL DE TRABAJO 2024"]
["Validación de la Persona Coordinadora Local del PFSEE"]
["Nombre ",null,null,"MPOE.  J. CRUZ CONTRERAS MORENO"]
["Cargo",null,null,"COORDINADOR PFSEE"]
["Firma y sello"]
[]
["Validación de la / del Responsable de Educación Especial subsistema Estatal"]
["Nombre "]
["Cargo"]
["Firma y sello"]
[]
["Validación de la / del Responsable de Educación Especial subsistema Federal"]
["Nombre ",null,null,"MPOE.  J. CRUZ CONTRERAS MORENO"]
["Cargo",null,null,"JEFE DE DEPARTAMENTO DE EDUCACIÓN ESPECIAL"]
["Firma y sello"]